Workbook

Sheet PRODUTIVIDADE_INº02 (hidden)
A1: Definição do valor por M2
A5: Produtividade IN nº 02/2008 | C5: SME | D5: SMM | E5: OBRAS | F5: CAAPSML | G5: SMAA | H5: SEMA | I5: CODEL | J5: SMC | K5: ACESF | L5: SMAS | M5: SMI | N5: SMGP | O5: FEL | P5: TOTAL
A7: Áreas internas | B7: Indicativo
A8: Pisos acarpetados | B8: 600 | P8: =SUM(C8:O8) -> 0
A9: Pisos frios | B9: 600 | C9: 61450.73 | D9: =576.19-D11-D13 -> 423.87 | E9: =1446.61-E11-E13 -> 980.91 | F9: =3387.66-F11-F13 -> 2168.85 | G9: =430-G11-G13 -> 330 | H9: =1114.65-H11-H13 -> 763.61 | I9: =831.3-I13 -> 775.03 | J9: =5117.15-J11-J13 -> 3658.56 | K9: =789-K11-K13 -> 729 | L9: =8150.33-L11-L13 -> 5383.87 | M9: =157.07-M11 -> 151.07 | N9: =29694-N11-N13 -> 25769 | O9: =12394.92-O11-O13 -> 1465.43 | P9: 104049.93 | Q9: =P9/B9 -> 173.41655 | R9: =1/B9 -> 0.001666666667 | S9: =R9*#REF! ->  | T9: =S9*P9 -> 
A10: Laboratórios | B10: 330 | P10: 0
A11: Almoxarifados/galpões | B11: 1350 | C11: 3889.2 | D11: 36.58 | E11: 84 | F11: 304.52 | G11: 15 | H11: 107.13 | J11: 409.86 | K11: 6 | L11: 349.59 | M11: 6 | N11: 718 | O11: 132.16 | P11: 6058.04 | Q11: =P11/B11 -> 4.487437037 | R11: =1/B11 -> 0.0007407407407 | S11: =R11*#REF! ->  | T11: =S11*P11 -> 
A12: Oficinas | B12: 1200 | P12: 0
A13: Áreas com espaço livres/ saguão,hall e salão | B13: 800 | C13: 76142.34 | D13: =69.99+45.75 -> 115.74 | E13: 381.7 | F13: 914.29 | G13: =30+55 -> 85 | H13: =44.52+199.39 -> 243.91 | I13: 56.27 | J13: =938.67+110.06 -> 1048.73 | K13: 54 | L13: =768.54+1648.33 -> 2416.87 | N13: =1375+1832 -> 3207 | O13: =752.08+10045.25 -> 10797.33 | P13: 95463.18 | Q13: =P13/B13 -> 119.328975 | R13: =1/B13 -> 0.00125 | S13: =R13*#REF! ->  | T13: =S13*P13 -> 
P14: 0
A15: Áreas externas | P15: 0
A16: Pisos pavimentados adjacentes/contínuos às edificações | B16: 1200 | P16: 0 | Q16: =P16/B16 -> 0
A17: Varrição de passeios e arruamentos | B17: 6000 | K17: 148606 | P17: 148606 | Q17: =P17/B17 -> 24.76766667 | R17: =1/B17 -> 0.0001666666667 | S17: =R17*#REF! ->  | T17: =S17*P17 -> 
A18: Pátios e áreas verdes com alta frequência | B18: 1200 | C18: 124957.45 | D18: 614.22 | E18: 2050 | F18: 1928.02 | G18: 45 | H18: 14514.18 | I18: 45.02 | J18: 786.06 | L18: 8316.19 | M18: 96 | N18: 35820 | O18: 2517.9 | P18: 191690.04 | Q18: =P18/B18 -> 159.7417 | R18: =1/B18 -> 0.0008333333333 | S18: =R18*#REF! ->  | T18: =S18*P18 -> 
A19: Pátios e áreas verdes com média frequência | B19: 1200 | P19: 0
A20: Pátios e áreas verdes com baixa frequência | B20: 1200 | P20: 0
A21: Coleta de detritos em pátios e áreas verdes com frequência diária | B21: 100000 | C21: 133430.79 | D21: 3666.58 | F21: 480 | G21: 35 | H21: 6731 | L21: 4842.8 | M21: 1297 | N21: 20792 | O21: 9878.69 | P21: 181153.86 | Q21: =P21/B21 -> 1.8115386 | R21: =1/B21 -> 1e-05 | S21: =R21*#REF! ->  | T21: =S21*P21 -> 
P22: 0
A23: esquadrias externas | P23: 0
A24: face externa com exposição a situação de risco | B24: 110 | C24: 4145.62 | E24: 4 | F24: 298.99 | H24: 28.84 | I24: 20 | J24: 637.06 | L24: 515.7 | N24: 1441 | P24: 7091.21 | Q24: =P24/B24 -> 64.46554545 | R24: =1/B24 -> 0.009090909091 | S24: =R24*#REF! ->  | T24: =S24*P24 -> 
A25: face externa sem exposição a situação de risco | B25: 220 | C25: 19836.43 | D25: 67.87 | E25: 47.01 | F25: 236.59 | G25: 66 | H25: 130.95 | I25: 38.65 | J25: 435.69 | K25: 219 | L25: 961.25 | M25: 57 | N25: 4928.67 | O25: 402.17 | P25: 27427.28 | Q25: =P25/B25 -> 124.6694545 | R25: =1/B25 -> 0.004545454545 | S25: =R25*#REF! ->  | T25: =S25*P25 -> 
A26: face interna | B26: 220 | P26: 0
P27: 0
A28: Áreas hospitalares e assemelhadas | B28: 330 | C28: =SUM(C9:C26) -> 423852.56 | D28: 4924.86 | E28: 3547.62 | F28: 6331.26 | G28: 576 | H28: 22519.62 | I28: 934.97 | J28: 6975.96 | K28: 149614 | L28: 22786.27 | M28: 1607.07 | N28: 92675.67 | O28: 25193.68
T29: =SUM(T8:T28) -> 
N31: =31801.77 -> 31801.77
N32: 58924.92 | P32: =29694-31801.77 -> -2107.77
K33: 25810 | M33: 50050 | N33: 6369.67 | O33: 4715
K34: 590.2 | M34: 8844.92 | N34: =N31+N32+N33 -> 97096.36 | O34: 1598.67
K35: 680 | M35: 30 | N35: =N34-N28 -> 4420.69 | O35: 56
K36: =SUM(K33:K35) -> 27080.2 | M36: =SUM(M33:M35) -> 58924.92 | O36: =SUM(O33:O35) -> 6369.67
M38: 56612 | O38: 5276
M39: =M38-M36 -> -2312.92 | O39: =O36-O38 -> 1093.67

Sheet FREQUÊNCIA (hidden)
A2: ESPECIFICAÇÃO DOS SERVIÇOS | B2: FREQUÊNCIA
A3: ÁREAS EXTERNAS - PÁTIOS E ÁREAS VERDES - ALTA FREQUÊNCIA | B3: 1 VEZ POR SEMANA
A4: ÁREAS EXTERNAS - PÁTIOS E ÁREAS VERDES - MÉDIA FREQUÊNCIA | B4: 1 VEZ A CADA 15 DIAS
A5: ÁREAS EXTERNAS - PÁTIOS E ÁREAS VERDES - BAIXA FREQUÊNCIA | B5: 1 VEZ POR MÊS
A6: ÁREAS EXTERNAS - COLETA DE DETRITOS EM PÁTIOS E ÁREAS VERDES | B6: DIÁRIA
A7: VIDROS EXTERNOS (SEM EXPOSIÇÃO A SITUAÇÃO DE RISCO) | B7: FREQUÊNCIA QUINZENAL
A8: VIDROS EXTERNOS (COM EXPOSIÇÃO A SITUAÇÃO DE RISCO) | B8: FREQUÊNCIA QUINZENAL

Sheet Conversor_(2) (hidden)
B2: Decomposição | G2: Parte Inteira | L2: Moeda | M2: Centavos | O2: Valor por Extenso | Q2: CONVERSOR DE VALOR EM EXTENSO
B9: trilhões | C9: bilhões | D9: milhões | E9: milhares | F9: unidades | G9: trilhões | H9: bilhões | I9: milhões | J9: milhares | K9: unidades | N9: LINCAR VALOR DA GUIA DESEJADA | S9: LINCAR COLUNA "S" NA GUIA ONDE DESEJE QUE APAREÇA O EXTENSO
B10: =TRUNC(($N10-((10^{15,12,9,6,3})*INT($N10/(10^{15,12,9,6,3}))))/10^{12,9,6,3,0}) ->  | G10: =IF($N10<10^15,"",IF(OR(B10=1,AND(B10>=100,MOD(B10,100)=0)),IF(TRUNC(($N10-(10^12*INT($N10/(10^12)))))=0,_e_,_sp_),IF(B10<100,"",_sp_)))&IF(B10=1,INDEX(Sng,1,5),IF(B10<100,"",IF(B10=100,OCem,INDEX(Cem,1,TRUNC(B10/100)))))&IF(MOD(B10,100)=0,"",IF(B10=1,"",IF(OR(MOD(B10,100)>=20,MOD(B10,100)=10),IF(OR(B10>100,AND($N10>10^15,TRUNC(($N10-(10^12*INT($N10/(10^12)))))=0)),_e_,IF($N10>10^15,_sp_,"")),"")))&IF(MOD(B10,100)=0,"",IF(B10=1,"",IF(OR(MOD(B10,100)>=20,MOD(B10,100)=10),INDEX(Dez,1,TRUNC(MOD(B10,100)/10)),"")))&IF(MOD(B10,100)=0,"",IF(B10=1,"",IF(MOD(MOD(B10,100),10)<>0,IF(OR(B10>20,AND($N10>10^15,TRUNC(($N10-(10^12*INT($N10/(10^12)))))=0)),_e_,IF($N10>10^15,_sp_,"")),"")))&IF(B10=0,"",IF(B10=1,"",IF(MOD(MOD(B10,100),10)=0,"",IF(MOD(B10,100)<20,INDEX(Sml,1,_xlfn.MODE.SNGL(B10,100)),INDEX(Sml,1,_xlfn.MODE.SNGL(_xlfn.MODE.SNGL(B10,100),10)))))) & IF(B10<=1,"",INDEX(Plu,1,5)) ->  | H10: =IF($N10<10^12,"",IF(OR(C10=1,AND(C10>=100,_xlfn.MODE.SNGL(C10,100)=0)),IF(TRUNC(($N10-(10^9*INT($N10/(10^9)))))=0,_e_,_sp_),IF(C10<100,"",_sp_)))&IF(C10=1,INDEX(Sng,1,4),IF(C10<100,"",IF(C10=100,OCem,INDEX(Cem,1,TRUNC(C10/100)))))&IF(MOD(C10,100)=0,"",IF(C10=1,"",IF(OR(MOD(C10,100)>=20,MOD(C10,100)=10),IF(OR(C10>100,AND($N10>10^12,TRUNC(($N10-(10^9*INT($N10/(10^9)))))=0)),_e_,IF($N10>10^12,_sp_,"")),"")))&IF(MOD(C10,100)=0,"",IF(C10=1,"",IF(OR(MOD(C10,100)>=20,MOD(C10,100)=10),INDEX(Dez,1,TRUNC(MOD(C10,100)/10)),"")))&IF(MOD(C10,100)=0,"",IF(C10=1,"",IF(MOD(MOD(C10,100),10)<>0,IF(OR(C10>20,AND($N10>10^12,TRUNC(($N10-(10^9*INT($N10/(10^9)))))=0)),_e_,IF($N10>10^12,_sp_,"")),"")))&IF(C10=0,"",IF(C10=1,"",IF(MOD(MOD(C10,100),10)=0,"",IF(MOD(C10,100)<20,INDEX(Sml,1,_xlfn.MODE.SNGL(C10,100)),INDEX(Sml,1,_xlfn.MODE.SNGL(_xlfn.MODE.SNGL(C10,100),10)))))) & IF(C10<=1,"",INDEX(Plu,1,4)) ->  | I10: =IF($N10<10^9,"",IF(OR(D10=1,AND(D10>=100,_xlfn.MODE.SNGL(D10,100)=0)),IF(TRUNC(($N10-(10^6*INT($N10/(10^6)))))=0,_e_,_sp_),IF(D10<100,"",_sp_)))&IF(D10=1,INDEX(Sng,1,3),IF(D10<100,"",IF(D10=100,OCem,INDEX(Cem,1,TRUNC(D10/100)))))&IF(MOD(D10,100)=0,"",IF(D10=1,"",IF(OR(MOD(D10,100)>=20,MOD(D10,100)=10),IF(OR(D10>100,AND($N10>10^9,TRUNC(($N10-(10^6*INT($N10/(10^6)))))=0)),_e_,IF($N10>10^9,_sp_,"")),"")))&IF(MOD(D10,100)=0,"",IF(D10=1,"",IF(OR(MOD(D10,100)>=20,MOD(D10,100)=10),INDEX(Dez,1,TRUNC(MOD(D10,100)/10)),"")))&IF(MOD(D10,100)=0,"",IF(D10=1,"",IF(MOD(MOD(D10,100),10)<>0,IF(OR(D10>20,AND($N10>10^9,TRUNC(($N10-(10^6*INT($N10/(10^6)))))=0)),_e_,IF($N10>10^9,_sp_,"")),"")))&IF(D10=0,"",IF(D10=1,"",IF(MOD(MOD(D10,100),10)=0,"",IF(MOD(D10,100)<20,INDEX(Sml,1,_xlfn.MODE.SNGL(D10,100)),INDEX(Sml,1,_xlfn.MODE.SNGL(_xlfn.MODE.SNGL(D10,100),10)))))) & IF(D10<=1,"",INDEX(Plu,1,3)) ->  | J10: =IF($N10<10^6,"",IF(OR(E10=1,AND(E10>=100,_xlfn.MODE.SNGL(E10,100)=0)),IF(TRUNC(($N10-(10^3*INT($N10/(10^3)))))=0,_e_,_sp_),IF(E10<100,"",_sp_)))&IF(E10=1,INDEX(Sng,1,2),IF(E10<100,"",IF(E10=100,OCem,INDEX(Cem,1,TRUNC(E10/100)))))&IF(MOD(E10,100)=0,"",IF(E10=1,"",IF(OR(MOD(E10,100)>=20,MOD(E10,100)=10),IF(OR(E10>100,AND($N10>10^6,TRUNC(($N10-(10^3*INT($N10/(10^3)))))=0)),_e_,IF($N10>10^6,_sp_,"")),"")))&IF(MOD(E10,100)=0,"",IF(E10=1,"",IF(OR(MOD(E10,100)>=20,MOD(E10,100)=10),INDEX(Dez,1,TRUNC(MOD(E10,100)/10)),"")))&IF(MOD(E10,100)=0,"",IF(E10=1,"",IF(MOD(MOD(E10,100),10)<>0,IF(OR(E10>20,AND($N10>10^6,TRUNC(($N10-(10^3*INT($N10/(10^3)))))=0)),_e_,IF($N10>10^6,_sp_,"")),"")))&IF(E10=0,"",IF(E10=1,"",IF(MOD(MOD(E10,100),10)=0,"",IF(MOD(E10,100)<20,INDEX(Sml,1,_xlfn.MODE.SNGL(E10,100)),INDEX(Sml,1,_xlfn.MODE.SNGL(_xlfn.MODE.SNGL(E10,100),10)))))) & IF(E10<=1,"",INDEX(Plu,1,2)) ->  | K10: =IF($N10<10^3,"",IF(OR(F10=1,AND(F10>=100,_xlfn.MODE.SNGL(F10,100)=0)),IF(TRUNC(($N10-(10^0*INT($N10/(10^0)))))=0,_e_,_sp_),IF(F10<100,"",_sp_)))&IF(F10=1,INDEX(Sng,1,1),IF(F10<100,"",IF(F10=100,OCem,INDEX(Cem,1,TRUNC(F10/100)))))&IF(MOD(F10,100)=0,"",IF(F10=1,"",IF(OR(MOD(F10,100)>=20,MOD(F10,100)=10),IF(OR(F10>100,AND($N10>10^3,TRUNC(($N10-(10^0*INT($N10/(10^0)))))=0)),_e_,IF($N10>10^3,_sp_,"")),"")))&IF(MOD(F10,100)=0,"",IF(F10=1,"",IF(OR(MOD(F10,100)>=20,MOD(F10,100)=10),INDEX(Dez,1,TRUNC(MOD(F10,100)/10)),"")))&IF(MOD(F10,100)=0,"",IF(F10=1,"",IF(MOD(MOD(F10,100),10)<>0,IF(OR(F10>20,AND($N10>10^3,TRUNC(($N10-(10^0*INT($N10/(10^0)))))=0)),_e_,IF($N10>10^3,_sp_,"")),"")))&IF(F10=0,"",IF(F10=1,"",IF(MOD(MOD(F10,100),10)=0,"",IF(MOD(F10,100)<20,INDEX(Sml,1,_xlfn.MODE.SNGL(F10,100)),INDEX(Sml,1,_xlfn.MODE.SNGL(_xlfn.MODE.SNGL(F10,100),10)))))) & IF(F10<=1,"",INDEX(Plu,1,1)) ->  | L10: =IF($N10<1,"",IF(TRUNC($N10)=1," real",IF(AND($N10>=10^6,TRUNC($N10-10^6*INT($N10/10^6))=0)," de","") & " reais")) ->  | M10: =IF((ROUND($N10-TRUNC($N10),2)*100)=0,"",IF($N10>=1,_e_,"") & IF((ROUND($N10-TRUNC($N10),2)*100)=1,"um centavo",IF((ROUND($N10-TRUNC($N10),2)*100)>=20,INDEX(Dez,1,TRUNC((ROUND($N10-TRUNC($N10),2)*100)/10)) & IF(MOD((ROUND($N10-TRUNC($N10),2)*100),10)<>0,_e_ & INDEX(Sml,1,_xlfn.MODE.SNGL((ROUND($N10-TRUNC($N10),2)*100),10)),""),INDEX(Sml,1,(ROUND($N10-TRUNC($N10),2)*100))) & " centavos")) ->  | N10: =#REF! ->  | O10: =G10&H10&I10&J10&K10&L10&M10 ->  | P10: =CONCATENATE("(",O10,")") ->  | R10: 56678 | S10: =P10 -> 
B11: =TRUNC(($N11-((10^{15,12,9,6,3})*INT($N11/(10^{15,12,9,6,3}))))/10^{12,9,6,3,0}) ->  | N11: =#REF! ->  | R11: 56
B12: =TRUNC(($N12-((10^{15,12,9,6,3})*INT($N12/(10^{15,12,9,6,3}))))/10^{12,9,6,3,0}) -> 0 | C12: 0 | D12: 0 | E12: 0 | F12: 0 | P12: () | R12: 4524354 | S12: ()
B13: =TRUNC(($N13-((10^{15,12,9,6,3})*INT($N13/(10^{15,12,9,6,3}))))/10^{12,9,6,3,0}) -> 0 | C13: 0 | D13: 0 | E13: 0 | F13: 0 | P13: () | R13: 656 | S13: ()
B14: =TRUNC(($N14-((10^{15,12,9,6,3})*INT($N14/(10^{15,12,9,6,3}))))/10^{12,9,6,3,0}) -> 0 | C14: 0 | D14: 0 | E14: 0 | F14: 0 | P14: () | R14: 55 | S14: ()
B15: =TRUNC(($N15-((10^{15,12,9,6,3})*INT($N15/(10^{15,12,9,6,3}))))/10^{12,9,6,3,0}) -> 0 | C15: 0 | D15: 0 | E15: 0 | F15: 0 | P15: () | R15: 66 | S15: ()
B16: =TRUNC(($N16-((10^{15,12,9,6,3})*INT($N16/(10^{15,12,9,6,3}))))/10^{12,9,6,3,0}) -> 0 | C16: 0 | D16: 0 | E16: 0 | F16: 0 | P16: () | R16: 55 | S16: ()
B17: =TRUNC(($N17-((10^{15,12,9,6,3})*INT($N17/(10^{15,12,9,6,3}))))/10^{12,9,6,3,0}) -> 0 | C17: 0 | D17: 0 | E17: 0 | F17: 0 | P17: () | R17: 33 | S17: ()
B18: =TRUNC(($N18-((10^{15,12,9,6,3})*INT($N18/(10^{15,12,9,6,3}))))/10^{12,9,6,3,0}) -> 0 | C18: 0 | D18: 0 | E18: 0 | F18: 0 | P18: () | R18: 55 | S18: ()
B19: =TRUNC(($N19-((10^{15,12,9,6,3})*INT($N19/(10^{15,12,9,6,3}))))/10^{12,9,6,3,0}) -> 0 | C19: 0 | D19: 0 | E19: 0 | F19: 0 | P19: () | R19: 77 | S19: ()
B20: =TRUNC(($N20-((10^{15,12,9,6,3})*INT($N20/(10^{15,12,9,6,3}))))/10^{12,9,6,3,0}) -> 0 | C20: 0 | D20: 0 | E20: 0 | F20: 0 | P20: () | R20: 55 | S20: ()
B21: =TRUNC(($N21-((10^{15,12,9,6,3})*INT($N21/(10^{15,12,9,6,3}))))/10^{12,9,6,3,0}) -> 0 | C21: 0 | D21: 0 | E21: 0 | F21: 0 | P21: () | R21: 22 | S21: ()
B22: =TRUNC(($N22-((10^{15,12,9,6,3})*INT($N22/(10^{15,12,9,6,3}))))/10^{12,9,6,3,0}) -> 0 | C22: 0 | D22: 0 | E22: 0 | F22: 0 | P22: () | R22: 557 | S22: ()
B23: =TRUNC(($N23-((10^{15,12,9,6,3})*INT($N23/(10^{15,12,9,6,3}))))/10^{12,9,6,3,0}) -> 0 | C23: 0 | D23: 0 | E23: 0 | F23: 0 | P23: () | R23: 1 | S23: ()
B24: =TRUNC(($N24-((10^{15,12,9,6,3})*INT($N24/(10^{15,12,9,6,3}))))/10^{12,9,6,3,0}) -> 0 | C24: 0 | D24: 0 | E24: 0 | F24: 0 | P24: () | R24: 88 | S24: ()
B25: =TRUNC(($N25-((10^{15,12,9,6,3})*INT($N25/(10^{15,12,9,6,3}))))/10^{12,9,6,3,0}) -> 0 | C25: 0 | D25: 0 | E25: 0 | F25: 0 | P25: () | R25: 66 | S25: ()
B26: =TRUNC(($N26-((10^{15,12,9,6,3})*INT($N26/(10^{15,12,9,6,3}))))/10^{12,9,6,3,0}) -> 0 | C26: 0 | D26: 0 | E26: 0 | F26: 0 | P26: () | R26: 0.89 | S26: ()
B27: =TRUNC(($N27-((10^{15,12,9,6,3})*INT($N27/(10^{15,12,9,6,3}))))/10^{12,9,6,3,0}) -> 0 | C27: 0 | D27: 0 | E27: 0 | F27: 0 | P27: () | R27: 0.08 | S27: ()
B28: =TRUNC(($N28-((10^{15,12,9,6,3})*INT($N28/(10^{15,12,9,6,3}))))/10^{12,9,6,3,0}) -> 0 | C28: 0 | D28: 0 | E28: 0 | F28: 0 | M28: um centavo | N28: =R28 -> 0.01 | O28: um centavo | P28: (um centavo) | R28: 0.01 | S28: (um centavo)
B29: =TRUNC(($N29-((10^{15,12,9,6,3})*INT($N29/(10^{15,12,9,6,3}))))/10^{12,9,6,3,0}) -> 0 | C29: 0 | D29: 0 | E29: 0 | F29: 0 | N29: 0 | P29: () | S29: ()
B30: =TRUNC(($N30-((10^{15,12,9,6,3})*INT($N30/(10^{15,12,9,6,3}))))/10^{12,9,6,3,0}) -> 0 | C30: 0 | D30: 0 | E30: 0 | F30: 0 | N30: 0 | P30: () | S30: ()
B31: =TRUNC(($N31-((10^{15,12,9,6,3})*INT($N31/(10^{15,12,9,6,3}))))/10^{12,9,6,3,0}) -> 0 | C31: 0 | D31: 0 | E31: 0 | F31: 0 | N31: 0 | P31: () | S31: ()
B32: =TRUNC(($N32-((10^{15,12,9,6,3})*INT($N32/(10^{15,12,9,6,3}))))/10^{12,9,6,3,0}) -> 0 | C32: 0 | D32: 0 | E32: 0 | F32: 0 | N32: 0 | P32: () | S32: ()
B33: =TRUNC(($N33-((10^{15,12,9,6,3})*INT($N33/(10^{15,12,9,6,3}))))/10^{12,9,6,3,0}) -> 0 | C33: 0 | D33: 0 | E33: 0 | F33: 0 | N33: 0 | P33: () | S33: ()
B34: =TRUNC(($N34-((10^{15,12,9,6,3})*INT($N34/(10^{15,12,9,6,3}))))/10^{12,9,6,3,0}) -> 0 | C34: 0 | D34: 0 | E34: 0 | F34: 0 | N34: 0 | P34: () | S34: ()
B35: =TRUNC(($N35-((10^{15,12,9,6,3})*INT($N35/(10^{15,12,9,6,3}))))/10^{12,9,6,3,0}) -> 0 | C35: 0 | D35: 0 | E35: 0 | F35: 0 | N35: 0 | P35: () | S35: ()
B36: =TRUNC(($N36-((10^{15,12,9,6,3})*INT($N36/(10^{15,12,9,6,3}))))/10^{12,9,6,3,0}) -> 0 | C36: 0 | D36: 0 | E36: 0 | F36: 0 | N36: 0 | P36: () | S36: ()
B37: =TRUNC(($N37-((10^{15,12,9,6,3})*INT($N37/(10^{15,12,9,6,3}))))/10^{12,9,6,3,0}) -> 0 | C37: 0 | D37: 0 | E37: 0 | F37: 0 | N37: 0 | P37: () | S37: ()
B38: =TRUNC(($N38-((10^{15,12,9,6,3})*INT($N38/(10^{15,12,9,6,3}))))/10^{12,9,6,3,0}) -> 0 | C38: 0 | D38: 0 | E38: 0 | F38: 0 | N38: 0 | P38: () | S38: ()
B39: =TRUNC(($N39-((10^{15,12,9,6,3})*INT($N39/(10^{15,12,9,6,3}))))/10^{12,9,6,3,0}) -> 0 | C39: 0 | D39: 0 | E39: 0 | F39: 0 | N39: 0 | P39: () | S39: ()
B40: =TRUNC(($N40-((10^{15,12,9,6,3})*INT($N40/(10^{15,12,9,6,3}))))/10^{12,9,6,3,0}) -> 0 | C40: 0 | D40: 0 | E40: 0 | F40: 0 | N40: 0 | P40: () | S40: ()
B41: =TRUNC(($N41-((10^{15,12,9,6,3})*INT($N41/(10^{15,12,9,6,3}))))/10^{12,9,6,3,0}) -> 0 | C41: 0 | D41: 0 | E41: 0 | F41: 0 | N41: 0 | P41: () | S41: ()
B42: =TRUNC(($N42-((10^{15,12,9,6,3})*INT($N42/(10^{15,12,9,6,3}))))/10^{12,9,6,3,0}) -> 0 | C42: 0 | D42: 0 | E42: 0 | F42: 0 | G42: =IF($N42<10^15,"",IF(OR(B42=1,AND(B42>=100,MOD(B42,100)=0)),IF(TRUNC(($N42-(10^12*INT($N42/(10^12)))))=0,_e_,_sp_),IF(B42<100,"",_sp_)))&IF(B42=1,INDEX(Sng,1,5),IF(B42<100,"",IF(B42=100,OCem,INDEX(Cem,1,TRUNC(B42/100)))))&IF(MOD(B42,100)=0,"",IF(B42=1,"",IF(OR(MOD(B42,100)>=20,MOD(B42,100)=10),IF(OR(B42>100,AND($N42>10^15,TRUNC(($N42-(10^12*INT($N42/(10^12)))))=0)),_e_,IF($N42>10^15,_sp_,"")),"")))&IF(MOD(B42,100)=0,"",IF(B42=1,"",IF(OR(MOD(B42,100)>=20,MOD(B42,100)=10),INDEX(Dez,1,TRUNC(MOD(B42,100)/10)),"")))&IF(MOD(B42,100)=0,"",IF(B42=1,"",IF(MOD(MOD(B42,100),10)<>0,IF(OR(B42>20,AND($N42>10^15,TRUNC(($N42-(10^12*INT($N42/(10^12)))))=0)),_e_,IF($N42>10^15,_sp_,"")),"")))&IF(B42=0,"",IF(B42=1,"",IF(MOD(MOD(B42,100),10)=0,"",IF(MOD(B42,100)<20,INDEX(Sml,1,_xlfn.MODE.SNGL(B42,100)),INDEX(Sml,1,_xlfn.MODE.SNGL(_xlfn.MODE.SNGL(B42,100),10)))))) & IF(B42<=1,"",INDEX(Plu,1,5)) ->  | H42: =IF($N42<10^12,"",IF(OR(C42=1,AND(C42>=100,_xlfn.MODE.SNGL(C42,100)=0)),IF(TRUNC(($N42-(10^9*INT($N42/(10^9)))))=0,_e_,_sp_),IF(C42<100,"",_sp_)))&IF(C42=1,INDEX(Sng,1,4),IF(C42<100,"",IF(C42=100,OCem,INDEX(Cem,1,TRUNC(C42/100)))))&IF(MOD(C42,100)=0,"",IF(C42=1,"",IF(OR(MOD(C42,100)>=20,MOD(C42,100)=10),IF(OR(C42>100,AND($N42>10^12,TRUNC(($N42-(10^9*INT($N42/(10^9)))))=0)),_e_,IF($N42>10^12,_sp_,"")),"")))&IF(MOD(C42,100)=0,"",IF(C42=1,"",IF(OR(MOD(C42,100)>=20,MOD(C42,100)=10),INDEX(Dez,1,TRUNC(MOD(C42,100)/10)),"")))&IF(MOD(C42,100)=0,"",IF(C42=1,"",IF(MOD(MOD(C42,100),10)<>0,IF(OR(C42>20,AND($N42>10^12,TRUNC(($N42-(10^9*INT($N42/(10^9)))))=0)),_e_,IF($N42>10^12,_sp_,"")),"")))&IF(C42=0,"",IF(C42=1,"",IF(MOD(MOD(C42,100),10)=0,"",IF(MOD(C42,100)<20,INDEX(Sml,1,_xlfn.MODE.SNGL(C42,100)),INDEX(Sml,1,_xlfn.MODE.SNGL(_xlfn.MODE.SNGL(C42,100),10)))))) & IF(C42<=1,"",INDEX(Plu,1,4)) ->  | I42: =IF($N42<10^9,"",IF(OR(D42=1,AND(D42>=100,_xlfn.MODE.SNGL(D42,100)=0)),IF(TRUNC(($N42-(10^6*INT($N42/(10^6)))))=0,_e_,_sp_),IF(D42<100,"",_sp_)))&IF(D42=1,INDEX(Sng,1,3),IF(D42<100,"",IF(D42=100,OCem,INDEX(Cem,1,TRUNC(D42/100)))))&IF(MOD(D42,100)=0,"",IF(D42=1,"",IF(OR(MOD(D42,100)>=20,MOD(D42,100)=10),IF(OR(D42>100,AND($N42>10^9,TRUNC(($N42-(10^6*INT($N42/(10^6)))))=0)),_e_,IF($N42>10^9,_sp_,"")),"")))&IF(MOD(D42,100)=0,"",IF(D42=1,"",IF(OR(MOD(D42,100)>=20,MOD(D42,100)=10),INDEX(Dez,1,TRUNC(MOD(D42,100)/10)),"")))&IF(MOD(D42,100)=0,"",IF(D42=1,"",IF(MOD(MOD(D42,100),10)<>0,IF(OR(D42>20,AND($N42>10^9,TRUNC(($N42-(10^6*INT($N42/(10^6)))))=0)),_e_,IF($N42>10^9,_sp_,"")),"")))&IF(D42=0,"",IF(D42=1,"",IF(MOD(MOD(D42,100),10)=0,"",IF(MOD(D42,100)<20,INDEX(Sml,1,_xlfn.MODE.SNGL(D42,100)),INDEX(Sml,1,_xlfn.MODE.SNGL(_xlfn.MODE.SNGL(D42,100),10)))))) & IF(D42<=1,"",INDEX(Plu,1,3)) ->  | J42: =IF($N42<10^6,"",IF(OR(E42=1,AND(E42>=100,_xlfn.MODE.SNGL(E42,100)=0)),IF(TRUNC(($N42-(10^3*INT($N42/(10^3)))))=0,_e_,_sp_),IF(E42<100,"",_sp_)))&IF(E42=1,INDEX(Sng,1,2),IF(E42<100,"",IF(E42=100,OCem,INDEX(Cem,1,TRUNC(E42/100)))))&IF(MOD(E42,100)=0,"",IF(E42=1,"",IF(OR(MOD(E42,100)>=20,MOD(E42,100)=10),IF(OR(E42>100,AND($N42>10^6,TRUNC(($N42-(10^3*INT($N42/(10^3)))))=0)),_e_,IF($N42>10^6,_sp_,"")),"")))&IF(MOD(E42,100)=0,"",IF(E42=1,"",IF(OR(MOD(E42,100)>=20,MOD(E42,100)=10),INDEX(Dez,1,TRUNC(MOD(E42,100)/10)),"")))&IF(MOD(E42,100)=0,"",IF(E42=1,"",IF(MOD(MOD(E42,100),10)<>0,IF(OR(E42>20,AND($N42>10^6,TRUNC(($N42-(10^3*INT($N42/(10^3)))))=0)),_e_,IF($N42>10^6,_sp_,"")),"")))&IF(E42=0,"",IF(E42=1,"",IF(MOD(MOD(E42,100),10)=0,"",IF(MOD(E42,100)<20,INDEX(Sml,1,_xlfn.MODE.SNGL(E42,100)),INDEX(Sml,1,_xlfn.MODE.SNGL(_xlfn.MODE.SNGL(E42,100),10)))))) & IF(E42<=1,"",INDEX(Plu,1,2)) ->  | K42: =IF($N42<10^3,"",IF(OR(F42=1,AND(F42>=100,_xlfn.MODE.SNGL(F42,100)=0)),IF(TRUNC(($N42-(10^0*INT($N42/(10^0)))))=0,_e_,_sp_),IF(F42<100,"",_sp_)))&IF(F42=1,INDEX(Sng,1,1),IF(F42<100,"",IF(F42=100,OCem,INDEX(Cem,1,TRUNC(F42/100)))))&IF(MOD(F42,100)=0,"",IF(F42=1,"",IF(OR(MOD(F42,100)>=20,MOD(F42,100)=10),IF(OR(F42>100,AND($N42>10^3,TRUNC(($N42-(10^0*INT($N42/(10^0)))))=0)),_e_,IF($N42>10^3,_sp_,"")),"")))&IF(MOD(F42,100)=0,"",IF(F42=1,"",IF(OR(MOD(F42,100)>=20,MOD(F42,100)=10),INDEX(Dez,1,TRUNC(MOD(F42,100)/10)),"")))&IF(MOD(F42,100)=0,"",IF(F42=1,"",IF(MOD(MOD(F42,100),10)<>0,IF(OR(F42>20,AND($N42>10^3,TRUNC(($N42-(10^0*INT($N42/(10^0)))))=0)),_e_,IF($N42>10^3,_sp_,"")),"")))&IF(F42=0,"",IF(F42=1,"",IF(MOD(MOD(F42,100),10)=0,"",IF(MOD(F42,100)<20,INDEX(Sml,1,_xlfn.MODE.SNGL(F42,100)),INDEX(Sml,1,_xlfn.MODE.SNGL(_xlfn.MODE.SNGL(F42,100),10)))))) & IF(F42<=1,"",INDEX(Plu,1,1)) ->  | L42: =IF($N42<1,"",IF(TRUNC($N42)=1," real",IF(AND($N42>=10^6,TRUNC($N42-10^6*INT($N42/10^6))=0)," de","") & " reais")) ->  | M42: =IF((ROUND($N42-TRUNC($N42),2)*100)=0,"",IF($N42>=1,_e_,"") & IF((ROUND($N42-TRUNC($N42),2)*100)=1,"um centavo",IF((ROUND($N42-TRUNC($N42),2)*100)>=20,INDEX(Dez,1,TRUNC((ROUND($N42-TRUNC($N42),2)*100)/10)) & IF(MOD((ROUND($N42-TRUNC($N42),2)*100),10)<>0,_e_ & INDEX(Sml,1,_xlfn.MODE.SNGL((ROUND($N42-TRUNC($N42),2)*100),10)),""),INDEX(Sml,1,(ROUND($N42-TRUNC($N42),2)*100))) & " centavos")) ->  | N42: 0 | O42: =G42&H42&I42&J42&K42&L42&M42 ->  | P42: =CONCATENATE("(",O42,")") -> () | S42: =P42 -> ()
B43: =TRUNC(($N43-((10^{15,12,9,6,3})*INT($N43/(10^{15,12,9,6,3}))))/10^{12,9,6,3,0}) -> 0 | C43: 0 | D43: 0 | E43: 0 | F43: 0 | N43: 0 | P43: () | S43: ()
B44: =TRUNC(($N44-((10^{15,12,9,6,3})*INT($N44/(10^{15,12,9,6,3}))))/10^{12,9,6,3,0}) -> 0 | C44: 0 | D44: 0 | E44: 0 | F44: 0 | N44: 0 | P44: () | S44: ()
B45: =TRUNC(($N45-((10^{15,12,9,6,3})*INT($N45/(10^{15,12,9,6,3}))))/10^{12,9,6,3,0}) -> 0 | C45: 0 | D45: 0 | E45: 0 | F45: 0 | N45: 0 | P45: () | S45: ()
B46: =TRUNC(($N46-((10^{15,12,9,6,3})*INT($N46/(10^{15,12,9,6,3}))))/10^{12,9,6,3,0}) -> 0 | C46: 0 | D46: 0 | E46: 0 | F46: 0 | N46: 0 | P46: () | S46: ()
B47: =TRUNC(($N47-((10^{15,12,9,6,3})*INT($N47/(10^{15,12,9,6,3}))))/10^{12,9,6,3,0}) -> 0 | C47: 0 | D47: 0 | E47: 0 | F47: 0 | N47: 0 | P47: () | S47: ()
B48: =TRUNC(($N48-((10^{15,12,9,6,3})*INT($N48/(10^{15,12,9,6,3}))))/10^{12,9,6,3,0}) -> 0 | C48: 0 | D48: 0 | E48: 0 | F48: 0 | N48: 0 | P48: () | S48: ()
B49: =TRUNC(($N49-((10^{15,12,9,6,3})*INT($N49/(10^{15,12,9,6,3}))))/10^{12,9,6,3,0}) -> 0 | C49: 0 | D49: 0 | E49: 0 | F49: 0 | N49: 0 | P49: () | S49: ()
B50: =TRUNC(($N50-((10^{15,12,9,6,3})*INT($N50/(10^{15,12,9,6,3}))))/10^{12,9,6,3,0}) -> 0 | C50: 0 | D50: 0 | E50: 0 | F50: 0 | N50: 0 | P50: () | S50: ()
B51: =TRUNC(($N51-((10^{15,12,9,6,3})*INT($N51/(10^{15,12,9,6,3}))))/10^{12,9,6,3,0}) -> 0 | C51: 0 | D51: 0 | E51: 0 | F51: 0 | N51: 0 | P51: () | S51: ()
B52: =TRUNC(($N52-((10^{15,12,9,6,3})*INT($N52/(10^{15,12,9,6,3}))))/10^{12,9,6,3,0}) -> 0 | C52: 0 | D52: 0 | E52: 0 | F52: 0 | N52: 0 | P52: () | S52: ()
B53: =TRUNC(($N53-((10^{15,12,9,6,3})*INT($N53/(10^{15,12,9,6,3}))))/10^{12,9,6,3,0}) -> 0 | C53: 0 | D53: 0 | E53: 0 | F53: 0 | N53: 0 | P53: () | S53: ()
B54: =TRUNC(($N54-((10^{15,12,9,6,3})*INT($N54/(10^{15,12,9,6,3}))))/10^{12,9,6,3,0}) -> 0 | C54: 0 | D54: 0 | E54: 0 | F54: 0 | N54: 0 | P54: () | S54: ()
B55: =TRUNC(($N55-((10^{15,12,9,6,3})*INT($N55/(10^{15,12,9,6,3}))))/10^{12,9,6,3,0}) -> 0 | C55: 0 | D55: 0 | E55: 0 | F55: 0 | N55: 0 | P55: () | S55: ()
B56: =TRUNC(($N56-((10^{15,12,9,6,3})*INT($N56/(10^{15,12,9,6,3}))))/10^{12,9,6,3,0}) -> 0 | C56: 0 | D56: 0 | E56: 0 | F56: 0 | N56: 0 | P56: () | S56: ()
B57: =TRUNC(($N57-((10^{15,12,9,6,3})*INT($N57/(10^{15,12,9,6,3}))))/10^{12,9,6,3,0}) -> 0 | C57: 0 | D57: 0 | E57: 0 | F57: 0 | N57: 0 | P57: () | S57: ()
B58: =TRUNC(($N58-((10^{15,12,9,6,3})*INT($N58/(10^{15,12,9,6,3}))))/10^{12,9,6,3,0}) -> 0 | C58: 0 | D58: 0 | E58: 0 | F58: 0 | N58: 0 | P58: () | S58: ()
B59: =TRUNC(($N59-((10^{15,12,9,6,3})*INT($N59/(10^{15,12,9,6,3}))))/10^{12,9,6,3,0}) -> 0 | C59: 0 | D59: 0 | E59: 0 | F59: 0 | N59: 0 | P59: () | S59: ()
B60: =TRUNC(($N60-((10^{15,12,9,6,3})*INT($N60/(10^{15,12,9,6,3}))))/10^{12,9,6,3,0}) -> 0 | C60: 0 | D60: 0 | E60: 0 | F60: 0 | N60: =R60 -> 0 | P60: () | S60: ()
B61: =TRUNC(($N61-((10^{15,12,9,6,3})*INT($N61/(10^{15,12,9,6,3}))))/10^{12,9,6,3,0}) -> 0 | C61: 0 | D61: 0 | E61: 0 | F61: 0 | N61: 0 | P61: () | S61: ()
B62: =TRUNC(($N62-((10^{15,12,9,6,3})*INT($N62/(10^{15,12,9,6,3}))))/10^{12,9,6,3,0}) -> 0 | C62: 0 | D62: 0 | E62: 0 | F62: 0 | N62: 0 | P62: () | S62: ()
B63: =TRUNC(($N63-((10^{15,12,9,6,3})*INT($N63/(10^{15,12,9,6,3}))))/10^{12,9,6,3,0}) -> 0 | C63: 0 | D63: 0 | E63: 0 | F63: 0 | N63: 0 | P63: () | S63: ()
B64: =TRUNC(($N64-((10^{15,12,9,6,3})*INT($N64/(10^{15,12,9,6,3}))))/10^{12,9,6,3,0}) -> 0 | C64: 0 | D64: 0 | E64: 0 | F64: 0 | N64: 0 | P64: () | S64: ()
B65: =TRUNC(($N65-((10^{15,12,9,6,3})*INT($N65/(10^{15,12,9,6,3}))))/10^{12,9,6,3,0}) -> 0 | C65: 0 | D65: 0 | E65: 0 | F65: 0 | N65: 0 | P65: () | S65: ()
B66: =TRUNC(($N66-((10^{15,12,9,6,3})*INT($N66/(10^{15,12,9,6,3}))))/10^{12,9,6,3,0}) -> 0 | C66: 0 | D66: 0 | E66: 0 | F66: 0 | N66: 0 | P66: () | S66: ()
B67: =TRUNC(($N67-((10^{15,12,9,6,3})*INT($N67/(10^{15,12,9,6,3}))))/10^{12,9,6,3,0}) -> 0 | C67: 0 | D67: 0 | E67: 0 | F67: 0 | N67: 0 | P67: () | S67: ()
B68: =TRUNC(($N68-((10^{15,12,9,6,3})*INT($N68/(10^{15,12,9,6,3}))))/10^{12,9,6,3,0}) -> 0 | C68: 0 | D68: 0 | E68: 0 | F68: 0 | N68: 0 | P68: () | S68: ()
B69: =TRUNC(($N69-((10^{15,12,9,6,3})*INT($N69/(10^{15,12,9,6,3}))))/10^{12,9,6,3,0}) -> 0 | C69: 0 | D69: 0 | E69: 0 | F69: 0 | N69: 0 | P69: () | S69: ()
B70: =TRUNC(($N70-((10^{15,12,9,6,3})*INT($N70/(10^{15,12,9,6,3}))))/10^{12,9,6,3,0}) -> 0 | C70: 0 | D70: 0 | E70: 0 | F70: 0 | N70: 0 | P70: () | S70: ()
B71: =TRUNC(($N71-((10^{15,12,9,6,3})*INT($N71/(10^{15,12,9,6,3}))))/10^{12,9,6,3,0}) -> 0 | C71: 0 | D71: 0 | E71: 0 | F71: 0 | N71: 0 | P71: () | S71: ()
B72: =TRUNC(($N72-((10^{15,12,9,6,3})*INT($N72/(10^{15,12,9,6,3}))))/10^{12,9,6,3,0}) -> 0 | C72: 0 | D72: 0 | E72: 0 | F72: 0 | N72: 0 | P72: () | S72: ()
B73: =TRUNC(($N73-((10^{15,12,9,6,3})*INT($N73/(10^{15,12,9,6,3}))))/10^{12,9,6,3,0}) -> 0 | C73: 0 | D73: 0 | E73: 0 | F73: 0 | N73: 0 | P73: () | S73: ()
B74: =TRUNC(($N74-((10^{15,12,9,6,3})*INT($N74/(10^{15,12,9,6,3}))))/10^{12,9,6,3,0}) -> 0 | C74: 0 | D74: 0 | E74: 0 | F74: 0 | G74: =IF($N74<10^15,"",IF(OR(B74=1,AND(B74>=100,MOD(B74,100)=0)),IF(TRUNC(($N74-(10^12*INT($N74/(10^12)))))=0,_e_,_sp_),IF(B74<100,"",_sp_)))&IF(B74=1,INDEX(Sng,1,5),IF(B74<100,"",IF(B74=100,OCem,INDEX(Cem,1,TRUNC(B74/100)))))&IF(MOD(B74,100)=0,"",IF(B74=1,"",IF(OR(MOD(B74,100)>=20,MOD(B74,100)=10),IF(OR(B74>100,AND($N74>10^15,TRUNC(($N74-(10^12*INT($N74/(10^12)))))=0)),_e_,IF($N74>10^15,_sp_,"")),"")))&IF(MOD(B74,100)=0,"",IF(B74=1,"",IF(OR(MOD(B74,100)>=20,MOD(B74,100)=10),INDEX(Dez,1,TRUNC(MOD(B74,100)/10)),"")))&IF(MOD(B74,100)=0,"",IF(B74=1,"",IF(MOD(MOD(B74,100),10)<>0,IF(OR(B74>20,AND($N74>10^15,TRUNC(($N74-(10^12*INT($N74/(10^12)))))=0)),_e_,IF($N74>10^15,_sp_,"")),"")))&IF(B74=0,"",IF(B74=1,"",IF(MOD(MOD(B74,100),10)=0,"",IF(MOD(B74,100)<20,INDEX(Sml,1,_xlfn.MODE.SNGL(B74,100)),INDEX(Sml,1,_xlfn.MODE.SNGL(_xlfn.MODE.SNGL(B74,100),10)))))) & IF(B74<=1,"",INDEX(Plu,1,5)) ->  | H74: =IF($N74<10^12,"",IF(OR(C74=1,AND(C74>=100,_xlfn.MODE.SNGL(C74,100)=0)),IF(TRUNC(($N74-(10^9*INT($N74/(10^9)))))=0,_e_,_sp_),IF(C74<100,"",_sp_)))&IF(C74=1,INDEX(Sng,1,4),IF(C74<100,"",IF(C74=100,OCem,INDEX(Cem,1,TRUNC(C74/100)))))&IF(MOD(C74,100)=0,"",IF(C74=1,"",IF(OR(MOD(C74,100)>=20,MOD(C74,100)=10),IF(OR(C74>100,AND($N74>10^12,TRUNC(($N74-(10^9*INT($N74/(10^9)))))=0)),_e_,IF($N74>10^12,_sp_,"")),"")))&IF(MOD(C74,100)=0,"",IF(C74=1,"",IF(OR(MOD(C74,100)>=20,MOD(C74,100)=10),INDEX(Dez,1,TRUNC(MOD(C74,100)/10)),"")))&IF(MOD(C74,100)=0,"",IF(C74=1,"",IF(MOD(MOD(C74,100),10)<>0,IF(OR(C74>20,AND($N74>10^12,TRUNC(($N74-(10^9*INT($N74/(10^9)))))=0)),_e_,IF($N74>10^12,_sp_,"")),"")))&IF(C74=0,"",IF(C74=1,"",IF(MOD(MOD(C74,100),10)=0,"",IF(MOD(C74,100)<20,INDEX(Sml,1,_xlfn.MODE.SNGL(C74,100)),INDEX(Sml,1,_xlfn.MODE.SNGL(_xlfn.MODE.SNGL(C74,100),10)))))) & IF(C74<=1,"",INDEX(Plu,1,4)) ->  | I74: =IF($N74<10^9,"",IF(OR(D74=1,AND(D74>=100,_xlfn.MODE.SNGL(D74,100)=0)),IF(TRUNC(($N74-(10^6*INT($N74/(10^6)))))=0,_e_,_sp_),IF(D74<100,"",_sp_)))&IF(D74=1,INDEX(Sng,1,3),IF(D74<100,"",IF(D74=100,OCem,INDEX(Cem,1,TRUNC(D74/100)))))&IF(MOD(D74,100)=0,"",IF(D74=1,"",IF(OR(MOD(D74,100)>=20,MOD(D74,100)=10),IF(OR(D74>100,AND($N74>10^9,TRUNC(($N74-(10^6*INT($N74/(10^6)))))=0)),_e_,IF($N74>10^9,_sp_,"")),"")))&IF(MOD(D74,100)=0,"",IF(D74=1,"",IF(OR(MOD(D74,100)>=20,MOD(D74,100)=10),INDEX(Dez,1,TRUNC(MOD(D74,100)/10)),"")))&IF(MOD(D74,100)=0,"",IF(D74=1,"",IF(MOD(MOD(D74,100),10)<>0,IF(OR(D74>20,AND($N74>10^9,TRUNC(($N74-(10^6*INT($N74/(10^6)))))=0)),_e_,IF($N74>10^9,_sp_,"")),"")))&IF(D74=0,"",IF(D74=1,"",IF(MOD(MOD(D74,100),10)=0,"",IF(MOD(D74,100)<20,INDEX(Sml,1,_xlfn.MODE.SNGL(D74,100)),INDEX(Sml,1,_xlfn.MODE.SNGL(_xlfn.MODE.SNGL(D74,100),10)))))) & IF(D74<=1,"",INDEX(Plu,1,3)) ->  | J74: =IF($N74<10^6,"",IF(OR(E74=1,AND(E74>=100,_xlfn.MODE.SNGL(E74,100)=0)),IF(TRUNC(($N74-(10^3*INT($N74/(10^3)))))=0,_e_,_sp_),IF(E74<100,"",_sp_)))&IF(E74=1,INDEX(Sng,1,2),IF(E74<100,"",IF(E74=100,OCem,INDEX(Cem,1,TRUNC(E74/100)))))&IF(MOD(E74,100)=0,"",IF(E74=1,"",IF(OR(MOD(E74,100)>=20,MOD(E74,100)=10),IF(OR(E74>100,AND($N74>10^6,TRUNC(($N74-(10^3*INT($N74/(10^3)))))=0)),_e_,IF($N74>10^6,_sp_,"")),"")))&IF(MOD(E74,100)=0,"",IF(E74=1,"",IF(OR(MOD(E74,100)>=20,MOD(E74,100)=10),INDEX(Dez,1,TRUNC(MOD(E74,100)/10)),"")))&IF(MOD(E74,100)=0,"",IF(E74=1,"",IF(MOD(MOD(E74,100),10)<>0,IF(OR(E74>20,AND($N74>10^6,TRUNC(($N74-(10^3*INT($N74/(10^3)))))=0)),_e_,IF($N74>10^6,_sp_,"")),"")))&IF(E74=0,"",IF(E74=1,"",IF(MOD(MOD(E74,100),10)=0,"",IF(MOD(E74,100)<20,INDEX(Sml,1,_xlfn.MODE.SNGL(E74,100)),INDEX(Sml,1,_xlfn.MODE.SNGL(_xlfn.MODE.SNGL(E74,100),10)))))) & IF(E74<=1,"",INDEX(Plu,1,2)) ->  | K74: =IF($N74<10^3,"",IF(OR(F74=1,AND(F74>=100,_xlfn.MODE.SNGL(F74,100)=0)),IF(TRUNC(($N74-(10^0*INT($N74/(10^0)))))=0,_e_,_sp_),IF(F74<100,"",_sp_)))&IF(F74=1,INDEX(Sng,1,1),IF(F74<100,"",IF(F74=100,OCem,INDEX(Cem,1,TRUNC(F74/100)))))&IF(MOD(F74,100)=0,"",IF(F74=1,"",IF(OR(MOD(F74,100)>=20,MOD(F74,100)=10),IF(OR(F74>100,AND($N74>10^3,TRUNC(($N74-(10^0*INT($N74/(10^0)))))=0)),_e_,IF($N74>10^3,_sp_,"")),"")))&IF(MOD(F74,100)=0,"",IF(F74=1,"",IF(OR(MOD(F74,100)>=20,MOD(F74,100)=10),INDEX(Dez,1,TRUNC(MOD(F74,100)/10)),"")))&IF(MOD(F74,100)=0,"",IF(F74=1,"",IF(MOD(MOD(F74,100),10)<>0,IF(OR(F74>20,AND($N74>10^3,TRUNC(($N74-(10^0*INT($N74/(10^0)))))=0)),_e_,IF($N74>10^3,_sp_,"")),"")))&IF(F74=0,"",IF(F74=1,"",IF(MOD(MOD(F74,100),10)=0,"",IF(MOD(F74,100)<20,INDEX(Sml,1,_xlfn.MODE.SNGL(F74,100)),INDEX(Sml,1,_xlfn.MODE.SNGL(_xlfn.MODE.SNGL(F74,100),10)))))) & IF(F74<=1,"",INDEX(Plu,1,1)) ->  | L74: =IF($N74<1,"",IF(TRUNC($N74)=1," real",IF(AND($N74>=10^6,TRUNC($N74-10^6*INT($N74/10^6))=0)," de","") & " reais")) ->  | M74: =IF((ROUND($N74-TRUNC($N74),2)*100)=0,"",IF($N74>=1,_e_,"") & IF((ROUND($N74-TRUNC($N74),2)*100)=1,"um centavo",IF((ROUND($N74-TRUNC($N74),2)*100)>=20,INDEX(Dez,1,TRUNC((ROUND($N74-TRUNC($N74),2)*100)/10)) & IF(MOD((ROUND($N74-TRUNC($N74),2)*100),10)<>0,_e_ & INDEX(Sml,1,_xlfn.MODE.SNGL((ROUND($N74-TRUNC($N74),2)*100),10)),""),INDEX(Sml,1,(ROUND($N74-TRUNC($N74),2)*100))) & " centavos")) ->  | N74: 0 | O74: =G74&H74&I74&J74&K74&L74&M74 ->  | P74: =CONCATENATE("(",O74,")") -> () | S74: =P74 -> ()
B75: =TRUNC(($N75-((10^{15,12,9,6,3})*INT($N75/(10^{15,12,9,6,3}))))/10^{12,9,6,3,0}) -> 0 | C75: 0 | D75: 0 | E75: 0 | F75: 0 | N75: 0 | P75: () | S75: ()
B76: =TRUNC(($N76-((10^{15,12,9,6,3})*INT($N76/(10^{15,12,9,6,3}))))/10^{12,9,6,3,0}) -> 0 | C76: 0 | D76: 0 | E76: 0 | F76: 0 | N76: 0 | P76: () | S76: ()
B77: =TRUNC(($N77-((10^{15,12,9,6,3})*INT($N77/(10^{15,12,9,6,3}))))/10^{12,9,6,3,0}) -> 0 | C77: 0 | D77: 0 | E77: 0 | F77: 0 | N77: 0 | P77: () | S77: ()
B78: =TRUNC(($N78-((10^{15,12,9,6,3})*INT($N78/(10^{15,12,9,6,3}))))/10^{12,9,6,3,0}) -> 0 | C78: 0 | D78: 0 | E78: 0 | F78: 0 | N78: 0 | P78: () | S78: ()
B79: =TRUNC(($N79-((10^{15,12,9,6,3})*INT($N79/(10^{15,12,9,6,3}))))/10^{12,9,6,3,0}) -> 0 | C79: 0 | D79: 0 | E79: 0 | F79: 0 | N79: 0 | P79: () | S79: ()
B80: =TRUNC(($N80-((10^{15,12,9,6,3})*INT($N80/(10^{15,12,9,6,3}))))/10^{12,9,6,3,0}) -> 0 | C80: 0 | D80: 0 | E80: 0 | F80: 0 | N80: 0 | P80: () | S80: ()
B81: =TRUNC(($N81-((10^{15,12,9,6,3})*INT($N81/(10^{15,12,9,6,3}))))/10^{12,9,6,3,0}) -> 0 | C81: 0 | D81: 0 | E81: 0 | F81: 0 | N81: 0 | P81: () | S81: ()
B82: =TRUNC(($N82-((10^{15,12,9,6,3})*INT($N82/(10^{15,12,9,6,3}))))/10^{12,9,6,3,0}) -> 0 | C82: 0 | D82: 0 | E82: 0 | F82: 0 | N82: 0 | P82: () | S82: ()
B83: =TRUNC(($N83-((10^{15,12,9,6,3})*INT($N83/(10^{15,12,9,6,3}))))/10^{12,9,6,3,0}) -> 0 | C83: 0 | D83: 0 | E83: 0 | F83: 0 | N83: 0 | P83: () | S83: ()
B84: =TRUNC(($N84-((10^{15,12,9,6,3})*INT($N84/(10^{15,12,9,6,3}))))/10^{12,9,6,3,0}) -> 0 | C84: 0 | D84: 0 | E84: 0 | F84: 0 | N84: 0 | P84: () | S84: ()
B85: =TRUNC(($N85-((10^{15,12,9,6,3})*INT($N85/(10^{15,12,9,6,3}))))/10^{12,9,6,3,0}) -> 0 | C85: 0 | D85: 0 | E85: 0 | F85: 0 | N85: 0 | P85: () | S85: ()
B86: =TRUNC(($N86-((10^{15,12,9,6,3})*INT($N86/(10^{15,12,9,6,3}))))/10^{12,9,6,3,0}) -> 0 | C86: 0 | D86: 0 | E86: 0 | F86: 0 | N86: 0 | P86: () | S86: ()
B87: =TRUNC(($N87-((10^{15,12,9,6,3})*INT($N87/(10^{15,12,9,6,3}))))/10^{12,9,6,3,0}) -> 0 | C87: 0 | D87: 0 | E87: 0 | F87: 0 | N87: 0 | P87: () | S87: ()
B88: =TRUNC(($N88-((10^{15,12,9,6,3})*INT($N88/(10^{15,12,9,6,3}))))/10^{12,9,6,3,0}) -> 0 | C88: 0 | D88: 0 | E88: 0 | F88: 0 | N88: 0 | P88: () | S88: ()
B89: =TRUNC(($N89-((10^{15,12,9,6,3})*INT($N89/(10^{15,12,9,6,3}))))/10^{12,9,6,3,0}) -> 0 | C89: 0 | D89: 0 | E89: 0 | F89: 0 | N89: 0 | P89: () | S89: ()
B90: =TRUNC(($N90-((10^{15,12,9,6,3})*INT($N90/(10^{15,12,9,6,3}))))/10^{12,9,6,3,0}) -> 0 | C90: 0 | D90: 0 | E90: 0 | F90: 0 | N90: 0 | P90: () | S90: ()
B91: =TRUNC(($N91-((10^{15,12,9,6,3})*INT($N91/(10^{15,12,9,6,3}))))/10^{12,9,6,3,0}) -> 0 | C91: 0 | D91: 0 | E91: 0 | F91: 0 | N91: 0 | P91: () | S91: ()
B92: =TRUNC(($N92-((10^{15,12,9,6,3})*INT($N92/(10^{15,12,9,6,3}))))/10^{12,9,6,3,0}) -> 0 | C92: 0 | D92: 0 | E92: 0 | F92: 0 | N92: =R92 -> 0 | P92: () | S92: ()
B93: =TRUNC(($N93-((10^{15,12,9,6,3})*INT($N93/(10^{15,12,9,6,3}))))/10^{12,9,6,3,0}) -> 0 | C93: 0 | D93: 0 | E93: 0 | F93: 0 | N93: 0 | P93: () | S93: ()
B94: =TRUNC(($N94-((10^{15,12,9,6,3})*INT($N94/(10^{15,12,9,6,3}))))/10^{12,9,6,3,0}) -> 0 | C94: 0 | D94: 0 | E94: 0 | F94: 0 | N94: 0 | P94: () | S94: ()
B95: =TRUNC(($N95-((10^{15,12,9,6,3})*INT($N95/(10^{15,12,9,6,3}))))/10^{12,9,6,3,0}) -> 0 | C95: 0 | D95: 0 | E95: 0 | F95: 0 | N95: 0 | P95: () | S95: ()
B96: =TRUNC(($N96-((10^{15,12,9,6,3})*INT($N96/(10^{15,12,9,6,3}))))/10^{12,9,6,3,0}) -> 0 | C96: 0 | D96: 0 | E96: 0 | F96: 0 | N96: 0 | P96: () | S96: ()
B97: =TRUNC(($N97-((10^{15,12,9,6,3})*INT($N97/(10^{15,12,9,6,3}))))/10^{12,9,6,3,0}) -> 0 | C97: 0 | D97: 0 | E97: 0 | F97: 0 | N97: 0 | P97: () | S97: ()
B98: =TRUNC(($N98-((10^{15,12,9,6,3})*INT($N98/(10^{15,12,9,6,3}))))/10^{12,9,6,3,0}) -> 0 | C98: 0 | D98: 0 | E98: 0 | F98: 0 | N98: 0 | P98: () | S98: ()
B99: =TRUNC(($N99-((10^{15,12,9,6,3})*INT($N99/(10^{15,12,9,6,3}))))/10^{12,9,6,3,0}) -> 0 | C99: 0 | D99: 0 | E99: 0 | F99: 0 | N99: 0 | P99: () | S99: ()
B100: =TRUNC(($N100-((10^{15,12,9,6,3})*INT($N100/(10^{15,12,9,6,3}))))/10^{12,9,6,3,0}) -> 0 | C100: 0 | D100: 0 | E100: 0 | F100: 0 | N100: 0 | P100: () | S100: ()
B101: =TRUNC(($N101-((10^{15,12,9,6,3})*INT($N101/(10^{15,12,9,6,3}))))/10^{12,9,6,3,0}) -> 0 | C101: 0 | D101: 0 | E101: 0 | F101: 0 | N101: 0 | P101: () | S101: ()
B102: =TRUNC(($N102-((10^{15,12,9,6,3})*INT($N102/(10^{15,12,9,6,3}))))/10^{12,9,6,3,0}) -> 0 | C102: 0 | D102: 0 | E102: 0 | F102: 0 | N102: 0 | P102: () | S102: ()
B103: =TRUNC(($N103-((10^{15,12,9,6,3})*INT($N103/(10^{15,12,9,6,3}))))/10^{12,9,6,3,0}) -> 0 | C103: 0 | D103: 0 | E103: 0 | F103: 0 | N103: 0 | P103: () | S103: ()
B104: =TRUNC(($N104-((10^{15,12,9,6,3})*INT($N104/(10^{15,12,9,6,3}))))/10^{12,9,6,3,0}) -> 0 | C104: 0 | D104: 0 | E104: 0 | F104: 0 | N104: 0 | P104: () | S104: ()
B105: =TRUNC(($N105-((10^{15,12,9,6,3})*INT($N105/(10^{15,12,9,6,3}))))/10^{12,9,6,3,0}) -> 0 | C105: 0 | D105: 0 | E105: 0 | F105: 0 | N105: 0 | P105: () | S105: ()
B106: =TRUNC(($N106-((10^{15,12,9,6,3})*INT($N106/(10^{15,12,9,6,3}))))/10^{12,9,6,3,0}) -> 0 | C106: 0 | D106: 0 | E106: 0 | F106: 0 | G106: =IF($N106<10^15,"",IF(OR(B106=1,AND(B106>=100,MOD(B106,100)=0)),IF(TRUNC(($N106-(10^12*INT($N106/(10^12)))))=0,_e_,_sp_),IF(B106<100,"",_sp_)))&IF(B106=1,INDEX(Sng,1,5),IF(B106<100,"",IF(B106=100,OCem,INDEX(Cem,1,TRUNC(B106/100)))))&IF(MOD(B106,100)=0,"",IF(B106=1,"",IF(OR(MOD(B106,100)>=20,MOD(B106,100)=10),IF(OR(B106>100,AND($N106>10^15,TRUNC(($N106-(10^12*INT($N106/(10^12)))))=0)),_e_,IF($N106>10^15,_sp_,"")),"")))&IF(MOD(B106,100)=0,"",IF(B106=1,"",IF(OR(MOD(B106,100)>=20,MOD(B106,100)=10),INDEX(Dez,1,TRUNC(MOD(B106,100)/10)),"")))&IF(MOD(B106,100)=0,"",IF(B106=1,"",IF(MOD(MOD(B106,100),10)<>0,IF(OR(B106>20,AND($N106>10^15,TRUNC(($N106-(10^12*INT($N106/(10^12)))))=0)),_e_,IF($N106>10^15,_sp_,"")),"")))&IF(B106=0,"",IF(B106=1,"",IF(MOD(MOD(B106,100),10)=0,"",IF(MOD(B106,100)<20,INDEX(Sml,1,_xlfn.MODE.SNGL(B106,100)),INDEX(Sml,1,_xlfn.MODE.SNGL(_xlfn.MODE.SNGL(B106,100),10)))))) & IF(B106<=1,"",INDEX(Plu,1,5)) ->  | H106: =IF($N106<10^12,"",IF(OR(C106=1,AND(C106>=100,_xlfn.MODE.SNGL(C106,100)=0)),IF(TRUNC(($N106-(10^9*INT($N106/(10^9)))))=0,_e_,_sp_),IF(C106<100,"",_sp_)))&IF(C106=1,INDEX(Sng,1,4),IF(C106<100,"",IF(C106=100,OCem,INDEX(Cem,1,TRUNC(C106/100)))))&IF(MOD(C106,100)=0,"",IF(C106=1,"",IF(OR(MOD(C106,100)>=20,MOD(C106,100)=10),IF(OR(C106>100,AND($N106>10^12,TRUNC(($N106-(10^9*INT($N106/(10^9)))))=0)),_e_,IF($N106>10^12,_sp_,"")),"")))&IF(MOD(C106,100)=0,"",IF(C106=1,"",IF(OR(MOD(C106,100)>=20,MOD(C106,100)=10),INDEX(Dez,1,TRUNC(MOD(C106,100)/10)),"")))&IF(MOD(C106,100)=0,"",IF(C106=1,"",IF(MOD(MOD(C106,100),10)<>0,IF(OR(C106>20,AND($N106>10^12,TRUNC(($N106-(10^9*INT($N106/(10^9)))))=0)),_e_,IF($N106>10^12,_sp_,"")),"")))&IF(C106=0,"",IF(C106=1,"",IF(MOD(MOD(C106,100),10)=0,"",IF(MOD(C106,100)<20,INDEX(Sml,1,_xlfn.MODE.SNGL(C106,100)),INDEX(Sml,1,_xlfn.MODE.SNGL(_xlfn.MODE.SNGL(C106,100),10)))))) & IF(C106<=1,"",INDEX(Plu,1,4)) ->  | I106: =IF($N106<10^9,"",IF(OR(D106=1,AND(D106>=100,_xlfn.MODE.SNGL(D106,100)=0)),IF(TRUNC(($N106-(10^6*INT($N106/(10^6)))))=0,_e_,_sp_),IF(D106<100,"",_sp_)))&IF(D106=1,INDEX(Sng,1,3),IF(D106<100,"",IF(D106=100,OCem,INDEX(Cem,1,TRUNC(D106/100)))))&IF(MOD(D106,100)=0,"",IF(D106=1,"",IF(OR(MOD(D106,100)>=20,MOD(D106,100)=10),IF(OR(D106>100,AND($N106>10^9,TRUNC(($N106-(10^6*INT($N106/(10^6)))))=0)),_e_,IF($N106>10^9,_sp_,"")),"")))&IF(MOD(D106,100)=0,"",IF(D106=1,"",IF(OR(MOD(D106,100)>=20,MOD(D106,100)=10),INDEX(Dez,1,TRUNC(MOD(D106,100)/10)),"")))&IF(MOD(D106,100)=0,"",IF(D106=1,"",IF(MOD(MOD(D106,100),10)<>0,IF(OR(D106>20,AND($N106>10^9,TRUNC(($N106-(10^6*INT($N106/(10^6)))))=0)),_e_,IF($N106>10^9,_sp_,"")),"")))&IF(D106=0,"",IF(D106=1,"",IF(MOD(MOD(D106,100),10)=0,"",IF(MOD(D106,100)<20,INDEX(Sml,1,_xlfn.MODE.SNGL(D106,100)),INDEX(Sml,1,_xlfn.MODE.SNGL(_xlfn.MODE.SNGL(D106,100),10)))))) & IF(D106<=1,"",INDEX(Plu,1,3)) ->  | J106: =IF($N106<10^6,"",IF(OR(E106=1,AND(E106>=100,_xlfn.MODE.SNGL(E106,100)=0)),IF(TRUNC(($N106-(10^3*INT($N106/(10^3)))))=0,_e_,_sp_),IF(E106<100,"",_sp_)))&IF(E106=1,INDEX(Sng,1,2),IF(E106<100,"",IF(E106=100,OCem,INDEX(Cem,1,TRUNC(E106/100)))))&IF(MOD(E106,100)=0,"",IF(E106=1,"",IF(OR(MOD(E106,100)>=20,MOD(E106,100)=10),IF(OR(E106>100,AND($N106>10^6,TRUNC(($N106-(10^3*INT($N106/(10^3)))))=0)),_e_,IF($N106>10^6,_sp_,"")),"")))&IF(MOD(E106,100)=0,"",IF(E106=1,"",IF(OR(MOD(E106,100)>=20,MOD(E106,100)=10),INDEX(Dez,1,TRUNC(MOD(E106,100)/10)),"")))&IF(MOD(E106,100)=0,"",IF(E106=1,"",IF(MOD(MOD(E106,100),10)<>0,IF(OR(E106>20,AND($N106>10^6,TRUNC(($N106-(10^3*INT($N106/(10^3)))))=0)),_e_,IF($N106>10^6,_sp_,"")),"")))&IF(E106=0,"",IF(E106=1,"",IF(MOD(MOD(E106,100),10)=0,"",IF(MOD(E106,100)<20,INDEX(Sml,1,_xlfn.MODE.SNGL(E106,100)),INDEX(Sml,1,_xlfn.MODE.SNGL(_xlfn.MODE.SNGL(E106,100),10)))))) & IF(E106<=1,"",INDEX(Plu,1,2)) ->  | K106: =IF($N106<10^3,"",IF(OR(F106=1,AND(F106>=100,_xlfn.MODE.SNGL(F106,100)=0)),IF(TRUNC(($N106-(10^0*INT($N106/(10^0)))))=0,_e_,_sp_),IF(F106<100,"",_sp_)))&IF(F106=1,INDEX(Sng,1,1),IF(F106<100,"",IF(F106=100,OCem,INDEX(Cem,1,TRUNC(F106/100)))))&IF(MOD(F106,100)=0,"",IF(F106=1,"",IF(OR(MOD(F106,100)>=20,MOD(F106,100)=10),IF(OR(F106>100,AND($N106>10^3,TRUNC(($N106-(10^0*INT($N106/(10^0)))))=0)),_e_,IF($N106>10^3,_sp_,"")),"")))&IF(MOD(F106,100)=0,"",IF(F106=1,"",IF(OR(MOD(F106,100)>=20,MOD(F106,100)=10),INDEX(Dez,1,TRUNC(MOD(F106,100)/10)),"")))&IF(MOD(F106,100)=0,"",IF(F106=1,"",IF(MOD(MOD(F106,100),10)<>0,IF(OR(F106>20,AND($N106>10^3,TRUNC(($N106-(10^0*INT($N106/(10^0)))))=0)),_e_,IF($N106>10^3,_sp_,"")),"")))&IF(F106=0,"",IF(F106=1,"",IF(MOD(MOD(F106,100),10)=0,"",IF(MOD(F106,100)<20,INDEX(Sml,1,_xlfn.MODE.SNGL(F106,100)),INDEX(Sml,1,_xlfn.MODE.SNGL(_xlfn.MODE.SNGL(F106,100),10)))))) & IF(F106<=1,"",INDEX(Plu,1,1)) ->  | L106: =IF($N106<1,"",IF(TRUNC($N106)=1," real",IF(AND($N106>=10^6,TRUNC($N106-10^6*INT($N106/10^6))=0)," de","") & " reais")) ->  | M106: =IF((ROUND($N106-TRUNC($N106),2)*100)=0,"",IF($N106>=1,_e_,"") & IF((ROUND($N106-TRUNC($N106),2)*100)=1,"um centavo",IF((ROUND($N106-TRUNC($N106),2)*100)>=20,INDEX(Dez,1,TRUNC((ROUND($N106-TRUNC($N106),2)*100)/10)) & IF(MOD((ROUND($N106-TRUNC($N106),2)*100),10)<>0,_e_ & INDEX(Sml,1,_xlfn.MODE.SNGL((ROUND($N106-TRUNC($N106),2)*100),10)),""),INDEX(Sml,1,(ROUND($N106-TRUNC($N106),2)*100))) & " centavos")) ->  | N106: 0 | O106: =G106&H106&I106&J106&K106&L106&M106 ->  | P106: =CONCATENATE("(",O106,")") -> () | S106: =P106 -> ()
B107: =TRUNC(($N107-((10^{15,12,9,6,3})*INT($N107/(10^{15,12,9,6,3}))))/10^{12,9,6,3,0}) -> 0 | C107: 0 | D107: 0 | E107: 0 | F107: 0 | N107: 0 | P107: () | S107: ()
B108: =TRUNC(($N108-((10^{15,12,9,6,3})*INT($N108/(10^{15,12,9,6,3}))))/10^{12,9,6,3,0}) -> 0 | C108: 0 | D108: 0 | E108: 0 | F108: 0 | N108: 0 | P108: () | S108: ()
B109: =TRUNC(($N109-((10^{15,12,9,6,3})*INT($N109/(10^{15,12,9,6,3}))))/10^{12,9,6,3,0}) -> 0 | C109: 0 | D109: 0 | E109: 0 | F109: 0 | N109: 0 | P109: () | S109: ()
B110: =TRUNC(($N110-((10^{15,12,9,6,3})*INT($N110/(10^{15,12,9,6,3}))))/10^{12,9,6,3,0}) -> 0 | C110: 0 | D110: 0 | E110: 0 | F110: 0 | N110: 0 | P110: () | S110: ()
B111: =TRUNC(($N111-((10^{15,12,9,6,3})*INT($N111/(10^{15,12,9,6,3}))))/10^{12,9,6,3,0}) -> 0 | C111: 0 | D111: 0 | E111: 0 | F111: 0 | N111: 0 | P111: () | S111: ()
B112: =TRUNC(($N112-((10^{15,12,9,6,3})*INT($N112/(10^{15,12,9,6,3}))))/10^{12,9,6,3,0}) -> 0 | C112: 0 | D112: 0 | E112: 0 | F112: 0 | N112: 0 | P112: () | S112: ()
B113: =TRUNC(($N113-((10^{15,12,9,6,3})*INT($N113/(10^{15,12,9,6,3}))))/10^{12,9,6,3,0}) -> 0 | C113: 0 | D113: 0 | E113: 0 | F113: 0 | N113: 0 | P113: () | S113: ()
B114: =TRUNC(($N114-((10^{15,12,9,6,3})*INT($N114/(10^{15,12,9,6,3}))))/10^{12,9,6,3,0}) -> 0 | C114: 0 | D114: 0 | E114: 0 | F114: 0 | N114: 0 | P114: () | S114: ()
B115: =TRUNC(($N115-((10^{15,12,9,6,3})*INT($N115/(10^{15,12,9,6,3}))))/10^{12,9,6,3,0}) -> 0 | C115: 0 | D115: 0 | E115: 0 | F115: 0 | N115: 0 | P115: () | S115: ()
B116: =TRUNC(($N116-((10^{15,12,9,6,3})*INT($N116/(10^{15,12,9,6,3}))))/10^{12,9,6,3,0}) -> 0 | C116: 0 | D116: 0 | E116: 0 | F116: 0 | N116: 0 | P116: () | S116: ()
B117: =TRUNC(($N117-((10^{15,12,9,6,3})*INT($N117/(10^{15,12,9,6,3}))))/10^{12,9,6,3,0}) -> 0 | C117: 0 | D117: 0 | E117: 0 | F117: 0 | N117: 0 | P117: () | S117: ()
B118: =TRUNC(($N118-((10^{15,12,9,6,3})*INT($N118/(10^{15,12,9,6,3}))))/10^{12,9,6,3,0}) -> 0 | C118: 0 | D118: 0 | E118: 0 | F118: 0 | N118: 0 | P118: () | S118: ()
B119: =TRUNC(($N119-((10^{15,12,9,6,3})*INT($N119/(10^{15,12,9,6,3}))))/10^{12,9,6,3,0}) -> 0 | C119: 0 | D119: 0 | E119: 0 | F119: 0 | N119: 0 | P119: () | S119: ()
B120: =TRUNC(($N120-((10^{15,12,9,6,3})*INT($N120/(10^{15,12,9,6,3}))))/10^{12,9,6,3,0}) -> 0 | C120: 0 | D120: 0 | E120: 0 | F120: 0 | N120: 0 | P120: () | S120: ()
B121: =TRUNC(($N121-((10^{15,12,9,6,3})*INT($N121/(10^{15,12,9,6,3}))))/10^{12,9,6,3,0}) -> 0 | C121: 0 | D121: 0 | E121: 0 | F121: 0 | N121: 0 | P121: () | S121: ()
B122: =TRUNC(($N122-((10^{15,12,9,6,3})*INT($N122/(10^{15,12,9,6,3}))))/10^{12,9,6,3,0}) -> 0 | C122: 0 | D122: 0 | E122: 0 | F122: 0 | N122: 0 | P122: () | S122: ()
B123: =TRUNC(($N123-((10^{15,12,9,6,3})*INT($N123/(10^{15,12,9,6,3}))))/10^{12,9,6,3,0}) -> 0 | C123: 0 | D123: 0 | E123: 0 | F123: 0 | N123: 0 | P123: () | S123: ()
B124: =TRUNC(($N124-((10^{15,12,9,6,3})*INT($N124/(10^{15,12,9,6,3}))))/10^{12,9,6,3,0}) -> 0 | C124: 0 | D124: 0 | E124: 0 | F124: 0 | N124: =R124 -> 0 | P124: () | S124: ()
B125: =TRUNC(($N125-((10^{15,12,9,6,3})*INT($N125/(10^{15,12,9,6,3}))))/10^{12,9,6,3,0}) -> 0 | C125: 0 | D125: 0 | E125: 0 | F125: 0 | N125: 0 | P125: () | S125: ()
B126: =TRUNC(($N126-((10^{15,12,9,6,3})*INT($N126/(10^{15,12,9,6,3}))))/10^{12,9,6,3,0}) -> 0 | C126: 0 | D126: 0 | E126: 0 | F126: 0 | N126: 0 | P126: () | S126: ()
B127: =TRUNC(($N127-((10^{15,12,9,6,3})*INT($N127/(10^{15,12,9,6,3}))))/10^{12,9,6,3,0}) -> 0 | C127: 0 | D127: 0 | E127: 0 | F127: 0 | N127: 0 | P127: () | S127: ()
B128: =TRUNC(($N128-((10^{15,12,9,6,3})*INT($N128/(10^{15,12,9,6,3}))))/10^{12,9,6,3,0}) -> 0 | C128: 0 | D128: 0 | E128: 0 | F128: 0 | N128: 0 | P128: () | S128: ()
B129: =TRUNC(($N129-((10^{15,12,9,6,3})*INT($N129/(10^{15,12,9,6,3}))))/10^{12,9,6,3,0}) -> 0 | C129: 0 | D129: 0 | E129: 0 | F129: 0 | N129: 0 | P129: () | S129: ()
B130: =TRUNC(($N130-((10^{15,12,9,6,3})*INT($N130/(10^{15,12,9,6,3}))))/10^{12,9,6,3,0}) -> 0 | C130: 0 | D130: 0 | E130: 0 | F130: 0 | N130: 0 | P130: () | S130: ()
B131: =TRUNC(($N131-((10^{15,12,9,6,3})*INT($N131/(10^{15,12,9,6,3}))))/10^{12,9,6,3,0}) -> 0 | C131: 0 | D131: 0 | E131: 0 | F131: 0 | N131: 0 | P131: () | S131: ()
B132: =TRUNC(($N132-((10^{15,12,9,6,3})*INT($N132/(10^{15,12,9,6,3}))))/10^{12,9,6,3,0}) -> 0 | C132: 0 | D132: 0 | E132: 0 | F132: 0 | N132: 0 | P132: () | S132: ()
B133: =TRUNC(($N133-((10^{15,12,9,6,3})*INT($N133/(10^{15,12,9,6,3}))))/10^{12,9,6,3,0}) -> 0 | C133: 0 | D133: 0 | E133: 0 | F133: 0 | N133: 0 | P133: () | S133: ()
B134: =TRUNC(($N134-((10^{15,12,9,6,3})*INT($N134/(10^{15,12,9,6,3}))))/10^{12,9,6,3,0}) -> 0 | C134: 0 | D134: 0 | E134: 0 | F134: 0 | N134: 0 | P134: () | S134: ()
B135: =TRUNC(($N135-((10^{15,12,9,6,3})*INT($N135/(10^{15,12,9,6,3}))))/10^{12,9,6,3,0}) -> 0 | C135: 0 | D135: 0 | E135: 0 | F135: 0 | N135: 0 | P135: () | S135: ()
B136: =TRUNC(($N136-((10^{15,12,9,6,3})*INT($N136/(10^{15,12,9,6,3}))))/10^{12,9,6,3,0}) -> 0 | C136: 0 | D136: 0 | E136: 0 | F136: 0 | N136: 0 | P136: () | S136: ()
B137: =TRUNC(($N137-((10^{15,12,9,6,3})*INT($N137/(10^{15,12,9,6,3}))))/10^{12,9,6,3,0}) -> 0 | C137: 0 | D137: 0 | E137: 0 | F137: 0 | N137: 0 | P137: () | S137: ()
B138: =TRUNC(($N138-((10^{15,12,9,6,3})*INT($N138/(10^{15,12,9,6,3}))))/10^{12,9,6,3,0}) -> 0 | C138: 0 | D138: 0 | E138: 0 | F138: 0 | G138: =IF($N138<10^15,"",IF(OR(B138=1,AND(B138>=100,MOD(B138,100)=0)),IF(TRUNC(($N138-(10^12*INT($N138/(10^12)))))=0,_e_,_sp_),IF(B138<100,"",_sp_)))&IF(B138=1,INDEX(Sng,1,5),IF(B138<100,"",IF(B138=100,OCem,INDEX(Cem,1,TRUNC(B138/100)))))&IF(MOD(B138,100)=0,"",IF(B138=1,"",IF(OR(MOD(B138,100)>=20,MOD(B138,100)=10),IF(OR(B138>100,AND($N138>10^15,TRUNC(($N138-(10^12*INT($N138/(10^12)))))=0)),_e_,IF($N138>10^15,_sp_,"")),"")))&IF(MOD(B138,100)=0,"",IF(B138=1,"",IF(OR(MOD(B138,100)>=20,MOD(B138,100)=10),INDEX(Dez,1,TRUNC(MOD(B138,100)/10)),"")))&IF(MOD(B138,100)=0,"",IF(B138=1,"",IF(MOD(MOD(B138,100),10)<>0,IF(OR(B138>20,AND($N138>10^15,TRUNC(($N138-(10^12*INT($N138/(10^12)))))=0)),_e_,IF($N138>10^15,_sp_,"")),"")))&IF(B138=0,"",IF(B138=1,"",IF(MOD(MOD(B138,100),10)=0,"",IF(MOD(B138,100)<20,INDEX(Sml,1,_xlfn.MODE.SNGL(B138,100)),INDEX(Sml,1,_xlfn.MODE.SNGL(_xlfn.MODE.SNGL(B138,100),10)))))) & IF(B138<=1,"",INDEX(Plu,1,5)) ->  | H138: =IF($N138<10^12,"",IF(OR(C138=1,AND(C138>=100,_xlfn.MODE.SNGL(C138,100)=0)),IF(TRUNC(($N138-(10^9*INT($N138/(10^9)))))=0,_e_,_sp_),IF(C138<100,"",_sp_)))&IF(C138=1,INDEX(Sng,1,4),IF(C138<100,"",IF(C138=100,OCem,INDEX(Cem,1,TRUNC(C138/100)))))&IF(MOD(C138,100)=0,"",IF(C138=1,"",IF(OR(MOD(C138,100)>=20,MOD(C138,100)=10),IF(OR(C138>100,AND($N138>10^12,TRUNC(($N138-(10^9*INT($N138/(10^9)))))=0)),_e_,IF($N138>10^12,_sp_,"")),"")))&IF(MOD(C138,100)=0,"",IF(C138=1,"",IF(OR(MOD(C138,100)>=20,MOD(C138,100)=10),INDEX(Dez,1,TRUNC(MOD(C138,100)/10)),"")))&IF(MOD(C138,100)=0,"",IF(C138=1,"",IF(MOD(MOD(C138,100),10)<>0,IF(OR(C138>20,AND($N138>10^12,TRUNC(($N138-(10^9*INT($N138/(10^9)))))=0)),_e_,IF($N138>10^12,_sp_,"")),"")))&IF(C138=0,"",IF(C138=1,"",IF(MOD(MOD(C138,100),10)=0,"",IF(MOD(C138,100)<20,INDEX(Sml,1,_xlfn.MODE.SNGL(C138,100)),INDEX(Sml,1,_xlfn.MODE.SNGL(_xlfn.MODE.SNGL(C138,100),10)))))) & IF(C138<=1,"",INDEX(Plu,1,4)) ->  | I138: =IF($N138<10^9,"",IF(OR(D138=1,AND(D138>=100,_xlfn.MODE.SNGL(D138,100)=0)),IF(TRUNC(($N138-(10^6*INT($N138/(10^6)))))=0,_e_,_sp_),IF(D138<100,"",_sp_)))&IF(D138=1,INDEX(Sng,1,3),IF(D138<100,"",IF(D138=100,OCem,INDEX(Cem,1,TRUNC(D138/100)))))&IF(MOD(D138,100)=0,"",IF(D138=1,"",IF(OR(MOD(D138,100)>=20,MOD(D138,100)=10),IF(OR(D138>100,AND($N138>10^9,TRUNC(($N138-(10^6*INT($N138/(10^6)))))=0)),_e_,IF($N138>10^9,_sp_,"")),"")))&IF(MOD(D138,100)=0,"",IF(D138=1,"",IF(OR(MOD(D138,100)>=20,MOD(D138,100)=10),INDEX(Dez,1,TRUNC(MOD(D138,100)/10)),"")))&IF(MOD(D138,100)=0,"",IF(D138=1,"",IF(MOD(MOD(D138,100),10)<>0,IF(OR(D138>20,AND($N138>10^9,TRUNC(($N138-(10^6*INT($N138/(10^6)))))=0)),_e_,IF($N138>10^9,_sp_,"")),"")))&IF(D138=0,"",IF(D138=1,"",IF(MOD(MOD(D138,100),10)=0,"",IF(MOD(D138,100)<20,INDEX(Sml,1,_xlfn.MODE.SNGL(D138,100)),INDEX(Sml,1,_xlfn.MODE.SNGL(_xlfn.MODE.SNGL(D138,100),10)))))) & IF(D138<=1,"",INDEX(Plu,1,3)) ->  | J138: =IF($N138<10^6,"",IF(OR(E138=1,AND(E138>=100,_xlfn.MODE.SNGL(E138,100)=0)),IF(TRUNC(($N138-(10^3*INT($N138/(10^3)))))=0,_e_,_sp_),IF(E138<100,"",_sp_)))&IF(E138=1,INDEX(Sng,1,2),IF(E138<100,"",IF(E138=100,OCem,INDEX(Cem,1,TRUNC(E138/100)))))&IF(MOD(E138,100)=0,"",IF(E138=1,"",IF(OR(MOD(E138,100)>=20,MOD(E138,100)=10),IF(OR(E138>100,AND($N138>10^6,TRUNC(($N138-(10^3*INT($N138/(10^3)))))=0)),_e_,IF($N138>10^6,_sp_,"")),"")))&IF(MOD(E138,100)=0,"",IF(E138=1,"",IF(OR(MOD(E138,100)>=20,MOD(E138,100)=10),INDEX(Dez,1,TRUNC(MOD(E138,100)/10)),"")))&IF(MOD(E138,100)=0,"",IF(E138=1,"",IF(MOD(MOD(E138,100),10)<>0,IF(OR(E138>20,AND($N138>10^6,TRUNC(($N138-(10^3*INT($N138/(10^3)))))=0)),_e_,IF($N138>10^6,_sp_,"")),"")))&IF(E138=0,"",IF(E138=1,"",IF(MOD(MOD(E138,100),10)=0,"",IF(MOD(E138,100)<20,INDEX(Sml,1,_xlfn.MODE.SNGL(E138,100)),INDEX(Sml,1,_xlfn.MODE.SNGL(_xlfn.MODE.SNGL(E138,100),10)))))) & IF(E138<=1,"",INDEX(Plu,1,2)) ->  | K138: =IF($N138<10^3,"",IF(OR(F138=1,AND(F138>=100,_xlfn.MODE.SNGL(F138,100)=0)),IF(TRUNC(($N138-(10^0*INT($N138/(10^0)))))=0,_e_,_sp_),IF(F138<100,"",_sp_)))&IF(F138=1,INDEX(Sng,1,1),IF(F138<100,"",IF(F138=100,OCem,INDEX(Cem,1,TRUNC(F138/100)))))&IF(MOD(F138,100)=0,"",IF(F138=1,"",IF(OR(MOD(F138,100)>=20,MOD(F138,100)=10),IF(OR(F138>100,AND($N138>10^3,TRUNC(($N138-(10^0*INT($N138/(10^0)))))=0)),_e_,IF($N138>10^3,_sp_,"")),"")))&IF(MOD(F138,100)=0,"",IF(F138=1,"",IF(OR(MOD(F138,100)>=20,MOD(F138,100)=10),INDEX(Dez,1,TRUNC(MOD(F138,100)/10)),"")))&IF(MOD(F138,100)=0,"",IF(F138=1,"",IF(MOD(MOD(F138,100),10)<>0,IF(OR(F138>20,AND($N138>10^3,TRUNC(($N138-(10^0*INT($N138/(10^0)))))=0)),_e_,IF($N138>10^3,_sp_,"")),"")))&IF(F138=0,"",IF(F138=1,"",IF(MOD(MOD(F138,100),10)=0,"",IF(MOD(F138,100)<20,INDEX(Sml,1,_xlfn.MODE.SNGL(F138,100)),INDEX(Sml,1,_xlfn.MODE.SNGL(_xlfn.MODE.SNGL(F138,100),10)))))) & IF(F138<=1,"",INDEX(Plu,1,1)) ->  | L138: =IF($N138<1,"",IF(TRUNC($N138)=1," real",IF(AND($N138>=10^6,TRUNC($N138-10^6*INT($N138/10^6))=0)," de","") & " reais")) ->  | M138: =IF((ROUND($N138-TRUNC($N138),2)*100)=0,"",IF($N138>=1,_e_,"") & IF((ROUND($N138-TRUNC($N138),2)*100)=1,"um centavo",IF((ROUND($N138-TRUNC($N138),2)*100)>=20,INDEX(Dez,1,TRUNC((ROUND($N138-TRUNC($N138),2)*100)/10)) & IF(MOD((ROUND($N138-TRUNC($N138),2)*100),10)<>0,_e_ & INDEX(Sml,1,_xlfn.MODE.SNGL((ROUND($N138-TRUNC($N138),2)*100),10)),""),INDEX(Sml,1,(ROUND($N138-TRUNC($N138),2)*100))) & " centavos")) ->  | N138: 0 | O138: =G138&H138&I138&J138&K138&L138&M138 ->  | P138: =CONCATENATE("(",O138,")") -> () | S138: =P138 -> ()
B139: =TRUNC(($N139-((10^{15,12,9,6,3})*INT($N139/(10^{15,12,9,6,3}))))/10^{12,9,6,3,0}) -> 0 | C139: 0 | D139: 0 | E139: 0 | F139: 0 | N139: 0 | P139: () | S139: ()
B140: =TRUNC(($N140-((10^{15,12,9,6,3})*INT($N140/(10^{15,12,9,6,3}))))/10^{12,9,6,3,0}) -> 0 | C140: 0 | D140: 0 | E140: 0 | F140: 0 | N140: 0 | P140: () | S140: ()
B141: =TRUNC(($N141-((10^{15,12,9,6,3})*INT($N141/(10^{15,12,9,6,3}))))/10^{12,9,6,3,0}) -> 0 | C141: 0 | D141: 0 | E141: 0 | F141: 0 | N141: 0 | P141: () | S141: ()
B142: =TRUNC(($N142-((10^{15,12,9,6,3})*INT($N142/(10^{15,12,9,6,3}))))/10^{12,9,6,3,0}) -> 0 | C142: 0 | D142: 0 | E142: 0 | F142: 0 | N142: 0 | P142: () | S142: ()
B143: =TRUNC(($N143-((10^{15,12,9,6,3})*INT($N143/(10^{15,12,9,6,3}))))/10^{12,9,6,3,0}) -> 0 | C143: 0 | D143: 0 | E143: 0 | F143: 0 | N143: 0 | P143: () | S143: ()
B144: =TRUNC(($N144-((10^{15,12,9,6,3})*INT($N144/(10^{15,12,9,6,3}))))/10^{12,9,6,3,0}) -> 0 | C144: 0 | D144: 0 | E144: 0 | F144: 0 | N144: 0 | P144: () | S144: ()
B145: =TRUNC(($N145-((10^{15,12,9,6,3})*INT($N145/(10^{15,12,9,6,3}))))/10^{12,9,6,3,0}) -> 0 | C145: 0 | D145: 0 | E145: 0 | F145: 0 | N145: 0 | P145: () | S145: ()
B146: =TRUNC(($N146-((10^{15,12,9,6,3})*INT($N146/(10^{15,12,9,6,3}))))/10^{12,9,6,3,0}) -> 0 | C146: 0 | D146: 0 | E146: 0 | F146: 0 | N146: 0 | P146: () | S146: ()
B147: =TRUNC(($N147-((10^{15,12,9,6,3})*INT($N147/(10^{15,12,9,6,3}))))/10^{12,9,6,3,0}) -> 0 | C147: 0 | D147: 0 | E147: 0 | F147: 0 | N147: 0 | P147: () | S147: ()
B148: =TRUNC(($N148-((10^{15,12,9,6,3})*INT($N148/(10^{15,12,9,6,3}))))/10^{12,9,6,3,0}) -> 0 | C148: 0 | D148: 0 | E148: 0 | F148: 0 | N148: 0 | P148: () | S148: ()
B149: =TRUNC(($N149-((10^{15,12,9,6,3})*INT($N149/(10^{15,12,9,6,3}))))/10^{12,9,6,3,0}) -> 0 | C149: 0 | D149: 0 | E149: 0 | F149: 0 | N149: 0 | P149: () | S149: ()
B150: =TRUNC(($N150-((10^{15,12,9,6,3})*INT($N150/(10^{15,12,9,6,3}))))/10^{12,9,6,3,0}) -> 0 | C150: 0 | D150: 0 | E150: 0 | F150: 0 | N150: 0 | P150: () | S150: ()
B151: =TRUNC(($N151-((10^{15,12,9,6,3})*INT($N151/(10^{15,12,9,6,3}))))/10^{12,9,6,3,0}) -> 0 | C151: 0 | D151: 0 | E151: 0 | F151: 0 | N151: 0 | P151: () | S151: ()
B152: =TRUNC(($N152-((10^{15,12,9,6,3})*INT($N152/(10^{15,12,9,6,3}))))/10^{12,9,6,3,0}) -> 0 | C152: 0 | D152: 0 | E152: 0 | F152: 0 | N152: 0 | P152: () | S152: ()
B153: =TRUNC(($N153-((10^{15,12,9,6,3})*INT($N153/(10^{15,12,9,6,3}))))/10^{12,9,6,3,0}) -> 0 | C153: 0 | D153: 0 | E153: 0 | F153: 0 | N153: 0 | P153: () | S153: ()
B154: =TRUNC(($N154-((10^{15,12,9,6,3})*INT($N154/(10^{15,12,9,6,3}))))/10^{12,9,6,3,0}) -> 0 | C154: 0 | D154: 0 | E154: 0 | F154: 0 | N154: 0 | P154: () | S154: ()
B155: =TRUNC(($N155-((10^{15,12,9,6,3})*INT($N155/(10^{15,12,9,6,3}))))/10^{12,9,6,3,0}) -> 0 | C155: 0 | D155: 0 | E155: 0 | F155: 0 | N155: 0 | P155: () | S155: ()
B156: =TRUNC(($N156-((10^{15,12,9,6,3})*INT($N156/(10^{15,12,9,6,3}))))/10^{12,9,6,3,0}) -> 0 | C156: 0 | D156: 0 | E156: 0 | F156: 0 | N156: 0 | P156: () | S156: ()
B157: =TRUNC(($N157-((10^{15,12,9,6,3})*INT($N157/(10^{15,12,9,6,3}))))/10^{12,9,6,3,0}) -> 0 | C157: 0 | D157: 0 | E157: 0 | F157: 0 | N157: 0 | P157: () | S157: ()
B158: =TRUNC(($N158-((10^{15,12,9,6,3})*INT($N158/(10^{15,12,9,6,3}))))/10^{12,9,6,3,0}) -> 0 | C158: 0 | D158: 0 | E158: 0 | F158: 0 | N158: 0 | P158: () | S158: ()

Sheet Sumula_444_-_TST (hidden)
A1: VIGIA
A2: 1109 | B2: SALÁRIO
A3: 0 | B3: ASSIDUIDADE
A4: 0 | B4: INSALUBRIDADE
A5: =SUM(A2:A4) -> 1109 | B5: SALARIO+ASSIDUIDADE
A6: =A5/220 -> 5.040909091 | B6: VALOR DA HORA COM ASSIDUIDADE
A7: 14 | B7: FERIADOS NO ANO
A8: 12 | B8: HORAS TRABALHADAS E FERIADO
A9: =A8*A7 -> 168
A11: =((A6*A8)*0.5)/12 -> 2.520454545
D12: HORAS DE TRABALHO EM FERIADO NO ANO | H12: =A9 -> 168
D13: Nº DE MESES | H13: 12
D14: PARCELA TRABALHADA | H14: 0.5
D16: DIAS DO ANO | H16: 365
D17: DIAS DA SEMANA | H17: 7
D18: DIAS UTEIS | H18: 6
D20: NÚMERO DE FERIADOS ANO | H20: =A7 -> 14
H21: =(H12/H13*H14)/((H16/H17*H18)-H20) -> 0.02342256214
H23: =H21*(H16-((H16/H17*H18)-H20)) -> 1.549235182
E24: ADICIONAL DE HORA EXTRA | H24: =H23*(A5/220) -> 7.809553711
H26: =H24*12 -> 93.71464453 | I26: =H26*2 -> 187.4292891
A28: BOMBEIRO
A29: 1524 | B29: SALÁRIO
A30: =A29*0.0363 -> 55.3212 | B30: ASSIDUIDADE
A31: 0 | B31: INSALUBRIDADE
A32: =SUM(A29:A31) -> 1579.3212 | B32: SALARIO+ASSIDUIDADE
A33: =A32/220 -> 7.178732727 | B33: VALOR DA HORA COM ASSIDUIDADE
A34: 14 | B34: FERIADOS NO ANO
A35: 12 | B35: HORAS TRABALHADAS E FERIADO
A36: =A35*A34 -> 168
A38: =((A33*A35)*0.5)/12 -> 3.589366364
D39: HORAS DE TRABALHO EM FERIADO NO ANO | H39: =A36 -> 168
D40: Nº DE MESES | H40: 12
D41: PARCELA TRABALHADA | H41: 0.5
D43: DIAS DO ANO | H43: 365
D44: DIAS DA SEMANA | H44: 7
D45: DIAS UTEIS | H45: 6
D47: NÚMERO DE FERIADOS ANO | H47: =A34 -> 14
H48: =(H39/H40*H41)/((H43/H44*H45)-H47) -> 0.02342256214
H50: =H48*(H43-((H43/H44*H45)-H47)) -> 1.549235182
E51: ADICIONAL DE HORA EXTRA | H51: =H50*(A32/220) -> 11.1215453
H53: =H51*12 -> 133.4585436 | I53: =H53*2 -> 266.9170872

Sheet MEMORIAL_CALCULO (hidden)
A2: Modulo 4 – Encargos Sociais
A3: Submódulo 4.1
A4: Letra A
A5: Previdência Social ou INSS tem como percentual de incidência o importe de 20,00% (vinte por cento) conforme previsão no artigo 22, inciso I, da Lei nº. 8.212/1991. | K5: 0.2
A6: Letra B
A7: SESI ou SESC tem como percentual de incidência o importe de 1,5% (um vírgula cinco por cento) conforme previsão no artigo 30, da Lei nº. 8.036/1990 e artigo 1º da Lei nº 8.154/1990. | K7: 0.015
A8: Letra C
A9: SENAI ou SENAC tem como percentual de incidência o importe de 1,00% (um por cento) conforme previsão no Decreto-lei nº 2.318/1986. | K9: 0.01
A10: Letra D
A11: INCRA tem como percentual de incidência o importe de 0,20% (zero vírgula vinte por cento) conforme previsão no artigo 1º, inciso I, do Decreto-lei nº 1.146/1970. | K11: 0.002
A12: Letra E
A13: SALÁRIO EDUCAÇÃO tem como percentual de incidência o importe de 2,50% (dois vírgula cinco por cento) conforme previsão no artigo 3º, inciso I, do Decreto-lei nº 87.043/1982 e Lei nº 9.424/1996. | K13: 0.025
A14: Letra F
A15: FGTS tem como percentual de incidência o importe de 8,00% (oito por cento) conforme previsão no artigo 15 da Lei nº 8.036/1990 e art. 7º, inciso III da Constituição Federal de 1.988 inciso I, do Decreto-lei nº 87.043/1982 e Lei nº 9.424/1996. | K15: 0.08
A16: Letra G
A17: SAT/RAT/FAP é determinado pela lei 8.212/91, sendo o mesmo recolhido à Previdência Social conforme determina a referida lei. | K17: 0.0236
A18: Letra H
A19: SEBRAE tem como percentual de incidência o importe de 0,60% (zero vírgula sessenta por cento) conforme previsão na Lei nº 8.029/1990 alterada pela Lei nº 8.154/1990. | K19: 0.006
A20: SUBTOTAL | K20: =SUM(K5:K19) -> 0.3616
A21: Submodulo 4.2
A22: Tratam do percentual do 13º salário e a incidência do Submodulo 4.1 sobre este, sendo a sua fundamentação:
K23: =0.0833+0.0278 -> 0.1111
A24: Tal previsão está amparada no art. 7º, inciso VIII, da Constituição Federal, Lei n. 4.090/1962 e Lei n. 7.787/1989. (Acórdão TCU n. 1.753/2008 - Plenário).
A25: O profissional trabalha onze meses no ano, pois no outro goza suas férias. Assim, o custeio anual do empregado acontece nos onze meses de trabalho. No mês das férias, a remuneração e os encargos são direcionados para custear o substituto por ser uma ausência legal.
A26: Incidência do Submódulo 4.1 sobre 13º Salário e adicional de férias | K26: =K20*SUM(K23:K25) -> 0.04017376
A27: SUBTOTAL | K27: =SUM(K23:K26) -> 0.15127376
A28: Submodulo 4.3
K29: 0.0003
A30: Nesse caso o INSS reembolsa o salário da beneficiária. Entretanto, continuam sendo contados os demais encargos, como férias, adicional de férias, 13º salário, encargos previdenciários, FGTS, bem como benefícios como a assistência médica (se prevista em norma coletiva de trabalho (acordos, convenções ou sentenças normativas em dissídios coletivos). Conforme determina a Constituição Federal de 1988 (Art. 6° e 201), CLT (Art. 392) e as Jurisprudência - TST(Orientação Jurisprudencial, SDI1 44 e Orientação Jurisprudência, SDI1.
A31: Considerando as medias da empresa e as previsões futuras o percentual a ser considerado pela empresa neste item é 0,03%
K32: =K29*K20 -> 0.00010848
A33: SUBTOTAL | K33: =SUM(K29:K32) -> 0.00040848
A34: Submodulo 4.4
K35: 0.0042 | N35: =1/12*O35*1 -> 0.004166666667 | O35: 0.05
K36: =0.08*K35 -> 0.000336
K37: 0.0001
K38: 0.0025
K39: =K38*K20 -> 0.000904
K40: =K37 -> 0.0001
K41: 0.0436
A42: SUBTOTAL | K42: =SUM(K35:K41) -> 0.05174
K43: =1/12 -> 0.08333333333
K44: =(6.45/30)*(1/12) -> 0.01791666667
K45: =((5/30)/12)*0.01*1 -> 0.0001388888889
K46: 0.0131 | N46: =(P46/30)*(1/12) -> 0.008194444444 | P46: 2.95
K47: 0.0003
A48: SUBTOTAL | K48: =SUM(K43:K47)+0.0001 -> 0.1148888889
K49: =K48*K20 -> 0.04154382222
A50: TOTAL | K50: =K49+K48+K42+K33+K27+K20 -> 0.7214549511

Sheet 82,54% (hidden)
C1: PLANILHA DE CUSTO E FORMAÇÃO DE PREÇOS
A2: A
A3: =#REF! -> 
A4: =#REF! -> 
A6: Identificação do Serviço
A7: Tipo de Serviço | C7: Unidade de Medida | E7: Quantidade total a contratar
A8: =#REF! ->  | C8: =#REF! -> 
A10: Anexo III-A – Mão-de-obra
A11: Mão-de-obra vinculada à execução contratual
A13: Dados complementares para composição dos custos referente à mão-de-obra
A14: 1 | B14: Tipo de serviço (mesmo serviço com características distintas) | E14: =A8 -> 
A15: 2 | B15: Salário Normativo da Categoria Profissional
A16: 3 | B16: Categoria profissional (vinculada à execução contratual)
A17: 4 | B17: Data base da categoria (dia/mês/ano)
A19: MÓDULO 1: COMPOSIÇÃO DA REMUNERAÇÃO
A20: 1 | B20: Composição da Remuneração | E20: % | F20: Valor (R$)
A21: A | B21: Salário Normativo | E21: =F21/$F$32 -> 0.4619325578 | F21: 1150
A22: B | B22: Adicional Assiduidade | D22: 0.05 | E22: 0.02309662789 | F22: =F21*D22 -> 57.5
A23: C | B23: Gratificação (Clausula 3 - Item 02.01 da CCT) | E23: 0 | F23: 0
A24: D | B24: Insalubridade | D24: 0.4 | E24: 0.1847730231 | F24: =F21*D24 -> 460
A25: E | B25: Adicional de Periculosidade | D25: 0.3 | E25: 0.1385797674 | F25: =F21*D25 -> 345
A26: F | B26: Adicional noturno | D26: 135 | E26: 0.05669172301 | F26: =(F21)/220*0.2*D26 -> 141.1363636
A27: G | B27: Hs noturna reduzida | D27: 15 | E27: 0.04724310251 | F27: =F21/220*1.5*D27 -> 117.6136364
A28: H | B28: Intrajornada | D28: 15 | E28: 0.04724310251 | F28: =F21/220*1.5*D28 -> 117.6136364
A29: I | B29: Horas Extras - 12x36 Sumula 444 TST | D29: 6 | E29: 0.01259816067 | F29: =F21/220*D29 -> 31.36363636
A30: J | B30: Reflexos no DSR | D30: 0.17 | E30: 0.02784193508 | F30: =(F29+F28+F27+F26)*D30 -> 69.31363636
A31: K | B31: Outros (especificar) | E31: 0 | F31: 0
B32: TOTAL DA REMUNERAÇÃO | E32: =SUM(E21:E31)+0.0001 -> 1.0001 | F32: =SUM(F21:F31) -> 2489.540909
A34: MÓDULO 2: BENEFÍCIOS MENSAIS E DIÁRIOS
A36: 2 | B36: Benefícios Mensais e Diários | E36: % | F36: Valor (R$)
A37: A | B37: Transporte | D37: =#REF! ->  | E37: =F37/$F$44 ->  | F37: =D37*44-(F21*0.06) -> 
A38: B | B38: Auxílio Alimentação/Refeição | F38: 299
A39: C | B39: Assistência Médica e Saúde | F39: 53
A40: D | B40: Auxílio Creche | F40: 0
A41: E | B41: Benefício Social Familiar | F41: 16
A42: F | B42: Fundo de formação Profissional | F42: 16
A43: G | B43: Outros (Específicar)
B44: TOTAL DE BENEFÍCIOS MENSAIS E DIÁRIOS | E44: =SUM(E37:E43)-0.0001 ->  | F44: =ROUND(SUM(F37:F43),2) -> 
A46: MÓDULO 3: INSUMOS DIVERSOS
A47: 3 | B47: Insumos Diversos | E47: % | F47: Valor (R$)
A48: A | B48: Uniformes | E48: =F48/$F$53 ->  | F48: =#REF! -> 
A49: B | B49: EPI, SESMT, ASO, ETC | E49: =F49/$F$53 ->  | F49: =#REF! -> 
A50: C | B50: Ferramenta, Maquinas | E50: =F50/$F$53 ->  | F50: =#REF! -> 
A51: D | B51: Produtos | E51: =F51/$F$53 ->  | F51: =#REF! -> 
A52: E | B52: Outros (Especificar) | E52: =F52/$F$53 -> 
B53: TOTAL DE INSUMOS DIVERSOS | E53: =SUM(E48:E52) ->  | F53: =ROUND(SUM(F48:F52),2) -> 
A55: MÓDULO 4: ENCARGOS SOCIAIS E TRABALHISTAS
A56: Submódulo 4.1 - Encargos previdenciários e FGTS
A57: 4.1 | B57: Encargos previdenciários e FGTS | E57: % | F57: Valor (R$)
A58: A | B58: INSS | E58: 0.2 | F58: =(F32*E58) -> 497.9081818
A59: B | B59: SESI OU SESC | E59: 0.015 | F59: =(F32*E59) -> 37.34311364
A60: C | B60: SENAI OU SENAC | E60: 0.01 | F60: =(F32*E60) -> 24.89540909
A61: D | B61: INCRA | E61: 0.002 | F61: =(F32*E61) -> 4.979081818
A62: E | B62: Salário Educação | E62: 0.025 | F62: =(F32*E62) -> 62.23852273
A63: F | B63: FGTS | E63: 0.08 | F63: =(F32*E63) -> 199.1632727
A64: G | B64: Seguro Acidente de Trabalho | E64: 0.0236 | F64: =(F32*E64) -> 58.75316545
A65: H | B65: SEBRAE | E65: 0.006 | F65: =(F32*E65) -> 14.93724545
B66: TOTAL do Grupo A | E66: =SUM(E58:E65) -> 0.3616 | F66: =SUM(F58:F65) -> 900.2179927
A68: Submódulo 4.2 - 13º Salário
A69: 4.2 | B69: 13º Salário e Adicional de Férias | E69: % | F69: Valor (R$)
A70: A | B70: 13º salário | E70: 0.0909 | F70: =(F32*E70) -> 226.2992686
A71: Subtotal | E71: =E70 -> 0.0909 | F71: =F70 -> 226.2992686
A72: b | B72: Incidência do Submódulo 4.1 sobre 13º Salário | E72: =E71*E66 -> 0.03286944 | F72: =(F32*E72) -> 81.82981554
A73: Total de 13.º Salário e Adicional de Férias | E73: =(E71+E72) -> 0.12376944 | F73: =(F71+F72) -> 308.1290842
A75: Submódulo 4.3 - Afastamento Maternidade
A76: 4.3 | B76: Afastamento Maternidade | E76: % | F76: Valor (R$)
A77: A | B77: Afastamento maternidade | E77: 0.003 | F77: =(F32*E77) -> 7.468622727
A78: B | B78: Incidência do submódulo 4.1 sobre afastamento maternidade | E78: =E66*E77 -> 0.0010848 | F78: =(F32*E78) -> 2.700653978
A79: Total de Afastamento Maternidade | E79: =SUM(E77:E78) -> 0.0040848 | F79: =SUM(F77:F78) -> 10.16927671
A81: Submódulo 4.4 - Provisão para Rescisão
A82: 4.4 | B82: Provisão para Rescisão | E82: % | F82: Valor (R$)
A83: A | B83: Aviso prévio indenizado | E83: 0.0042 | F83: =(F32*E83) -> 10.45607182
A84: B | B84: Incidência do FGTS sobre o aviso prévio indenizado | E84: =E83*E63 -> 0.000336 | F84: =(F32*E84) -> 0.8364857455
A85: C | B85: Multa do FGTS do aviso prévio indenizado | E85: 0.0435 | F85: =(F32*E85) -> 108.2950295
A86: D | B86: Aviso prévio trabalhado | E86: 0.0165 | F86: =(F32*E86) -> 41.077425
A87: E | B87: Incidência do submódulo 4.1 sobre aviso prévio trabalhado | E87: =E66*E86 -> 0.0059664 | F87: =(F32*E87) -> 14.85359688
A88: F | B88: Multa do FGTS do aviso prévio trabalhado | E88: 0.0266 | F88: =(F32*E88) -> 66.22178818
A89: G | B89: Outros especificar | E89: 0 | F89: =(F32*E89) -> 0
A90: Total de Provisão para Rescisão | E90: =SUM(E83:E89) -> 0.0971024 | F90: =SUM(F83:F89) -> 241.7403972
A92: Submódulo 4.5 - Custo de Reposição do Profissional Ausente
A93: 4.5 | B93: Custo de Reposição do Profissional Ausente | E93: % | F93: Valor (R$)
A94: A | B94: Férias + 1/3 | E94: 0.1212 | F94: =(F32*E94) -> 301.7323582
A95: B | B95: Ausência por doença | E95: 0.029 | F95: =(F32*E95) -> 72.19668636
A96: C | B96: Licença paternidade | E96: 0.001 | F96: =(F32*E96) -> 2.489540909
A97: D | B97: Ausências legais | E97: 0.0192 | F97: =(F32*E97) -> 47.79918545
A98: E | B98: Ausência por Acidente de trabalho | E98: 0.005 | F98: =(F32*E98) -> 12.44770455
A99: F | B99: Outros (especificar) | E99: 0 | F99: =(F39*E99) -> 0
A100: Subtotal | E100: =SUM(E94:E99) -> 0.1754 | F100: =(F32*E100) -> 436.6654755
A101: G | B101: Incidência do submódulo 4.1 sobre o Custo de reposição | E101: =(E66*E100) -> 0.06342464 | F101: =(F32*E101) -> 157.8982359
A102: Total do Custo de Reposição do Profisional Ausente | E102: =SUM(E100:E101) -> 0.23882464 | F102: =SUM(F100:F101) -> 594.5637114
A104: QUADRO-RESUMO - MÓDULO 4 - ENCARGOS SOCIAIS E TRABALHISTAS
A105: 4 | B105: Módulo 4 - Encargos Socias e Trabalhistas | E105: % | F105: Valor (R$)
A106: 4.2 | B106: Encargos previdenciários e FGTS | E106: =E66 -> 0.3616 | F106: =F66 -> 900.2179927
A107: 4.1 | B107: 13º salário | E107: =E73 -> 0.12376944 | F107: =F32*E107 -> 308.1290842
A108: 4.3 | B108: Afastamento maternidade | E108: =E79 -> 0.0040848 | F108: =F79 -> 10.16927671
A109: 4.4 | B109: Provisão para Rescisão | E109: =E90 -> 0.0971024 | F109: =F90 -> 241.7403972
A110: 4.5 | B110: Custo de reposição do profissional ausente | E110: =E102 -> 0.23882464 | F110: =F102 -> 594.5637114
A111: 4.6 | B111: Outros (especificar) | E111: 0 | F111: 0
A112: Total dos Encargos Sociais e Trabalhistas | E112: =SUM(E106:E111) -> 0.82538128 | F112: =ROUND(SUM(F106:F111),2) -> 2054.82 | G112: =H112-F112 -> 0.0004621578182 | H112: =E112*$F$32 -> 2054.820462
A114: MÓDULO 5 - CUSTOS INDIRETOS, TRIBUTOS E LUCRO
A115: 5 | B115: Custos indiretos, tributos e lucro | E115: % | F115: Valor R$
A116: A | B116: Custos indiretos (DOA - Subtotal dos módulos (1+2+3+4) | E116: =#REF! ->  | F116: =(F32+F44+F53+F112)*E116 -> 
A117: B | B117: Tributos | F117: =F118+F127 -> 
B118: B.1 Tributos Federais (específicar) | F118: =F32+F44+F53+F112+F116 -> 
B119: B.1.1 PIS | E119: 0.0165 | F119: =(E119*F117)/(1-E126) -> 
B120: B.1.2 COFINS | E120: 0.076 | F120: =(E120*F117)/(1-E126) -> 
B121: B.1.3 IRPJ - PROIBIDO CONFORME ACORDÃO 950/2007 | E121: 0 | F121: =(E121*F117)/(1-E126) -> 
B122: B.1.4 CSLL - PROIBIDO CONFORME ACORDÃO 950/2007 | E122: 0 | F122: =(E122*F117)/(1-E126) -> 
B123: B.2 Tributos Estaduais (especificar)
E124: =#REF! ->  | F124: =(E124*F117)/(1-E126) -> 
B125: B.4 Outros tributos (específicar) | F125: =(E125*F118)/(1-E126) -> 
A126: Total dos Tributos | E126: =SUM(E119:E125) ->  | F126: =(E126*F117)/(1-E126) ->  | G126: =H126-F126 ->  | H126: =F137*E126 -> 
A127: C | B127: Lucro | E127: =#REF! ->  | F127: =E127*F118 -> 
B128: TOTAL - Custos Indiretos, Tributos e Lucros | F128: =ROUND(F116+F126+F127,2) -> 
A130: Anexo III – B – Quadro-resumo do Custo por Empregado
B131: Mão-de-obra vinculada à execução contratual (Valor por empregado) | F131: Valor (R$)
A132: A | B132: Módulo 1 - Composição da Remuneração | E132: =F132/$F$137 ->  | F132: =ROUND(F32,2) -> 2489.54
A133: B | B133: Módulo 2 - Benefícios Mensais e Diários | E133: =F133/$F$137 ->  | F133: =ROUND(F44,2) -> 
A134: C | B134: Módulo 3 - Insumos Diversos (uniformes, materiais, equipamentos e outros) | E134: =F134/$F$137 ->  | F134: =ROUND(F53,2) -> 
A135: D | B135: Módulo 4 - Encargos Sociais e Trabalhistas (A+B+C+D) | E135: =F135/$F$137 ->  | F135: =ROUND(F112,2) -> 2054.82
A136: E | B136: Módulo 5 - Custos indiretos, tributos e lucro | E136: =F136/$F$137 ->  | F136: =ROUND(F128,2) -> 
B137: VALOR TOTAL POR EMPREGADO | E137: =SUM(E132:E136) ->  | F137: =ROUND(SUM(F132:F136),2) -> 
F139: =#REF! -> 
A142: COSTA OESTE SERVIÇOS DE LIMPEZA EIRELI
A143: =#REF! -> 
A144: =#REF! -> 
A145: =#REF! -> 

Sheet Uniforme (hidden)
A1: A
A2: =#REF! -> 
A3: =#REF! -> 
A5: PLANIHA UNIFORMES
A8: DEMAIS FUNÇÕES
A9: ITEM | B9: DESCRIÇÃO | C9: QTDE | D9: R$ UNIT | E9: R$ TOTAL
A10: 1 | B10: Calça Operacional | C10: 2 | D10: 36.5 | E10: =D10*C10 -> 73
A11: 2 | B11: Camisa Operacional | C11: 4 | D11: 22 | E11: =D11*C11 -> 88
A12: 3 | B12: Sapato de segurança | C12: 2 | D12: 23 | E12: =D12*C12 -> 46
A13: 4 | B13: Cracha de identificação | C13: 1 | D13: 9 | E13: =D13*C13 -> 9
A14: TOTAL GERAL | E14: =SUM(E10:E13) -> 216
A15: PERIODO TROCA MESES | E15: 12
A16: TOTAL POR MêS | E16: =E14/E15 -> 18
A20: =#REF! -> 
A27: COSTA OESTE SERVIÇOS DE LIMPEZA EIRELI
A28: =#REF! -> 
A29: =#REF! -> 
A30: =#REF! -> 

Sheet Equip_Maq_ (hidden)
A1: A
A2: =#REF! -> 
A3: =#REF! -> 
A4: PLANILHA DE EQUIPAMENTO, MATERIAIS E MAQUINAS PERMANENTES
A9: ITEM | B9: ESPECIFICAÇÃO | C9: UNID. | D9: QUANT. | E9: Valor Unitário R$ | F9: DURABILIDADE MÊS | G9: Valor Total R$
A10: 1 | B10: Carrinho para transporte de lixo | C10: Unidade | D10: 2 | E10: 450 | F10: 36 | G10: =(E10*D10)/F10 -> 25
A11: 2 | B11: Enceradeira grande | C11: Unidade | D11: 1 | E11: 1150 | F11: 36 | G11: 31.94444444
A12: 3 | B12: Enceradeira pequena | C12: Unidade | D12: 1 | E12: 880 | F12: 36 | G12: 24.44444444
A13: 4 | B13: Lixeira plástica de 12 litros | C13: Unidade | D13: 48 | E13: 15 | F13: 12 | G13: 60
A14: 5 | B14: Escada de ferro com seis degraus | C14: Unidade | D14: 2 | E14: 89.95 | F14: 36 | G14: 4.997222222
A15: 6 | B15: Máquina de alta pressão para lavar piso | C15: Unidade | D15: 1 | E15: 349 | F15: 36 | G15: 9.694444444
A16: 7 | B16: Carrinho funcional para limpeza da área de saúde, contendo no mínimo esfregão, conjunto de MOP’S, pá de lixo | C16: Unidade | D16: 1 | E16: 350 | F16: 48 | G16: 7.291666667
A17: 8 | B17: Suporte saco hamper, material aço inoxidável, acabamento tubos redondos, com 4 rodízios, diâmetro 50, altura 80,5. Saco de lona lavável preso por cadarço. | C17: Unidade | D17: 1 | E17: 320 | F17: 48 | G17: 6.666666667
A18: CUSTO MENSAL DOS EQUIPAMENTOS/MAQUINAS | G18: =SUM(G10:G17) -> 170.0388889
A19: QUANTIDADE DE POSTOS DE TRABALHO A RATEAR CUSTO | G19: 5
A20: VALOR DOS EQUIPAMENTOS MENSAL P/ POSTOS | G20: =G18/G19 -> 34.00777778
A22: =#REF! -> 
A24: COSTA OESTE SERVIÇOS DE LIMPEZA EIRELI
A25: =#REF! -> 
A26: =#REF! -> 
A27: =#REF! -> 

Sheet TRT_-_TRIB_ (hidden)
A1: 4.3 POLO LONDRINA
A3: RELAÇÃO DE MATERIAIS / UTENSILIOS PARA LIMPEZA
A5: Item | B5: Material a ser distribuído ANUALMENTE | J5: Qtde | K5: Valor Unitário (R$) | N5: Valor Total (R$) | Q5: DIFERENÇA | R5: Valor Unitário (R$) | U5: Valor Total (R$) | Z5: DIFERENÇA | AB5: Valor Unitário (R$) | AD5: Valor Total (R$)
A6: 1 | B6: Lã de aço | J6: 9 | K6: 1.11 | N6: =J6*K6 -> 9.99 | Q6: =K6-R6 -> 0.28 | R6: 0.83 | U6: =R6*J6 -> 7.47 | Z6: =K6-AB6 -> 0.28 | AA6: =Z6/K6 -> 0.2522522523 | AB6: 0.83 | AD6: =AB6*J6 -> 7.47
A7: 2 | B7: Seladora para pisos | J7: 0 | K7: 58 | N7: =J7*K7 -> 0 | Q7: 23.1 | R7: 34.9 | U7: =R7*J7 -> 0 | Z7: =K7-AB7 -> 23.1 | AA7: =Z7/K7 -> 0.3982758621 | AB7: 34.9 | AD7: =AB7*J7 -> 0
A8: 3 | B8: Vassoura Mágica | J8: 1 | K8: 118.12 | N8: =J8*K8 -> 118.12 | Q8: 57.12 | R8: 61 | U8: =R8*J8 -> 61 | Z8: =K8-AB8 -> 50.12 | AA8: =Z8/K8 -> 0.4243142567 | AB8: 68 | AD8: =AB8*J8 -> 68
A9: Valor Total Anual | N9: =SUM(N6:O8) -> 128.11 | Q9: 0 | U9: =SUM(U6:U8) -> 68.47 | AD9: =SUM(AD6:AD8) -> 75.47
A10: Valor Total Mensal | N10: =N9/12 -> 10.67583333 | Q10: 0 | U10: =U9/12 -> 5.705833333 | AD10: =AD9/12 -> 6.289166667
Q11: 0
A12: Item | B12: Material a ser distribuído SEMESTRALMENTE | J12: Qtde | K12: Valor Unitário (R$) | N12: Valor Total (R$) | R12: Valor Unitário (R$) | U12: Valor Total (R$) | AB12: Valor Unitário (R$) | AD12: Valor Total (R$)
A13: 1 | B13: Balde - 8 litros | J13: 29 | K13: 4 | N13: =J13*K13 -> 116 | Q13: 0.55 | R13: 3.45 | U13: =R13*J13 -> 100.05 | Z13: =K13-AB13 -> 0.55 | AA13: =Z13/K13 -> 0.1375 | AB13: 3.45 | AD13: =AB13*J13 -> 100.05
A14: 2 | B14: Balde - 15 litros | J14: 13 | K14: 6.5 | N14: 84.5 | Q14: 2 | R14: 4.5 | U14: 58.5 | Z14: 2 | AA14: 0.3076923077 | AB14: 4.5 | AD14: 58.5
A15: 3 | B15: Balde espremedor - mínimo 24 litros | J15: 20 | K15: 206 | N15: 4120 | Q15: -38 | R15: 244 | U15: 4880 | Z15: 71.28 | AA15: 0.3460194175 | AB15: 134.72 | AD15: 2694.4
A16: 4 | B16: Escova de Mão | J16: 36 | K16: 2.7 | N16: 97.2 | Q16: 0.85 | R16: 1.85 | U16: 66.6 | Z16: 0.85 | AA16: 0.3148148148 | AB16: 1.85 | AD16: 66.6 | AJ16: 0
A17: 5 | B17: Espanador | J17: 28 | K17: 3.5 | N17: 98 | Q17: -8.5 | R17: 12 | U17: 336 | Z17: 0.05 | AA17: 0.01428571429 | AB17: 3.45 | AD17: 96.6
A18: 6 | B18: Espanador Eletrostático | J18: 0 | K18: 15.5 | N18: 0 | Q18: -1.4 | R18: 16.9 | U18: 0 | Z18: 0.5 | AA18: 0.03225806452 | AB18: 15 | AD18: 0
A19: 7 | B19: Extensor para limpeza de vidros | J19: 9 | K19: 79.68 | N19: 717.12 | Q19: 66.2 | R19: 13.48 | U19: 121.32 | Z19: 17.68 | AA19: 0.2218875502 | AB19: 62 | AD19: 558
A20: 8 | B20: Kit Completo Mop Água/Pó | J20: 1 | K20: 45.81 | N20: 45.81 | Q20: -66.19 | R20: 112 | U20: 112 | Z20: 3.81 | AA20: 0.08316961362 | AB20: 42 | AD20: 42
A21: 9 | B21: Limpa Tudo (suporte LT com cabo de alumínio 22mm x 1.40m) | J21: 5 | K21: 35 | N21: 175 | Q21: 16.1 | R21: 18.9 | U21: 94.5 | Z21: 16.1 | AA21: 0.46 | AB21: 18.9 | AD21: 94.5
A22: 10 | B22: Mop seco (cabo+base+cabeleira) | J22: 3 | K22: 76.65 | N22: 229.95 | Q22: 47.85 | R22: 28.8 | U22: 86.4 | Z22: 47.85 | AA22: 0.6242661448 | AB22: 28.8 | AD22: 86.4
A23: 11 | B23: Mop úmido (cabo+cabeleira) | J23: 0 | K23: 23.94 | N23: 0 | Q23: 4.64 | R23: 19.3 | U23: 0 | Z23: 4.64 | AA23: 0.193817878 | AB23: 19.3 | AD23: 0
A24: 12 | B24: Pá coletora de lixo | J24: 20 | K24: 19.98 | N24: 399.6 | Q24: 15.48 | R24: 4.5 | U24: 90 | Z24: 15.48 | AA24: 0.7747747748 | AB24: 4.5 | AD24: 90
A25: 13 | B25: Pá coletora de lixo com cabo | J25: 22 | K25: 3.67 | N25: 80.74 | Q25: -7.63 | R25: 11.3 | U25: 248.6 | Z25: -4.33 | AA25: -1.179836512 | AB25: 8 | AD25: 176
A26: 14 | B26: Palha de aço | J26: 36 | K26: 0.6 | N26: 21.6 | Q26: -0.23 | R26: 0.83 | U26: 29.88 | Z26: 0 | AA26: 0 | AB26: 0.6 | AD26: 21.6
A27: 15 | B27: Rodo médio de borracha (40cm) - cabo de alumínio | J27: 43 | K27: 8 | N27: 344 | Q27: 2.5 | R27: 5.5 | U27: 236.5 | Z27: 2.5 | AA27: 0.3125 | AB27: 5.5 | AD27: 236.5
A28: 16 | B28: Rodo grande de borracha (80cm) - cabo de alumínio | J28: 19 | K28: 12.8 | N28: 243.2 | Q28: -32.2 | R28: 45 | U28: 855 | Z28: -9.2 | AA28: -0.71875 | AB28: 22 | AD28: 418
A29: 17 | B29: Rodo para vidros | J29: 16 | K29: 33 | N29: 528 | Q29: 10.15 | R29: 22.85 | U29: 365.6 | Z29: 10.15 | AA29: 0.3075757576 | AB29: 22.85 | AD29: 365.6
A30: 18 | B30: Vassoura de piaçava com cabo - 40cm largura | J30: 27 | K30: 10.15 | N30: 274.05 | Q30: -0.46 | R30: 10.61 | U30: 286.47 | Z30: -0.46 | AA30: -0.04532019704 | AB30: 10.61 | AD30: 286.47
A31: 19 | B31: Vassoura de nylon c/cabo - 60cm largura | J31: 41 | K31: 10.5 | N31: 430.5 | Q31: 5 | R31: 5.5 | U31: 225.5 | Z31: 3 | AA31: 0.2857142857 | AB31: 7.5 | AD31: 307.5
A32: 20 | B32: Vassoura de pêlo com cabo - 60cm largura | J32: 1 | K32: 20 | N32: 20 | Q32: 13.8 | R32: 6.2 | U32: 6.2 | Z32: 13.8 | AA32: 0.69 | AB32: 6.2 | AD32: 6.2
A33: Valor Total Semestral | N33: =SUM(N13:O32) -> 8025.27 | Q33: 0 | U33: =SUM(U13:V32) -> 8199.12 | AD33: =SUM(AD13:AE32) -> 5704.92
A34: Valor Total Mensal | N34: =N33/6 -> 1337.545 | Q34: 0 | U34: =U33/6 -> 1366.52 | AD34: =AD33/6 -> 950.82
Q35: 0 | Z35: =M35-AB35 -> 0 | AA35: =Z35/M35 -> 
A36: Item | B36: Material a ser distribuído TRIMESTRALMENTE | K36: Qtde | L36: Valor Unitário (R$) | N36: Valor Total (R$) | R36: Valor Unitário (R$) | U36: Valor Total (R$) | Z36: =M36-AB36 ->  | AA36: =Z36/M36 ->  | AB36: Valor Unitário (R$) | AD36: Valor Total (R$)
A37: 1 | B37: Aplicador de cera | K37: 2 | L37: 6.5 | N37: =K37*L37 -> 13 | Q37: -3.22 | R37: 5.22 | U37: =R37*K37 -> 10.44 | Z37: =L37-AB37 -> 1.28 | AA37: =Z37/L37 -> 0.1969230769 | AB37: 5.22 | AD37: =AB37*K37 -> 10.44
A38: 2 | B38: Escova sanitária | K38: 49 | L38: 2.86 | N38: =K38*L38 -> 140.14 | Q38: =K38-R38 -> 45.95 | R38: 3.05 | U38: =R38*K38 -> 149.45 | Z38: =L38-AB38 -> 1.61 | AA38: =Z38/L38 -> 0.5629370629 | AB38: 1.25 | AD38: =AB38*K38 -> 61.25
A39: 3 | B39: Pulverizador para limpeza de vidros | K39: 24 | L39: 3.75 | N39: =K39*L39 -> 90 | Q39: 21.06 | R39: 2.94 | U39: =R39*K39 -> 70.56 | Z39: =L39-AB39 -> 0.81 | AA39: =Z39/L39 -> 0.216 | AB39: 2.94 | AD39: =AB39*K39 -> 70.56
A40: 4 | B40: Refil mop (cabeleira) | K40: 7 | L40: 19 | N40: =K40*L40 -> 133 | Q40: -4.34 | R40: 11.34 | U40: =R40*K40 -> 79.38 | Z40: =L40-AB40 -> 5 | AA40: =Z40/L40 -> 0.2631578947 | AB40: 14 | AD40: =AB40*K40 -> 98
A41: Valor Total Trimestral | N41: =SUM(N37:O40) -> 376.14 | Q41: 0 | U41: =SUM(U37:V40) -> 309.83 | AD41: =SUM(AD37:AE40) -> 240.25
A42: Valor Total Mensal | N42: =N41/3 -> 125.38 | Q42: 0 | U42: =U41/3 -> 103.2766667 | AD42: =AD41/3 -> 80.08333333
Q43: 0
A44: Item | B44: Material a ser distribuído MENSALMENTE | K44: Qtde | L44: Valor Unitário (R$) | N44: Valor Total (R$) | R44: Valor Unitário (R$) | U44: Valor Total (R$) | AB44: Valor Unitário (R$) | AD44: Valor Total (R$)
A45: 1 | B45: Água Sanitária - 1 litro | K45: 125 | L45: 2.5 | N45: =K45*L45 -> 312.5 | Q45: 123.52 | R45: 1.48 | U45: =R45*K45 -> 185 | Z45: =L45-AB45 -> 1.02 | AA45: =Z45/L45 -> 0.408 | AB45: 1.48 | AD45: =AB45*K45 -> 185
A46: 2 | B46: Álcool 70% - gel | K46: 56 | L46: 5.7 | N46: =K46*L46 -> 319.2 | Q46: 53.07 | R46: 2.93 | U46: 164.08 | Z46: 2.77 | AA46: 0.4859649123 | AB46: 2.93 | AD46: 164.08
A47: 3 | B47: Álcool 70% - líquido - hospitalar | K47: 27 | L47: 6.49 | N47: =K47*L47 -> 175.23 | Q47: 23.92 | R47: 3.08 | U47: 83.16 | Z47: 2.39 | AA47: 0.3682588598 | AB47: 4.1 | AD47: 110.7
B48: limpeza de filtros elétricos | Q48: 0 | U48: 0 | Z48: 0 | AD48: 0
A49: 4 | B49: Cera composta de no mínimo 20% de emulsão de polímeros acrílicos, auto brilho, auto tráfego e anti-derrapante | K49: 0 | L49: 36.7 | N49: =K49*L49 -> 0 | Q49: -8 | R49: 8 | U49: 0 | Z49: 14.7 | AA49: 0.4005449591 | AB49: 22 | AD49: 0
A50: 5 | B50: Desinfetante pinho concentrado | K50: 122 | L50: 4.38 | N50: 534.36 | Q50: 120.66 | R50: 1.34 | U50: 163.48 | Z50: 3.18 | AA50: 0.7260273973 | AB50: 1.2 | AD50: 146.4
A51: 6 | B51: Desinfetante tensoativo não ionico, quaternário de amônia | K51: 1 | L51: 10.3 | N51: 10.3 | Q51: -23.69 | R51: 24.69 | U51: 24.69 | Z51: -4.7 | AA51: -0.4563106796 | AB51: 15 | AD51: 15
A52: 7 | B52: Detergente Amoniacal | K52: 6 | L52: 22 | N52: 132 | Q52: -3.69 | R52: 9.69 | U52: 58.14 | Z52: 12.21 | AA52: 0.555 | AB52: 9.79 | AD52: 58.74
A53: 8 | B53: Detergente desengraxante | K53: 11 | L53: 22 | N53: 242 | Q53: -4.9 | R53: 15.9 | U53: 174.9 | Z53: 6.1 | AA53: 0.2772727273 | AB53: 15.9 | AD53: 174.9
A54: 9 | B54: Detergente removedor de cera | K54: 0 | L54: 33.4 | N54: 0 | Q54: -20.2 | R54: 20.2 | U54: 0 | Z54: 13.2 | AA54: 0.3952095808 | AB54: 20.2 | AD54: 0
A55: 10 | B55: Disco verde p/ enceradeira industrial 300 mm | K55: 3 | L55: 9.5 | N55: 28.5 | Q55: -10 | R55: 13 | U55: 39 | Z55: 0 | AA55: 0 | AB55: 9.5 | AD55: 28.5
A56: 11 | B56: Disco verde p/ enceradeira industrial 350 mm | K56: 0 | L56: 12.5 | N56: 0 | Q56: -13 | R56: 13 | U56: 0 | Z56: 0 | AA56: 0 | AB56: 12.5 | AD56: 0
A57: 12 | B57: Disco verde p/ enceradeira industrial 410 mm | K57: 0 | L57: 15.5 | N57: 0 | Q57: -18.2 | R57: 18.2 | U57: 0 | Z57: 3 | AA57: 0.1935483871 | AB57: 12.5 | AD57: 0
A58: 13 | B58: Disco branco ou bege p/ enceradeira industrial 300 mm | K58: 0 | L58: 10.53 | N58: 0 | Q58: -13 | R58: 13 | U58: 0 | Z58: 0 | AA58: 0 | AB58: 10.53 | AD58: 0
A59: 14 | B59: Disco branco ou bege p/ enceradeira industrial 350 mm | K59: 0 | L59: 14.1 | N59: 0 | Q59: -13 | R59: 13 | U59: 0 | Z59: 1.1 | AA59: 0.0780141844 | AB59: 13 | AD59: 0
A60: 15 | B60: Disco branco ou bege p/ enceradeira industrial 410 mm | K60: 0 | L60: 18.35 | N60: 0 | Q60: -21 | R60: 21 | U60: 0 | Z60: 0.35 | AA60: 0.01907356948 | AB60: 18 | AD60: 0
A61: 16 | B61: Disco preto p/ enceradeira industrial 300 mm | K61: 2 | L61: 8.5 | N61: 17 | Q61: -25.9 | R61: 27.9 | U61: 55.8 | Z61: 0.5 | AA61: 0.05882352941 | AB61: 8 | AD61: 16
A62: 17 | B62: Disco preto p/ enceradeira industrial 350 mm | K62: 0 | L62: 9.9 | N62: 0 | Q62: -27.9 | R62: 27.9 | U62: 0 | Z62: 0.9 | AA62: 0.09090909091 | AB62: 9 | AD62: 0
A63: 18 | B63: Disco preto p/ enceradeira industrial 410 mm | K63: 0 | L63: 19 | N63: 0 | Q63: -21.9 | R63: 21.9 | U63: 0 | Z63: 0 | AA63: 0 | AB63: 19 | AD63: 0
A64: 19 | B64: Esponja de fibra dupla face | K64: 100 | L64: 0.6 | N64: 60 | Q64: 99.51 | R64: 0.49 | U64: 49 | Z64: 0.11 | AA64: 0.1833333333 | AB64: 0.49 | AD64: 49
A65: 20 | B65: Esponja de fibra verde limpeza pesada | K65: 70 | L65: 0.95 | N65: 66.5 | Q65: 69.01 | R65: 0.99 | U65: 69.3 | Z65: 0.03 | AA65: 0.03157894737 | AB65: 0.92 | AD65: 64.4
A66: 21 | B66: Flanela branca/amarela medindo 50x50 cm | K66: 81 | L66: 1.28 | N66: 103.68 | Q66: 79.34 | R66: 1.66 | U66: 134.46 | Z66: 0.03 | AA66: 0.0234375 | AB66: 1.25 | AD66: 101.25
A67: 22 | B67: Fibra branca multiuso | K67: 8 | L67: 0.68 | N67: 5.44 | Q67: 7.16 | R67: 0.84 | U67: 6.72 | Z67: 0.03 | AA67: 0.04411764706 | AB67: 0.65 | AD67: 5.2
A68: 23 | B68: Fibra verde multiuso | K68: 25 | L68: 0.95 | N68: 23.75 | Q68: 23.9 | R68: 1.1 | U68: 27.5 | Z68: 0.05 | AA68: 0.05263157895 | AB68: 0.9 | AD68: 22.5
A69: 24 | B69: Hipoclorito de sódio a + ou - 10% | K69: 5 | L69: 9.44 | N69: 47.2 | Q69: -13.5 | R69: 18.5 | U69: 92.5 | Z69: 0 | AA69: 0 | AB69: 9.44 | AD69: 47.2
A70: 25 | B70: Impermeabilizante incolor | K70: 0 | L70: 17.7 | N70: 0 | Q70: =K70-R70 -> -65 | R70: 65 | U70: 0 | Z70: -14.3 | AA70: -0.8079096045 | AB70: 32 | AD70: 0
A71: 26 | B71: Limpa carpete | K71: 11 | L71: 4 | N71: 44 | Q71: -15.8 | R71: 26.8 | U71: 294.8 | Z71: 0 | AA71: 0 | AB71: 4 | AD71: 44
A72: 27 | B72: Limpa pedras | K72: 15 | L72: 7.2 | N72: 108 | Q72: 5.55 | R72: 9.45 | U72: 141.75 | Z72: 0 | AA72: 0 | AB72: 7.2 | AD72: 108
A73: 28 | B73: Limpa vidros | K73: 16 | L73: 12.92 | N73: 206.72 | Q73: 9.98 | R73: 6.02 | U73: 96.32 | Z73: 6.9 | AA73: 0.5340557276 | AB73: 6.02 | AD73: 96.32
A74: 29 | B74: Limpador geral | K74: 6 | L74: 11.39 | N74: 68.34 | Q74: -3.48 | R74: 9.48 | U74: 56.88 | Z74: 1.91 | AA74: 0.167690957 | AB74: 9.48 | AD74: 56.88
A75: 30 | B75: Limpador multiuso | K75: 95 | L75: 1.53 | N75: 145.35 | Q75: 85.52 | R75: 9.48 | U75: 900.6 | Z75: 0 | AA75: 0 | AB75: 1.53 | AD75: 145.35
A76: 31 | B76: Lustra-móveis - 200ml | K76: 28 | L76: 1.65 | N76: 46.2 | Q76: 26.14 | R76: 1.86 | U76: 52.08 | Z76: 0 | AA76: 0 | AB76: 1.65 | AD76: 46.2
A77: 32 | B77: Luva de látex de 1ª qualidade - Amarela pequena | K77: 25 | L77: 2.8 | N77: 70 | Q77: 22.21 | R77: 2.79 | U77: =R77*K77 -> 69.75 | Z77: =L77-AB77 -> 0.01 | AA77: =Z77/L77 -> 0.003571428571 | AB77: 2.79 | AD77: =AB77*K77 -> 69.75
A78: 33 | B78: Luva de látex de 1ª qualidade - Amarela média | K78: 30 | L78: 2.8 | N78: 84 | Q78: 27.21 | R78: 2.79 | U78: 83.7 | Z78: 0.01 | AA78: 0.003571428571 | AB78: 2.79 | AD78: 83.7
A79: 34 | B79: Luva de látex de 1ª qualidade - Amarela grande | K79: 15 | L79: 2.8 | N79: 42 | Q79: 12.21 | R79: 2.79 | U79: 41.85 | Z79: 0.01 | AA79: 0.003571428571 | AB79: 2.79 | AD79: 41.85
A80: 35 | B80: Luva de látex de 1ª qualidade - Azul pequena | K80: 6 | L80: 4.41 | N80: 26.46 | Q80: 3.21 | R80: 2.79 | U80: 16.74 | Z80: 1.62 | AA80: 0.3673469388 | AB80: 2.79 | AD80: 16.74
A81: 36 | B81: Luva de látex de 1ª qualidade - Azul média | K81: 22 | L81: 4.41 | N81: =K81*L81 -> 97.02 | Q81: 19.21 | R81: 2.79 | U81: 61.38 | Z81: 1.62 | AA81: 0.3673469388 | AB81: 2.79 | AD81: 61.38
A82: 37 | B82: Luva de látex de 1ª qualidade - Azul grande | K82: 6 | L82: 4.41 | N82: 26.46 | Q82: 3.21 | R82: 2.79 | U82: 16.74 | Z82: 1.62 | AA82: 0.3673469388 | AB82: 2.79 | AD82: 16.74
A83: 38 | B83: Luva de látex de 1ª qualidade - Verde pequena | K83: 0 | L83: 6.69 | N83: 0 | Q83: -2.79 | R83: 2.79 | U83: 0 | Z83: 3.9 | AA83: 0.5829596413 | AB83: 2.79 | AD83: 0
A84: 39 | B84: Neutralizador de odores - 360ml | K84: 61 | L84: 8.99 | N84: 548.39 | Q84: 56.54 | R84: 4.46 | U84: 272.06 | Z84: 4.53 | AA84: 0.5038932147 | AB84: 4.46 | AD84: 272.06
A85: 40 | B85: Óleo de peroba - 200ml | K85: 3 | L85: 7.65 | N85: 22.95 | Q85: -0.89 | R85: 3.89 | U85: 11.67 | Z85: 3.76 | AA85: 0.491503268 | AB85: 3.89 | AD85: 11.67
A86: 41 | B86: Pano de chão de saco alvejado especial 40x70, para limpeza de piso - cor branca | K86: 91 | L86: 2.48 | N86: 225.68 | Q86: 88.81 | R86: 2.19 | U86: 199.29 | Z86: 0.29 | AA86: 0.1169354839 | AB86: 2.19 | AD86: 199.29
A87: 42 | B87: Pano para secar louça | K87: 16 | L87: 2 | N87: 32 | Q87: 14.22 | R87: 1.78 | U87: 28.48 | Z87: 0.22 | AA87: 0.11 | AB87: 1.78 | AD87: 28.48
A88: 43 | B88: Polidor líquido p/metais - 500ml | K88: 0 | L88: 4.5 | N88: 0 | Q88: -14.9 | R88: 14.9 | U88: 0 | Z88: 0 | AA88: 0 | AB88: 4.5 | AD88: 0
A89: 44 | B89: Removedor de cêra | K89: 1 | L89: 56.5 | N89: 56.5 | Q89: -19.2 | R89: 20.2 | U89: 20.2 | Z89: 4.5 | AA89: 0.0796460177 | AB89: 52 | AD89: 52
A90: 45 | B90: Sabão em barra (5x200g) | K90: 19 | L90: 5.2 | N90: 98.8 | Q90: 18.39 | R90: 0.61 | U90: 11.59 | Z90: 0.2 | AA90: 0.03846153846 | AB90: 5 | AD90: 95
A91: 46 | B91: Sabão em pó a base de aquil benzeno sulfato | K91: 22 | L91: 5.01 | N91: 110.22 | Q91: 18.34 | R91: 3.66 | U91: 80.52 | Z91: 1.35 | AA91: 0.2694610778 | AB91: 3.66 | AD91: 80.52
A92: 47 | B92: Sabão líquido para piso | K92: 23 | L92: 15.96 | N92: 367.08 | Q92: 13.21 | R92: 9.79 | U92: 225.17 | Z92: 6.17 | AA92: 0.3865914787 | AB92: 9.79 | AD92: 225.17
A93: 48 | B93: Saco de lixo azul - 50 L | K93: 2 | L93: 8.19 | N93: 16.38 | Q93: -9.26 | R93: 11.26 | U93: 22.52 | Z93: -3.07 | AA93: -0.3748473748 | AB93: 11.26 | AD93: 22.52
A94: 49 | B94: Saco de lixo azul - 60 L | K94: 3 | L94: 10.52 | N94: 31.56 | Q94: -9.26 | R94: 12.26 | U94: 36.78 | Z94: -1.74 | AA94: -0.1653992395 | AB94: 12.26 | AD94: 36.78
A95: 50 | B95: Saco de lixo azul - 100 L | K95: 7 | L95: 22.42 | N95: 156.94 | Q95: -11.39 | R95: 18.39 | U95: 128.73 | Z95: 4.03 | AA95: 0.179750223 | AB95: 18.39 | AD95: 128.73
A96: 51 | B96: Saco de lixo preto - 20 L | K96: 13 | L96: 4.55 | N96: 59.15 | Q96: 9.15 | R96: 3.85 | U96: 50.05 | Z96: 0.7 | AA96: 0.1538461538 | AB96: 3.85 | AD96: 50.05
A97: 52 | B97: Saco de lixo preto - 40 L | K97: 10 | L97: 7.07 | N97: 70.7 | Q97: 4.27 | R97: 5.73 | U97: 57.3 | Z97: 1.34 | AA97: 0.189533239 | AB97: 5.73 | AD97: 57.3
A98: 53 | B98: Saco de lixo preto - 50 L | K98: 0 | L98: - | N98: 0 | Q98: -7.54 | R98: 7.54 | U98: 0 | AB98: 7.54 | AD98: 0
A99: 54 | B99: Saco de lixo preto - 60 L | K99: 9 | L99: 8.59 | N99: =K99*L99 -> 77.31 | Q99: 0.46 | R99: 8.54 | U99: 76.86 | Z99: 0.05 | AA99: 0.005820721769 | AB99: 8.54 | AD99: 76.86
A100: 55 | B100: Saco de lixo preto - 100 L | K100: 13 | L100: 19 | N100: =K100*L100 -> 247 | Q100: -3.15 | R100: 16.15 | U100: 209.95 | Z100: 2.85 | AA100: 0.15 | AB100: 16.15 | AD100: 209.95
A101: 56 | B101: Saco de lixo preto - 150 L | K101: 2 | L101: 35.44 | N101: =K101*L101 -> 70.88 | Q101: -21.21 | R101: 23.21 | U101: 46.42 | Z101: 12.23 | AA101: 0.3450902935 | AB101: 23.21 | AD101: 46.42
A102: 57 | B102: Saco de lixo vermelho - 40 L | K102: 0 | L102: 9.4 | N102: =K102*L102 -> 0 | Q102: =K102-R102 -> -6.17 | R102: 6.17 | U102: 0 | Z102: 3.23 | AA102: 0.3436170213 | AB102: 6.17 | AD102: 0
A103: 58 | B103: Saco de lixo vermelho - 50 L | K103: 0 | L103: - | N103: 0 | Q103: -11.26 | R103: 11.26 | U103: 0 | AB103: 11.26 | AD103: 0
A104: 59 | B104: Saco de lixo vermelho - 60 L | K104: 3 | L104: 12.08 | N104: =K104*L104 -> 36.24 | Q104: -9.26 | R104: 12.26 | U104: 36.78 | Z104: -0.18 | AA104: -0.01490066225 | AB104: 12.26 | AD104: 36.78
A105: 60 | B105: Saco de lixo vermelho - 100 L | K105: 2 | L105: 22 | N105: 44 | Q105: -16.39 | R105: 18.39 | U105: 36.78 | Z105: 3.61 | AA105: 0.1640909091 | AB105: 18.39 | AD105: 36.78
A106: 61 | B106: Saco de lixo cinza - 60 L | K106: 0 | L106: 10.52 | N106: 0 | Q106: -12.26 | R106: 12.26 | U106: 0 | Z106: -1.74 | AA106: -0.1653992395 | AB106: 12.26 | AD106: 0
A107: 62 | B107: Saco de lixo cinza - 100 L | K107: 2 | L107: 22.61 | N107: 45.22 | Q107: -16.39 | R107: 18.39 | U107: 36.78 | Z107: 4.22 | AA107: 0.1866430783 | AB107: 18.39 | AD107: 36.78
A108: 63 | B108: Saco de lixo amarelo - 60 L | K108: 1 | L108: 11.34 | N108: 11.34 | Q108: -8.65 | R108: 9.65 | U108: 9.65 | Z108: 1.69 | AA108: 0.1490299824 | AB108: 9.65 | AD108: 9.65
A109: 64 | B109: Saco de lixo hospitalar - 30 L | K109: 1 | L109: 10.5 | N109: 10.5 | Q109: -13.44 | R109: 14.44 | U109: =R109*K109 -> 14.44 | Z109: =L109-AB109 -> 0.5 | AA109: =Z109/L109 -> 0.04761904762 | AB109: 10 | AD109: =AB109*K109 -> 10
A110: 65 | B110: Saco para aspirador de pó industrial | K110: 8 | L110: 4.65 | N110: 37.2 | Q110: -22 | R110: 30 | U110: 240 | Z110: 0 | AA110: 0 | AB110: 4.65 | AD110: 37.2
A111: 66 | B111: Saponáceo líquido - 300ml | K111: 78 | L111: 2.05 | N111: 159.9 | Q111: 75.71 | R111: 2.29 | U111: 178.62 | Z111: 0.05 | AA111: 0.0243902439 | AB111: 2 | AD111: 156
A112: 67 | B112: Silicone gel - jimo - 200ml | K112: 20 | L112: 10.31 | N112: 206.2 | Q112: 10.29 | R112: 9.71 | U112: 194.2 | Z112: 0.6 | AA112: 0.05819592629 | AB112: 9.71 | AD112: 194.2
A113: 68 | B113: Silicone Líquido | K113: 2 | L113: 15 | N113: 30 | Q113: -26.8 | R113: 28.8 | U113: 57.6 | Z113: 1 | AA113: 0.06666666667 | AB113: 14 | AD113: 28
A114: 69 | B114: Silicone spray couro | K114: 0 | L114: - | N114: 0 | Q114: -7.6 | R114: 7.6 | U114: 0 | AB114: 12 | AD114: 0
A115: 70 | B115: Vaselina líquida - 500 ml | K115: 0 | L115: 18.5 | N115: =K115*L115 -> 0 | Q115: -17.6 | R115: 17.6 | U115: 0 | Z115: 0.9 | AA115: 0.04864864865 | AB115: 17.6 | AD115: 0
A116: Valor Total Mensal | N116: =SUM(N45:O115) -> 5814.35 | U116: =SUM(U45:V115) -> 5442.76 | AD116: =SUM(AD45:AE115) -> 4113.97
A117: Valor Geral Mensal | N117: =N116+N42+N34+N10 -> 7287.950833 | U117: =U116+U42+U34+U10 -> 6918.2625 | AD117: =AD116+AD42+AD34+AD10 -> 5151.1625
A118: Total Geral Anual | N118: 87495.36 | U118: =U117*12 -> 83019.15 | AD118: =ROUND(AD117*12,2) -> 61813.95
A120: DESPESAS ADMINISTRATIVAS | J120: Percentual | L120: Valor Mensal (R$) | N120: Valor Anual (R$) | R120: Valor Mensal (R$) | U120: Valor Anual | AB120: Valor Mensal (R$) | AD120: Valor Anual
U121: (R$) | AD121: (R$)
A122: INDIRETAS | J122: 0.0025 | L122: =$N$117*J122 -> 18.21987708 | N122: =ROUND($N$118,2)*J122 -> 218.7384 | R122: =$M$117*P122 -> 0 | U122: =ROUND($M$118,2)*P122 -> 0 | AB122: =J122*AD117 -> 12.87790625 | AD122: =AB122*12 -> 154.534875
A123: LUCRO | J123: 0.0075 | L123: =$N$117*J123 -> 54.65963125 | N123: =ROUND($N$118,2)*J123 -> 656.2152 | R123: =$M$117*P123 -> 0 | U123: =ROUND($M$118,2)*P123 -> 0 | AB123: =J123*AD117 -> 38.63371875 | AD123: =AB123*12 -> 463.604625
A124: SUBTOTAL 1 | J124: 0.1279 | L124: =SUM(L122:M123) -> 72.87950833 | N124: =SUM(N122:O123) -> 874.9536 | R124: =SUM(R122:T123) -> 0 | U124: =SUM(U122:V123) -> 0 | AB124: =SUM(AB122:AC123) -> 51.511625 | AD124: =SUM(AD122:AE123) -> 618.1395
A126: TRIBUTAÇÃO SOBRE FATURAMENTO | J126: Percentual | L126: Valor Mensal (R$) | N126: Valor Anual (R$) | R126: Valor Mensal (R$) | U126: Valor Anual | AB126: Valor Mensal (R$) | AD126: Valor Anual
U127: (R$) | AD127: (R$)
A128: I.S.S. | J128: 0.05 | M128: =L131*J128 -> 402.8916443 | N128: =N131*J128 -> 4836.908243 | R128: =R131*P128 -> 0 | U128: =U131*P128 -> 0 | AB128: =J128*AB131 -> 303.3629227 | AD128: =AB128*12 -> 3640.355073
A129: PIS/COFINS | J129: 0.0925 | M129: =L131*J129 -> 745.349542 | N129: =N131*J129 -> 8948.28025 | R129: =R131*P129 -> 0 | U129: =U131*P129 -> 0 | AB129: =J129*AB131 -> 561.2214071 | AD129: =AB129*12 -> 6734.656885
A130: SUBTOTAL 2 | J130: =J129+J128 -> 0.1425 | L130: =SUM(M128:M129) -> 1148.241186 | N130: =SUM(N128:O129) -> 13785.18849 | R130: =SUM(R128:T129) -> 0 | U130: =SUM(U128:V129) -> 0 | AB130: =J130*AB131 -> 864.5843298 | AD130: =SUM(AD128:AE129) -> 10375.01196 | AG130: =AB130*12 -> 10375.01196
A131: TOTAL GERAL DE MATERIAIS (SUBTOTAL1 +SUBTOTAL2) | L131: =(N117+L124)/((100-8.65)/100) -> 8057.832886 | N131: =(N118+N124)/((100-8.65)/100) -> 96738.16486 | R131: =(U117+R124)/((100-8.65)/100) -> 7573.357964 | U131: =(U118+U124)/((100-8.65)/100) -> 90880.29557 | AB131: =(AB124+AD117)/(1-J130) -> 6067.258455 | AD131: =AB131*12 -> 72807.10146
AC133: =AB130+AB124+AD117 -> 6067.258455 | AE133: =AD130+AD124+AD118 -> 72807.10146
AE134: =AB131*12 -> 72807.10146
AB137: =(AB135+AB117)/(1-AA120) -> 0

Sheet Planilha3 (hidden)
A1: Planilha de Preços e Consumo Estimado de Materiais
A3: COMARCA DE FOZ DO IGUAÇU
A4: Avenida Pedro Basso, 1001 - CEP 85863-756
A6: Fornecimento Mensal
A8: ITEM | B8: DESCRIÇÃO | D8: QTD | E8: Valor Unitário | F8: TOTAL
A9: 1 | B9: Água sanitária | C9: 1 Lt | D9: 20 | E9: 1.5 | F9: =E9*D9 -> 30
A10: 2 | B10: Álcool Gel - 70% | C10: 5 Lt | D10: 3 | E10: 21.5 | F10: 64.5
A11: 3 | B11: Álcool gel 46% | C11: 1 Lt | D11: 11 | E11: 2.7 | F11: 29.7
A12: 4 | B12: Aparelho limpa tudo | D12: 3 | E12: 1.1 | F12: 3.3
A13: 5 | B13: Aplicador de cera em microfibra | D13: 1 | E13: 1.24 | F13: 1.24
A14: 6 | B14: Balde plástico | D14: 3 | E14: 2 | F14: 6
A15: 8 | B15: Cera | C15: 5 Lt | D15: 2 | E15: 27 | F15: 54
A16: 9 | B16: Desentupidor para lavatório | D16: 1 | E16: 1 | F16: 1
A17: 10 | B17: Desentupidor para vaso sanitário | D17: 1 | E17: 1.2 | F17: 1.2
A18: 11 | B18: Desinfetante | C18: 5 Lt | D18: 5 | E18: 8.5 | F18: 42.5
A19: 12 | B19: Desodorizador de ambiente | D19: 9 | E19: 4.2 | F19: 37.8
A20: 13 | B20: Detergente líquido neutro | C20: 5 Lt | D20: 5 | E20: 10 | F20: 50
A21: 14 | B21: Detergente p/ louça | C21: 5 Lt | D21: 2 | E21: 10 | F21: 20
A22: 15 | B22: Detergente removedor de ceras e impermeabilizantes | C22: 5 Lt | D22: 1 | E22: 28 | F22: 28
A23: 16 | B23: Disco bege 350 mm | D23: 1 | E23: 4.5 | F23: 4.5
A24: 17 | B24: Disco branco 350 mm | D24: 1 | E24: 4.5 | F24: 4.5
A25: 18 | B25: Disco preto 350 mm | D25: 1 | E25: 4.5 | F25: 4.5
A26: 19 | B26: Disco verde 350 mm | D26: 1 | E26: 4.5 | F26: 4.5
A27: 20 | B27: Escova de mão | D27: 1 | E27: 0.9 | F27: 0.9
A28: 21 | B28: Escova macia p/ limpeza de estofados de veludo | D28: 1 | E28: 1.5 | F28: 1.5
A29: 22 | B29: Esponja dupla face – un | C29: UN. | D29: 16 | E29: 0.2 | F29: 3.2
A30: 23 | B30: Fibra limpeza pesada | D30: 1 | E30: 0.99 | F30: 0.99
A31: 24 | B31: Flanela média branca – 40x60 cm – un | D31: 6 | E31: 0.5 | F31: 3
A32: 25 | B32: Lã de aço – embalagem c/ 8 un | D32: 4 | E32: 0.75 | F32: 3
A33: 26 | B33: Limpa carpet – 5 L | D33: 1 | E33: 18.5 | F33: 18.5
A34: 27 | B34: Limpa vidros - 500 ml | D34: 1 | E34: 1.1 | F34: 1.1
A35: 28 | B35: Limpador com cera – 5 L | D35: 2 | E35: 18 | F35: 36
A36: 29 | B36: Lustra móveis – 500 ml | D36: 1 | E36: 2.98 | F36: 2.98
A37: 30 | B37: Mangueira de borracha completa c/ esguicho – 50 metros | D37: 1 | E37: 4 | F37: 4
A38: 31 | B38: Mop pó (conjunto com mop, suporte e cabo) | D38: 1 | E38: 3.8 | F38: 3.8
A39: 32 | B39: Mop úmido (conjunto com mop, suporte e cabo) | D39: 1 | E39: 3.8 | F39: 3.8
A40: 33 | B40: Multiuso limpador instantâneo – 500 ml | D40: 10 | E40: 3.6 | F40: 36
A41: 34 | B41: Pá de lixo cabo longo | D41: 1 | E41: 1.2 | F41: =E41*D41 -> 1.2
A42: 35 | B42: Papel Higiênico folha dupla - fardos com 64 rolos de 40m - papel de 1ª linha, branco, folhas duplas, extra macias | D42: 12 | E42: 47 | F42: 564
A43: 36 | B43: Papel toalha – fardo com 2000 fols, Folhas intercaladas, 3 dobras - Alto grau de alvura, Resistentes e absorventes. Cor Branca, Folha Simples alta qualidade – gofrado, Celulose FC (100% fibras virgens), | D43: 13 | E43: 24 | F43: 312
A44: 37 | B44: Pasta branca – 500 g | D44: 2 | E44: 1.5 | F44: 3
A45: 38 | B45: Pedra sanitária - un com suporte | D45: 10 | E45: 0.55 | F45: 5.5
A46: 39 | B46: Pincel cerdas macias para limpeza de teclados | D46: 1 | E46: 0.6 | F46: 0.6
A47: 40 | B47: Pulverizador - capacidade 1 L | D47: 1 | E47: 1.1 | F47: 1.1
A48: 41 | B48: Querosene – 1 L | D48: 1 | E48: 1.5 | F48: 1.5
A49: 42 | B49: Rodo de plástico com duas borrachas – 40 cm | D49: 2 | E49: 2.5 | F49: 5
A50: 43 | B50: Rodo de plástico com duas borrachas – 60 cm | D50: 2 | E50: 3.5 | F50: 7
A51: 44 | B51: Sabão em pedaço – 200 g - embalagem com 5 unidades | D51: 2 | E51: 3 | F51: 6
A52: 45 | B52: Sabão em pó - 1 k | D52: 7 | E52: 2.99 | F52: 20.93
A53: 46 | B53: Sabonete Líquido - embalagem com 5 litros - teor cosmético, agentes hidratantes, nutrientes e emolientes, consistência semi-gel. Densidade a 20/4(g/cm3) = 1,01 a 1,05 pH 6,5 a 7,5 para limpeza de mãos, com aroma suave. | D53: 5 | E53: 10.5 | F53: 52.5
A54: 47 | B54: Saco alvejado para limpeza de piso – un – 50x70 cm – cor branca | D54: 25 | E54: 2 | F54: 50
A55: 48 | B55: Saco descartável p/ aspirador – A-20 e A-10 | D55: 1 | E55: 2.4 | F55: 2.4
A56: 49 | B56: Saco plástico p/ lixo – 100 L (amarelo) - fardo com 100 um | D56: 1 | E56: 14 | F56: 14
A57: 50 | B57: Saco plástico p/ lixo – 100 L (azul) - fardo com 100 um | D57: 1 | E57: 14 | F57: 14
A58: 51 | B58: Saco plástico p/ lixo – 100 L (preto) - fardo com 100 un | D58: 1 | E58: 14 | F58: 14
A59: 52 | B59: Saco plástico p/ lixo – 100 L (vermelho) - fardo com 100 um | D59: 1 | E59: 14 | F59: 14
A60: 53 | B60: Saco plástico p/ lixo – 60 L (amarelo) - fardo com 100 un | D60: 1 | E60: 7.8 | F60: 7.8
A61: 54 | B61: Saco plástico p/ lixo – 60 L (azul) - fardo com 100 un | D61: 1 | E61: 7.8 | F61: 7.8
A62: 55 | B62: Saco plástico p/ lixo – 60 L (preto) - fardo com 100 un | D62: 1 | E62: 6.5 | F62: 6.5
A63: 56 | B63: Saco plástico p/ lixo – 60 L (vermelho) - fardo com 100 un | D63: 1 | E63: 7.8 | F63: 7.8
A64: 57 | B64: Sapóleo líquido – 300 ml | D64: 6 | E64: 1.12 | F64: 6.72
A65: 58 | B65: Vaselina líquida – 1 L | D65: 1 | E65: 1.2 | F65: 1.2
A66: 59 | B66: Vassoura compact plus | D66: 1 | E66: 5 | F66: 5
A67: 60 | B67: Vassoura de nylon macia | D67: 1 | E67: 3.12 | F67: 3.12
A68: 61 | B68: Vassoura de palha | D68: 1 | E68: 5 | F68: 5
A69: 62 | B69: Vassoura de pelo | D69: 1 | E69: 5 | F69: 5
A70: 63 | B70: Vassoura sanitária (bola) c/ suporte | D70: 5 | E70: 1.5 | F70: 7.5

Sheet ANEXO III A - PROPOSTA
A1: MUNICÍPIO DE APUCARANA | F1: ANEXO III A
A2: ANEXO II - PLANILHA QUANTIDADES/PREÇOS
A4: OBRA: - | B4: SERVIÇOS DE COLETA E TRANSPORTE DE RESIDUOS SOLIDOS - (LIXO DOMESTICO)
A6: ITEM | B6: SERVIÇOS | C6: UN | D6: QUANT. | E6: UNITÁRIO | F6: PARCIAL | G6: TOTAL
A8: 01. | B8: SERVIÇOS DE COLETA E TRANSPORTE
A10: 01.1 | B10: SERVIÇOS MENSAL
A11: 01.1.01 | B11: Serviços de coleta e transporte (estimado tonelada/ mês) (incluindo o fornecimento dos containers / e o recolhimento de pequenos animais mortos). | C11: m² | D11: 2726.99686 | E11: 183.568 | F11: =D11*E11 -> 500589.3596
D13: SUBTOTAL - MENSAL | G13: =SUM(F10:F11) -> 500589.3596
A14: Obs. Adotamos a quantidade executada em dezembro/2020
D15: PERIODO DE COLETA | F15: MÊSES | G15: 12
A17: TOTAL GERAL / PERIODO DE 12 MESES - R$ - | G17: =G13*G15 -> 6007072.315
B19: OBSERVAÇÕES:
B21: 01 - Forma de Pagamento em medições mensais
B22: 02 - Prazo de execução dos serviços -12 (doze meses).
B23: 03 - Preço Base - "FEVEREIRO/2021"
B26: Apucarana, 23 de fevereiro de 2.021.
B30: Secretaria Municipal de Serviços Públicos - SESP

Sheet ANEXO III B - CRO
A1: MUNCIPIO DE APUCARANA | Z1: ANEXO - III - B
A2: OBRA :- | B2: ='ANEXO III A - PROPOSTA'!B4 -> SERVIÇOS DE COLETA E TRANSPORTE DE RESIDUOS SOLIDOS - (LIXO DOMESTICO)
A4: CRONOGRAMA - FÍSICO FINANCEIRO | C4: GLOBAL | F4: MÊS 01 | H4: MÊS 02 | J4: MÊS 03 | L4: MÊS 04 | N4: MÊS 05 | P4: MÊS 06 | R4: MÊS 07 | S4: MÊS 08 | U4: MÊS 09 | W4: MÊS 10 | Y4: MÊS 11 | AA4: MÊS 12
A5: ITEM | B5: SERVIÇOS | C5: ETAPA | D5: % | E5: % | F5: VALOR | G5: % | H5: VALOR | I5: % | J5: VALOR | K5: % | L5: VALOR | M5: % | N5: VALOR | O5: % | P5: VALOR | Q5: % | R5: VALOR | S5: % | T5: VALOR | U5: % | V5: VALOR | W5: % | X5: VALOR | Y5: % | Z5: VALOR | AA5: % | AB5: VALOR
A6: 01. | B6: SERVIÇOS DE COLETA TRANSPORTE RESIDUOS | C6: ='ANEXO III A - PROPOSTA'!G17 -> 6007072.315 | D6: =(C6/$C$10)*100 -> 100
B7: - RECUROS LIVES | E7: 8.333 | F7: =E7*C6/100 -> 500569.336 | G7: =E7 -> 8.333 | H7: =(G7*C6/100) -> 500569.336 | I7: =E7 -> 8.333 | J7: =(I7*C6)/100 -> 500569.336 | K7: =E7 -> 8.333 | L7: =(K7*C6)/100 -> 500569.336 | M7: =E7 -> 8.333 | N7: =(M7*C6)/100 -> 500569.336 | O7: =M7 -> 8.333 | P7: =(O7*C6)/100 -> 500569.336 | Q7: =O7 -> 8.333 | R7: =(Q7*C6)/100 -> 500569.336 | S7: =Q7 -> 8.333 | T7: =(S7*C6)/100 -> 500569.336 | U7: 8.333 | V7: =T7 -> 500569.336 | W7: =S7 -> 8.333 | X7: =(W7*C6)/100 -> 500569.336 | Y7: =W7 -> 8.333 | Z7: =(Y7*C6)/100 -> 500569.336 | AA7: 8.337 | AB7: =(AA7*C6)/100 -> 500809.6189
B10: VALOR PARCIAL | C10: =SUM(C6:C8) -> 6007072.315 | D10: =SUM(D6:D8) -> 100 | E10: =F10/C10*100 -> 8.333 | F10: =SUM(F6:F8) -> 500569.336 | G10: =H10/C10*100 -> 8.333 | H10: =SUM(H6:H8) -> 500569.336 | I10: =J10/C10*100 -> 8.333 | J10: =SUM(J6:J8) -> 500569.336 | K10: =L10/C10*100 -> 8.333 | L10: =SUM(L6:L8) -> 500569.336 | M10: =N10/C10*100 -> 8.333 | N10: =SUM(N6:N8) -> 500569.336 | O10: =P10/C10*100 -> 8.333 | P10: =SUM(P6:P8) -> 500569.336 | Q10: =R10/C10*100 -> 8.333 | R10: =SUM(R6:R8) -> 500569.336 | S10: =T10/C10*100 -> 8.333 | T10: =SUM(T6:T8) -> 500569.336 | U10: =V10/C10*100 -> 8.333 | V10: =SUM(V6:V8) -> 500569.336 | W10: =X10/C10*100 -> 8.333 | X10: =SUM(X6:X8) -> 500569.336 | Y10: =Y7 -> 8.333 | Z10: =SUM(Z6:Z8) -> 500569.336 | AA10: =AA7 -> 8.337 | AB10: =SUM(AB6:AB8) -> 500809.6189
B11: VALOR ACUMULADO | E11: =E10 -> 8.333 | F11: =F10 -> 500569.336 | G11: =G10+E11 -> 16.666 | H11: =H10+F11 -> 1001138.672 | I11: =I10+G11 -> 24.999 | J11: =J10+H11 -> 1501708.008 | K11: =K10+I11 -> 33.332 | L11: =L10+J11 -> 2002277.344 | M11: 41.665 | N11: 2502846.68 | O11: 49.998 | P11: 3003416.016 | Q11: 58.331 | R11: 3503985.352 | S11: 66.664 | T11: 4004554.688 | U11: 74.997 | V11: 4505124.024 | W11: 83.33 | X11: 5005693.36 | Y11: =Y10+W11 -> 91.663 | Z11: =Z10+X11 -> 5506262.696 | AA11: =AA10+Y11 -> 100 | AB11: =AB10+Z11 -> 6007072.315
C14: Apucarana, 23 de fevereiro de 2.021
G16: Secretario Municipal de Serviços Públicos

Sheet ANEXO III C - Comp Custos e BDI
C1: MODELO | E1: ANEXO III - C
A2: MUNICIPIO DE APUCARANA
A4: COLETA DE RESÍDUOS SÓLIDOS URBANO
A5: PLANILHA DE COMPOSIÇÃO DE CUSTOS
A7: SÍNTESE DOS CUSTOS - MENSAL | B7: VALOR | C7: % - TOTAL
A8: =A17 -> 1. MÃO DE OBRA | B8: =I132 -> 239901.563 | C8: =B8/$B$12*100 -> 47.92382395
A9: =A134 -> 2. UNIFORMES E EPI´S | B9: =I158 -> 3841.325 | C9: =B9/$B$12*100 -> 0.7673604987
A10: =A160 -> 3. EQUIPAMENTOS E DESPESAS GERAIS | B10: =I226 -> 141414.732 | C10: 28.24964805
A11: =A229 -> 4. BENEFÍCIOS E DESPESAS INDIRETAS | B11: =(B8+B9+B10)*C239 -> 115431.7387 | C11: 23.0591675
A12: TOTAL DE DESPESAS | B12: =SUM(B8:B11) -> 500589.3588
A13: QUANTIDADE MENSAL ESTIMADA (TON) | B13: 2727
A14: VALOR POR TONELADA - (DEZEMBRO/2020) | B14: =B12/B13 -> 183.5677883
A15: VALOR MÁXIMO GLOBAL | B15: =B13*B14 -> 500589.3588 | C15: =SUM(C8:C11) -> 100
A17: 1. MÃO DE OBRA
A19: 1.1 SUPERVISOR DIURNO
A20: Discriminação | B20: Unidade | C20: Quantidade | D20: Preço unitário | E20: Subtotal
A21: Salário Normal | B21: mês | C21: 1 | D21: 2142.23 | E21: =C21*D21 -> 2142.23
A22: Soma | E22: =SUM(E21:E21) -> 2142.23
A23: Encargos Sociais | B23: % | C23: 0.7673 | D23: =E22 -> 2142.23 | E23: =D23*C23 -> 1643.733079
A24: Total por motorista | E24: =E22+E23 -> 3785.963079
A25: Total do Efetivo | B25: homem | C25: 1 | D25: =E24 -> 3785.963079 | E25: =C25*D25 -> 3785.963079 | F25: =E25 -> 3785.963079 | H25: =F25 -> 3785.963079
A27: 1.2 SUPERVISOR NOTURNO
A28: Discriminação | B28: Unidade | C28: Quantidade | D28: Preço unitário | E28: Subtotal
A29: Salário Normal | B29: mês | C29: 1 | D29: =D21 -> 2142.23 | E29: =D29 -> 2142.23
A30: Adicional noturno - 4 horas por dia | B30: adc. - 4h/dia | C30: 104 | D30: 197.09 | E30: =D30 -> 197.09
A31: Adicional noturno pela redução da hora | B31: 30 mim/dia | C31: 14.86 | D31: 24.64 | E31: =D31 -> 24.64
A32: Soma | E32: =SUM(E29:E31) -> 2363.96
A33: Encargos Sociais | B33: % | C33: =C23 -> 0.7673 | D33: =E32 -> 2363.96 | E33: =D33*C33 -> 1813.866508
A34: Total por motorista | E34: =E32+E33+0.13 -> 4177.956508
A35: Total do Efetivo | B35: homem | C35: 1 | E35: =E34 -> 4177.956508 | F35: =E35 -> 4177.956508 | H35: =F35 -> 4177.956508
A37: 1.3 MOTORISTA DE CAMINHÃO DIURNO
A38: Discriminação | B38: Unidade | C38: Quantidade | D38: Preço unitário | E38: Subtotal
A39: Salário Normal | B39: mês | C39: 1 | D39: 1963.43 | E39: =C39*D39 -> 1963.43
A40: Adicional de Insalubridade | B40: % | C40: 0.4 | D40: 1100 | E40: =C40*D40 -> 440
A41: Soma | E41: =SUM(E39:E40) -> 2403.43
A42: Encargos Sociais | B42: % | C42: =C23 -> 0.7673 | D42: =E41 -> 2403.43 | E42: =D42*C42 -> 1844.151839
A43: Total por Motorista | E43: =E41+E42+0.1 -> 4247.681839
A44: Total do Efetivo | B44: homem | C44: 5 | E44: =E43*C44 -> 21238.4092 | F44: =E44 -> 21238.4092 | H44: =F44 -> 21238.4092
A46: 1.4 MOTORISTA DE CAMINHÃO NOTURNO
A47: Discriminação | B47: Unidade | C47: Quantidade | D47: Preço unitário | E47: Subtotal
A48: Salário Normal | B48: mês | C48: 1 | D48: =D39 -> 1963.43 | E48: =C48*D48 -> 1963.43
A49: Adicional de Insalubridade | B49: % | C49: 0.4 | D49: =D40 -> 1100 | E49: =C49*D49 -> 440
A50: Adicional noturno - 4 horas por dia | B50: adc. - 4h/dia | C50: 104 | D50: 227.64 | E50: =D50 -> 227.64
A51: Adicional noturno pela redução da hora | B51: 30 mim/dia | C51: 14.86 | D51: 27.64 | E51: =D51 -> 27.64
A52: Soma | E52: =SUM(E48:E51) -> 2658.71
A53: Encargos Sociais | B53: % | C53: =C42 -> 0.7673 | D53: =E52 -> 2658.71 | E53: =D53*C53 -> 2040.028183
A54: Total por motorista | E54: =E52+E53 -> 4698.738183
A55: Total do Efetivo | B55: homem | C55: 5 | D55: =E54 -> 4698.738183 | E55: =C55*D55 -> 23493.69091 | F55: =E55 -> 23493.69091 | H55: =F55 -> 23493.69091
A57: 1.5 COLETOR NOTURNO
A58: Discriminação | B58: Unidade | C58: Quantidade | D58: Preço unitário | E58: Subtotal
A59: Salário Normal | B59: mês | C59: 1 | D59: 1395 | E59: =C59*D59 -> 1395
A60: Adicional de Insalubridade | B60: % | C60: 0.4 | D60: 1100 | E60: =C60*D60 -> 440
A61: Adicional noturno - 4 horas por dia | B61: adc. - 4h/dia | C61: 104 | D61: 168.82 | E61: =D61 -> 168.82
A62: Adicional noturno pela redução da hora | B62: 30 mim/dia | C62: 14.86 | D62: 21.1 | E62: =D62 -> 21.1
A63: Soma | E63: =SUM(E59:E62) -> 2024.92
A64: Encargos Sociais | B64: % | C64: =C42 -> 0.7673 | D64: =E63 -> 2024.92 | E64: =D64*C64 -> 1553.721116
A65: Total por Coletor | E65: =E63+E64 -> 3578.641116
A66: Total do Efetivo | B66: homem | C66: 20 | D66: =E65 -> 3578.641116 | E66: =C66*D66 -> 71572.82232 | F66: =E66 -> 71572.82232 | H66: =F66 -> 71572.82232
A68: 1.6 COLETOR DIURNO
A69: Discriminação | B69: Unidade | C69: Quantidade | D69: Preço unitário | E69: Subtotal
A70: Salário Normal | B70: mês | C70: 1 | D70: 1395 | E70: =C70*D70 -> 1395
A71: Adicional de Insalubridade | B71: % | C71: 0.4 | D71: 1100 | E71: =C71*D71 -> 440
A72: Soma | E72: =SUM(E70:E71) -> 1835
A73: Encargos Sociais | B73: % | C73: =C64 -> 0.7673 | D73: =E72 -> 1835 | E73: =D73*C73 -> 1407.9955
A74: Total por Coletor | E74: =E72+E73 -> 3242.9955
A75: Total do Efetivo | B75: homem | C75: 20 | D75: =E74 -> 3242.9955 | E75: =C75*D75 -> 64859.91 | F75: =E75 -> 64859.91 | H75: =F75 -> 64859.91
A77: 1.7 Engenheiro 6 horas semanais
A78: Discriminação | B78: Unidade | C78: Quantidade | D78: Preço unitário | E78: Subtotal
A79: Salário Normal | B79: mês | C79: 1 | D79: 6600 | E79: =C79*D79 -> 6600
A80: Soma | E80: =SUM(E79:E79) -> 6600
A81: Encargos Sociais | B81: % | C81: =C73 -> 0.7673 | D81: =E80 -> 6600 | E81: =D81*C81 -> 5064.18
A82: Total por gerente | E82: =E80+E81 -> 11664.18
A83: Total do Efetivo | B83: homem | C83: 1 | D83: =E82 -> 11664.18 | E83: =C83*D83 -> 11664.18 | F83: =E83 -> 11664.18 | H83: =F83 -> 11664.18
A85: 1.8 GERENTE
A86: Discriminação | B86: Unidade | C86: Quantidade | D86: Preço unitário | E86: Subtotal
A87: Salário Normal | B87: mês | C87: 1 | D87: 2142.23 | E87: =C87*D87 -> 2142.23
A88: Adicional noturno | D88: 373.78 | E88: =D88 -> 373.78
A89: Soma | E89: =SUM(E87:E88) -> 2516.01
A90: Encargos Sociais | B90: % | C90: ='ANEXO III C - Comp Custos e BDI'!C81 -> 0.7673 | D90: =E89 -> 2516.01 | E90: =D90*C90 -> 1930.534473
A91: Total por encarregado | E91: =E89+E90 -> 4446.544473
A92: Total do Efetivo | B92: homem | C92: 1 | D92: =E91 -> 4446.544473 | E92: =C92*D92 -> 4446.544473 | F92: =E92 -> 4446.544473 | H92: =F92 -> 4446.544473
A94: 1.9 Auxiliar Administrativo
A95: Discriminação | B95: Unidade | C95: Quantidade | D95: Preço unitário | E95: Subtotal
A96: Salário Normal | B96: mês | C96: 1 | D96: 1516.66 | E96: =C96*D96 -> 1516.66
A97: Adicional de Risco | C97: 1 | D97: 30 | E97: =C97*D97 -> 30
A98: Soma | E98: =SUM(E96:E97) -> 1546.66
A99: Encargos Sociais | B99: % | C99: ='ANEXO III C - Comp Custos e BDI'!C81 -> 0.7673 | D99: =E98 -> 1546.66 | E99: =D99*C99 -> 1186.752218
A100: Total por Auxiliar | E100: =E98+E99 -> 2733.412218
A101: Total do Efetivo | B101: homem | C101: 1 | D101: =E100 -> 2733.412218 | E101: =C101*D101 -> 2733.412218 | F101: =E101 -> 2733.412218 | H101: =F101 -> 2733.412218
A103: 1.10 Vale Transporte
A104: Discriminação | B104: Unidade | C104: Quantidade | D104: Preço unitário | E104: Subtotal
A105: FUNCIONÁRIOS | B105: vale | C105: 2808 | D105: 3 | E105: =C105*D105 -> 8424
A106: Desconto 6% salario base | B106: % | C106: 0.06 | D106: =C35*E29+C55*E48+C75*E70+E39*C44+E59*C66+C25*E21+D87*C92+D96*C101 -> 83377.65 | E106: =D106*C106 -> 5002.659
F107: =E105-E106 -> 3421.341 | H107: =F107 -> 3421.341
A109: 1.11 AUXILIO ALIMENTAÇÃO
A110: Discriminação | B110: Unidade | C110: Quantidade | D110: Preço unitário | E110: Subtotal
A111: FUNCIONÁRIOS (R$ 450,00) - 20% PAT - Conforme CCT | B111: vale | C111: 54 | D111: 390 | E111: =C111*D111 -> 21060
A112: Seguro de vida/Fundo de formação profisisonal/Assist. Familiar | B112: R$ | C112: 54 | D112: 106 | E112: =D112*C112 -> 5724
F113: =(E111+E112) -> 26784 | H113: =F113 -> 26784
A115: 1.12 EXAMES ADMISSIONAIS, PERIODICOS E DEMISSIONAIS
A116: ADMISSÃO E PERIÓDICO (06 MESES) | B116: Quant Ano | C116: Preço | D116: Total | E116: Quantidade | F116: Total
A117: AG. HBS | B117: 2 | C117: 20 | D117: =B117*C117 -> 40 | E117: =C44+C66+C55+C75+C25+C35+C83+C92+C101 -> 55 | F117: =D117*$E$117 -> 2200
A118: ANTI HBS | B118: 2 | C118: 20 | D118: =B118*C118 -> 40 | F118: 2200
A119: ANTI HCV | B119: 2 | C119: 23 | D119: 46 | F119: 2530
A120: AUDIOMETRIA | B120: 2 | C120: 25 | D120: 50 | F120: 2750
A121: ELETROCARDIOGRAMA | B121: 2 | C121: 35 | D121: 70 | F121: 3850
A122: GAMA GT | B122: 2 | C122: 8 | D122: 16 | F122: 880
A123: GLICOSE | B123: 2 | C123: 4 | D123: 8 | F123: 440
A124: TESTE DE VISÃO | B124: 2 | C124: 9 | D124: 18 | F124: 990
A125: Total | F125: =SUM(F117:F124) -> 15840
A126: DEMISSIONAL
A127: AG. HBS | B127: 1 | C127: 20 | D127: =B127*C127 -> 20 | F127: =D127*$E$117 -> 1100
A128: ANTI HBS | B128: 1 | C128: 20 | D128: =B128*C128 -> 20 | F128: =D128*$E$117 -> 1100
A129: ANTI HCV | B129: 1 | C129: 23 | D129: 23 | F129: =D129*$E$117 -> 1265
A130: AUDIOMETRIA | B130: 1 | C130: 25 | D130: 25 | F130: =D130*$E$117 -> 1375
A131: Total | D131: =SUM(D127:D130) -> 88 | F131: =SUM(F127:F130) -> 4840
E132: Total Mensal | F132: =(F125+F131)/12 -> 1723.333333 | H132: =F132 -> 1723.333333 | I132: =SUM(H19:H132) -> 239901.563
A134: 2. UNIFORMES E EPI´S
A135: 2.1. UNIFORMES E EPÍ'S PARA COLETORES
A136: Discriminação | B136: Unidade | C136: Durabilidade (meses) | D136: Preço unitário | E136: Subtotal
A137: Calça | B137: unidade | C137: 4 | D137: 55.9 | E137: =D137/C137 -> 13.975
A138: Camiseta manga longa | B138: unidade | C138: 4 | D138: 45.6 | E138: 11.4
A139: Boné c/ protetor de pescoço - sarja | B139: unidade | C139: 6 | D139: 35 | E139: 5.833333333
A140: Botina de segurança c/ palmilha aço | B140: par | C140: 6 | D140: 55.9 | E140: 9.316666667
A141: Capa de chuva amarela | B141: unidade | C141: 12 | D141: 40.5 | E141: 3.375
A142: Colete refletivo | B142: unidade | C142: 12 | D142: 25.45 | E142: 2.120833333
A143: Luva de proteção | B143: par | C143: 1 | D143: 13.5 | E143: 13.5
A144: Óculos de proteção | B144: Unidade | C144: 3 | D144: 15.5 | E144: 5.166666667
A145: Protetor solar FPS 30 | B145: frasco 120g | C145: 1 | D145: 12.8 | E145: 12.8
A146: Total do Efetivo | B146: homem | C146: =C75+C66 -> 40 | D146: =SUM(E137:E145) -> 77.4875 | E146: =C146*D146 -> 3099.5
F147: =E146 -> 3099.5 | H147: =F147 -> 3099.5
A149: 2.2. UNIFORMES E EPÍ'S PARA ENCARREGADO E MOTORISTA E APOIO ADMINISTRATIVO
A150: Discriminação | B150: Unidade | C150: Durabilidade (meses) | D150: Preço unitário | E150: Subtotal
A151: Calça | B151: unidade | C151: 4 | D151: =D137 -> 55.9 | E151: =D151/C151 -> 13.975
A152: Camiseta manga longa | B152: unidade | C152: 4 | D152: =D138 -> 45.6 | E152: 11.4
A153: Calçado de Segurança | B153: par | C153: 6 | D153: =D140 -> 55.9 | E153: 9.316666667
A154: Capa de chuva amarela | B154: unidade | C154: 12 | D154: =D141 -> 40.5 | E154: 3.375
A155: Colete refletivo | B155: unidade | C155: 12 | D155: =D142 -> 25.45 | E155: 2.120833333
A156: Protetor solar FPS 30 | B156: frasco 120g | C156: 1 | D156: =D145 -> 12.8 | E156: 12.8
A157: Total do Efetivo | B157: homem | C157: 14 | D157: =SUM(E151:E156) -> 52.9875 | E157: =C157*D157 -> 741.825
F158: =E157 -> 741.825 | H158: =F158 -> 741.825 | I158: =H158+H147 -> 3841.325
A160: 3. EQUIPAMENTOS E DESPESAS GERAIS
A161: 3.1. EQUIPAMENTOS
A162: Discriminação | B162: Unidade | C162: Quantidade | D162: Preço unitário | E162: Subtotal
A163: Caminhão Chassi 3 eixos - igual ou superior a 2019 | B163: unidade | C163: 6 | D163: 230000 | E163: =C163*D163 -> 1380000
A164: Caçamba Compactadora - nova | B164: unidade | C164: 6 | D164: 130000 | E164: =C164*D164 -> 780000
A165: Veículo Utilitário = igual ou superior a 2019 | B165: unidade | C165: 2 | D165: 55000 | E165: =C165*D165 -> 110000
A166: Conteiner Metalico 1,2 m³ | B166: Unidade | C166: 30 | D166: 2100 | E166: =C166*D166 -> 63000
A168: 3.2. DEPRECIAÇÃO EQUIPAMENTOS
A169: Discriminação | B169: Unidade | C169: Quantidade | D169: Preço unitário | E169: Subtotal
A170: =A163 -> Caminhão Chassi 3 eixos - igual ou superior a 2019 | B170: unidade | C170: =C163 -> 6 | D170: 230000 | E170: =C170*D170 -> 1380000
A171: =A164 -> Caçamba Compactadora - nova | B171: unidade | C171: 6 | D171: 130000 | E171: =C171*D171 -> 780000
A172: =A165 -> Veículo Utilitário = igual ou superior a 2019 | B172: unidade | C172: 2 | D172: 55000 | E172: =C172*D172 -> 110000
A173: Conteiner Metalico 1,2 m³ | B173: Unidade | C173: 30 | D173: 2100 | E173: =C173*D173 -> 63000
A174: Depreciação (60 meses) | B174: % | C174: 0.8 | D174: =SUM(E163:E166) -> 2333000 | E174: =D174*C174 -> 1866400
A175: Depreciação mensal | B175: mês | C175: 72 | E175: =SUM(E174:E174) -> 1866400 | F175: =E175/C175 -> 25922.22222 | H175: =F175 -> 25922.22222
A177: 3.3. Remuneração do Capital Investido
A178: Discriminação | B178: Unidade | C178: Quantidade | D178: Preço unitário | E178: Subtotal
A179: Custo dos caminhões e caçamba | B179: unidade | C179: =C170 -> 6 | D179: =SUM(D163+D164) -> 360000 | E179: =C179*D179 -> 2160000
A180: Veículo Utilitário | B180: unidade | C180: =C172 -> 2 | D180: =D172 -> 55000 | E180: =C180*D180 -> 110000
A181: Conteiner Metalico 1,2 m³ | B181: Unidade | C181: =C173 -> 30 | D181: =D173 -> 2100 | E181: =C181*D181 -> 63000
A182: Remuneração mensal de capital | B182: % | C182: 0.015 | D182: =SUM(E179:E181) -> 2333000 | E182: =C182*D182 -> 34995 | F182: =E182 -> 34995 | H182: =F182 -> 34995
A184: 3.4. Impostos e Seguros
A185: Discriminação | B185: Unidade | C185: Quantidade | D185: Preço unitário | E185: Subtotal
A186: IPVA caminhões e utilitário | B186: unidade | C186: 1 | D186: =(E163*0.01)+(E165*0.035) -> 17650 | E186: =C186*D186 -> 17650
A187: Seguro obrigatório + licenciamento | B187: unidade | C187: 1 | D187: =(E163+E165)*0.003 -> 4470 | E187: =D187*C187 -> 4470
A188: Impostos e Seguros Mensais | B188: mês | C188: 12 | D188: =E186+E187 -> 22120 | E188: =D188/C188 -> 1843.333333 | F188: =E188 -> 1843.333333 | H188: =F188 -> 1843.333333
A190: 3.5. Consumos
A191: Discriminação | B191: Unidade | C191: Quantidade | D191: Preço unitário | E191: Subtotal
A192: Custo de óleo diesel / km rodado (caminhão) | B192: km/l | C192: 1.7 | D192: 4.1 | E192: =D192/C192 -> 2.411764706
A193: Custo mensal | B193: km | C193: 15400 | D193: =E192 -> 2.411764706 | E193: =C193*D193 -> 37141.17647
A194: Custo gasolina utilitário | B194: km/l | C194: 8 | D194: 4.9 | E194: =D194/C194 -> 0.6125
A195: Custo mensal | B195: km | C195: 4000 | D195: =E194 -> 0.6125 | E195: =C195*D195 -> 2450
F196: =E193+E195 -> 39591.17647 | H196: =F196 -> 39591.17647
A198: 3.6. Demais Itens de Consumo
A199: Discriminação | B199: Unidade | C199: quantidade | D199: Preço unitário | E199: Subtotal
A200: Rastreamento | B200: Unidade/mês | C200: 6 | D200: 200 | E200: =D200*C200 -> 1200
A201: Lavagem veicular | B201: Unidade/mês | C201: 29 | D201: 150 | E201: =D201*C201 -> 4350
A202: Custo mensal | B202: mês | E202: =E200+E201 -> 5550 | F202: =E202 -> 5550 | H202: =F202 -> 5550
A204: 3.7. Manutenção
A205: Discriminação | B205: Unidade | C205: Quantidade | D205: Preço unitário | E205: Subtotal
A206: Custo de aquisição equipamentos | B206: unidade | C206: 1 | D206: =D182 -> 2333000 | E206: =D206*C206 -> 2333000
A207: Coeficiente de manutenção | B207: % | C207: 0.009 | D207: =D206 -> 2333000 | E207: =D207*C207 -> 20997
A208: Custo mensal com manutenção | B208: mês | C208: 1 | E208: =SUM(E207:E207) -> 20997 | F208: =E207 -> 20997 | H208: =F208 -> 20997
A210: 3.8. Pneu Caminhões
A211: Discriminação | B211: Unidade | C211: Quantidade | D211: Preço unitário | E211: Subtotal
A212: Custo aquisição pneus | B212: unidade | C212: 6 | D212: 1650 | E212: =C212*D212 -> 9900
A213: Custo recapagem (2 recapagens por pneu) | B213: unidade | C213: 12 | D213: 650 | E213: =C213*D213 -> 7800
A214: Vida útil do conjunto + 2 recapagens | B214: km | C214: 40000 | D214: Total Kit R$ | E214: =C214*D215 -> 17600
A215: Rodagem mensal | B215: km | C215: 15400 | D215: 0.44 | E215: 6776 | F215: =E215 -> 6776 | H215: =F215 -> 6776
A217: 3.9. Pneu Utilitário
A218: Discriminação | B218: Unidade | C218: Quantidade | D218: Preço unitário | E218: Subtotal
A219: Custo aquisição pneus | B219: unidade | C219: 4 | D219: 380 | E219: =C219*D219 -> 1520
A220: Vida útil do conjunto + 2 recapagens | B220: km | C220: 25000 | D220: Total Kit R$ | E220: =C220*D221 -> 1500
A221: Rodagem mensal | B221: km | C221: 4000 | D221: 0.06 | E221: =C221*D221 -> 240 | F221: =E221 -> 240 | H221: =F221 -> 240
A223: 3.10 Aluguel de Pátio / Barracão/Serviços Eventuais
A224: Discriminação | B224: Unidade | C224: Quantidade | D224: Preço unitário | E224: Subtotal
A225: Aluguel de pátio / Barração | B225: Unidade | C225: 1 | D225: 3500 | E225: =C225*D225 -> 3500
A226: Custo mensal com pátio / Barracão (energia, limpeza, lavagens, telefone.) | B226: Unidade | C226: 1 | D226: 2000 | E226: =C226*D226 -> 2000 | F226: =E226+E225 -> 5500 | H226: =F226 -> 5500 | I226: =SUM(H162:H226) -> 141414.732
A229: 4. BENEFÍCIOS E DESPESAS INDIRETAS | D229: Apucarana, 23 de fevereiro de 2.021
... 10 more rows

Sheet ANEXO III D Encargos
A1: MODELO DE PREENCHIMENTO DE PLANILHA DE ENCARGOS SOCIAIS | D1: ANEXO III - D
A3: MEMÓRIA DE CÁLCULO ENCARGOS SOCIAIS
A5: MEMÓRIA DE CÁLCULO
A7: ENCARGOS SOCIAIS INCIDENTES SOBRE A REMUNERAÇÃO
A8: GRUPO A | C8: MEMÓRIA DE CÁLCULO | D8: FUNDAMENTO
A9: A.01 INSS
A10: A.02 FGTS
A11: A.03 SESI/SESC
A12: A.04 SENAI/SENAC
A13: A.05 INCRA
A14: A.06 SEBRAE
A15: A.07 Salário Educação
A16: A.08 Riscos Ambientais do Trabalho – RAT x FAP
A17: TOTAL - GRUPO A | B17: =SUM(B9:B16) -> 0
A19: GRUPO B | C19: MEMÓRIA DE CÁLCULO | D19: FUNDAMENTO | G19: =1270/220 -> 5.772727273
A20: B.01 13º Salário | G20: =G19*0.2 -> 1.154545455
A21: B.02 Férias (Incluindo 1/3 constitucional)
A22: B.03 Aviso Prévio Trabalhado¹
A23: B.04 Auxílio Doença² | E23: =12/30/12*100 -> 3.333333333
A24: B.05 Acidente de Trabalho³ | E24: =15/30/12*0.5*100 -> 2.083333333
A25: B: Substituto na cobertura de Ausências Legais
A26: B: Afastamento Maternidade
A27: B: Licença Paterindade
A28: TOTAL - GRUPO B | B28: =SUM(B20:B27) -> 0
A33: GRUPO C | C33: MEMÓRIA DE CÁLCULO | D33: FUNDAMENTO
A34: C.01 Aviso Prévio Indenizado ¹
A35: C.02 Indenização Adicional ²
A36: C.03 Indenização (rescisão sem justa causa – multa de 40% do FGTS) ³
A37: Multa do FGTS sobre o Aviso Previo Trabalhado
A38: TOTAL - GRUPO C | B38: =SUM(B34:B37) -> 0
A39: ¹ Estimativa de que 5% (cinco por cento) dos empregados serão substituídos durante um ano.
A40: ² Estimativa de que 2% (dois por cento) dos empregados serão demitidos em situação de recebimento de indenização adicional.
A41: ³ Multa de 40% do FGTS em relação aos trabalhadores demitidos.
A43: GRUPO D | C43: MEMÓRIA DE CÁLCULO | D43: FUNDAMENTO
A44: D.01 Incidência dos encargos do grupo A sobre o grupo B
A45: TOTAL - GRUPO D | B45: =SUM(B44:B44) -> 0
A47: GRUPO E | C47: MEMÓRIA DE CÁLCULO | D47: FUNDAMENTO
A48: E.01 Incidência do FGTS exclusivamente sobre o aviso prévio indenizado.
A49: E.02 Incidência do FGTS exclusivamente sobre o período médio de afastamento superior a 15 dias motivado por acidente do trabalho. ¹
A50: TOTAL - GRUPO E | B50: =SUM(B48:B49) -> 0
A51: ¹ Estimativa de que 8% (oito por cento) dos empregados sofrem acidentes durante o ano, com ausência média de 30 dias durante o ano. O percentual do FGTS (8%) será aplicado somente sobre os 15 dias restantes do afastamento, porque os 15 primeiros dias já foram calculados no item B.05.
A53: GRUPO F | C53: MEMÓRIA DE CÁLCULO | D53: FUNDAMENTO
A54: F.01 Incidência dos encargos do Grupo A sobre os valores constantes da base de cálculo referente ao salário maternidade
A55: TOTAL - GRUPO F | B55: =SUM(B54:B54) -> 0
A57: TOTAL - ENCARGOS SOCIAIS (R$) | B57: =B17+B28+B38+B45+B50+B55 -> 0

Sheet ANEXO III E Descricao
A1: QUANTIDADE DE EQUIPAMENTOS E PESSOAL
A2: 1 | B2: EQUIPAMENTOS | C2: QUANTIDADE
B4: Chassi Coletor - Ano de Fabricação igual ou superior ao ano de 2019. | C4: 6
B5: Caçamba "compactadores hidraulicos" - Este equipamento deverá ser novo | C5: 6
B7: Utilitário p/Fiscalização -Ano de Fabricação 2019 ou superior | C7: 2
B8: Container metálico - 1,5 mil/litros | C8: 30
A11: 2 | B11: DESCRIÇÃO | C11: ANEXO III -E
B12: MÃO DE OBRA - (RELAÇÃO DE PESSOAL - MINIMO)
B14: MÃO DE OBRA | C14: QUANTIDADE
B16: MOTORISTAS
B17: - Diurno | C17: 5
B18: - Noturno | C18: 5
B20: COLETORES
B21: - Diurno | C21: 20
B22: - Noturno | C22: 20
B24: SUPERVISORES
B25: - Diurno | C25: 1
B26: - Noturno | C26: 1
B28: OUTROS
B29: - Gerente | C29: 1
B30: - Aux. Escritório | C30: 1
B31: - Engenheiro | C31: 1

Sheet OPERAÇÃO DO ATERRO (hidden)
B2: OPERAÇÃO DO ATERRO
B3: PLANILHA DE COMPOSIÇÃO DE CUSTOS
B5: SÍNTESE DOS CUSTOS - MENSAL | C5: VALOR
B6: =B15 -> 1. MÃO DE OBRA | C6: =ROUND((G27+G46+G37+G55+G73+G82+G97+G103+G122+G64+G91),2) -> 
B7: =B124 -> 2. UNIFORMES E EPI´S | C7: =ROUND(G134+G145+G156+G167,2) -> 639.76
B8: 3. EQUIPAMENTOS E DESPESAS GERAIS | C8: =ROUND((G187+G197+G203+G208+G216+G222+G235+G241),2) -> 
B9: =B243 -> 4. BENEFÍCIOS E DESPESAS INDIRETAS | C9: =ROUND(SUM(C6:C8)*D251,2) ->  | D9: =SUM(C6:C8) -> 
B10: TOTAL DE DESPESAS | C10: =SUM(C6:C9) -> 
B11: VALOR POR TONELADA | C11: =ROUND(C10/C12,2) -> 
B12: QUANTIDADE ESTIMADA MENSAL (TON) | C12: 2400
B13: VALOR MÁXIMO GLOBAL | C13: =C10*12 -> 
B15: 1. MÃO DE OBRA
B17: 1.1. VIGIA NOTURNO
B18: Discriminação | C18: Unidade | D18: Quantidade | E18: Preço unitário | F18: Subtotal
B19: Salário Normal | D19: 1 | E19: 1481.66 | F19: =D19*E19 -> 1481.66
B20: Adicional de Insalubridade | C20: % | D20: 0.4 | E20: 1045 | F20: =D20*E20 -> 418
B21: Adicional risco | E21: 27.13 | F21: =E21 -> 27.13
B22: Adicional noturno - 4 horas por dia | C22: adc. - 4h/dia | D22: =4*25.3 -> 101.2 | E22: =(E19+F20)/220*20%*D22 -> 174.76872 | F22: =E22 -> 174.76872 | H22: =(E19+F20)/220*D22*0.2 -> 174.76872
B23: Adicional noturno pela redução da hora | C23: 30 mim/dia | D23: =0.5*25.3 -> 12.65 | E23: =(E19+F20)/220*20%*D23 -> 21.84609 | F23: =E23 -> 21.84609 | H23: =(E19+F20)/220*1.5*(D22/7) -> 187.2522
B24: Soma | F24: =SUM(F19:F23) -> 2123.40481
B25: Encargos Sociais | C25: % | D25: ='ANEXO III D Encargos'!B57 -> 0 | E25: =F24 -> 2123.40481 | F25: =E25*D25 -> 0
B26: Total por Vigia | F26: =F24+F25 -> 2123.40481
B27: Total do Efetivo | C27: homem | D27: =2+2/12 -> 2.166666667 | E27: =F26 -> 2123.40481 | F27: =D27*E27 -> 4600.710422 | G27: =F27 -> 4600.710422 | H27: =($E$95*52)-(F19*$D$96) ->  | I27: =H27*D27 -> 
B29: 1.2 VIGIA DIURNO
B30: Discriminação | C30: Unidade | D30: Quantidade | E30: Preço unitário | F30: Subtotal
B31: Salário Normal | D31: 1 | E31: 1481.66 | F31: =D31*E31 -> 1481.66
B32: Adicional risco | D32: 1 | E32: 27.13 | F32: =D32*E32 -> 27.13
B33: Adicional de Insalubridade | C33: % | D33: 0.4 | E33: 1045 | F33: =D33*E33 -> 418
B34: Soma | F34: =SUM(F31:F33) -> 1926.79
B35: Encargos Sociais | C35: % | D35: =D25 -> 0 | E35: =F34 -> 1926.79 | F35: =E35*D35 -> 0
B36: Total por Vigia | F36: =F34+F35 -> 1926.79
B37: Total do Efetivo | C37: homem | D37: =2+2/12 -> 2.166666667 | E37: =F36 -> 1926.79 | F37: =D37*E37 -> 4174.711667 | G37: =F37 -> 4174.711667 | H37: =($E$95*52)-(F31*$D$96) ->  | I37: =H37*D37 -> 
B39: 1.3 CONTROLADOR DE ACESSO E TRÁFEGO
B40: Discriminação | C40: Unidade | D40: Quantidade | E40: Preço unitário | F40: Subtotal
B41: Salário Normal | D41: 1 | E41: 1506.65 | F41: =D41*E41 -> 1506.65
B42: Adicional de Insalubridade | C42: % | D42: 0.4 | E42: 1045 | F42: =D42*E42 -> 418
B43: Soma | F43: =SUM(F41:F42) -> 1924.65
B44: Encargos Sociais | C44: % | D44: =D35 -> 0 | E44: =F43 -> 1924.65 | F44: =E44*D44 -> 0
B45: Total por Controlador | F45: =F43+F44 -> 1924.65
B46: Total do Efetivo | C46: homem | D46: =1+1/12 -> 1.083333333 | E46: =F45 -> 1924.65 | F46: =D46*E46 -> 2085.0375 | G46: =F46 -> 2085.0375 | H46: =($E$95*52)-(F41*$D$96) ->  | I46: =H46*D46 -> 
B48: 1.4 OPERADOR DE ROÇADEIRA
B49: Discriminação | C49: Unidade | D49: Quantidade | E49: Preço unitário | F49: Subtotal
B50: Salário Normal | D50: 1 | E50: 1653.17 | F50: =D50*E50 -> 1653.17
B51: Adicional de Insalubridade | C51: % | D51: 0.4 | E51: 1045 | F51: =D51*E51 -> 418
B52: Soma | F52: =SUM(F50:F51) -> 2071.17
B53: Encargos Sociais | C53: % | D53: =D25 -> 0 | E53: =F52 -> 2071.17 | F53: =E53*D53 -> 0
B54: Total por Auxiliar | F54: =F52+F53 -> 2071.17
B55: Total do Efetivo | C55: homem | D55: =1+1/12 -> 1.083333333 | E55: =F54 -> 2071.17 | F55: =D55*E55 -> 2243.7675 | G55: =F55 -> 2243.7675 | H55: =($E$95*52)-(F50*$D$96) ->  | I55: =H55*D55 -> 
B57: 1.5 AUXILIAR DE SERVIÇOS GERAIS
B58: Discriminação | C58: Unidade | D58: Quantidade | E58: Preço unitário | F58: Subtotal
B59: Salário Normal | D59: 1 | E59: 1270 | F59: =D59*E59 -> 1270
B60: Adicional de Insalubridade | C60: % | D60: 0.4 | E60: 1045 | F60: =D60*E60 -> 418
B61: Soma | F61: =SUM(F59:F60) -> 1688
B62: Encargos Sociais | C62: % | D62: =D53 -> 0 | E62: =F61 -> 1688 | F62: =E62*D62 -> 0
B63: Total por Auxiliar | F63: =F61+F62 -> 1688
B64: Total do Efetivo | C64: homem | D64: =1+1/12 -> 1.083333333 | E64: =F63 -> 1688 | F64: =D64*E64 -> 1828.666667 | G64: =F64 -> 1828.666667 | H64: =($E$95*52)-(F59*$D$96) ->  | I64: =H64*D64 -> 
B66: 1.6 OPERADOR
B67: Discriminação | C67: Unidade | D67: Quantidade | E67: Preço unitário | F67: Subtotal
B68: Salário Normal | D68: 1 | E68: 1789.18 | F68: =D68*E68 -> 1789.18
B69: Adicional de Insalubridade | C69: % | D69: 0.4 | E69: 1045 | F69: =D69*E69 -> 418
B70: Soma | F70: =SUM(F68:F69) -> 2207.18
B71: Encargos Sociais | C71: % | D71: =D25 -> 0 | E71: =F70 -> 2207.18 | F71: =E71*D71 -> 0
B72: Total por operador | F72: =F70+F71 -> 2207.18
B73: Total do Efetivo | C73: homem | D73: =3+3/12 -> 3.25 | E73: =F72 -> 2207.18 | F73: =D73*E73 -> 7173.335 | G73: =F73 -> 7173.335 | H73: =($E$95*52)-(F68*$D$96) ->  | I73: =H73*D73 -> 
B75: 1.7 MOTORISTA DE CAMINHÃO 3 EIXOS
B76: Discriminação | C76: Unidade | D76: Quantidade | E76: Preço unitário | F76: Subtotal
B77: Salário Normal | C77: mês | D77: 1 | E77: 1912 | F77: =D77*E77 -> 1912
B78: Adicional de Insalubridade | C78: % | D78: 0.4 | E78: 1045 | F78: =D78*E78 -> 418
B79: Soma | F79: =SUM(F77:F78) -> 2330
B80: Encargos Sociais | C80: % | D80: =D53 -> 0 | E80: =F79 -> 2330 | F80: =E80*D80 -> 0
B81: Total por Motorista | F81: =F79+F80 -> 2330
B82: Total do Efetivo | C82: homem | D82: 1.08 | E82: =F81 -> 2330 | F82: =D82*E82 -> 2516.4 | G82: =F82 -> 2516.4 | H82: =($E$95*52)-(F77*$D$96) ->  | I82: =H82*D82 -> 
B84: 1.8 MOTORISTA DE CAMINHÃO 2 EIXOS
B85: Discriminação | C85: Unidade | D85: Quantidade | E85: Preço unitário | F85: Subtotal
B86: Salário Normal | C86: mês | D86: 1 | E86: 1912 | F86: =D86*E86 -> 1912
B87: Adicional de Insalubridade | C87: % | D87: 0.4 | E87: 1045 | F87: =D87*E87 -> 418
B88: Soma | F88: =SUM(F86:F87) -> 2330
B89: Encargos Sociais | C89: % | D89: =D71 -> 0 | E89: =F88 -> 2330 | F89: =E89*D89 -> 0
B90: Total por Motorista | F90: =F88+F89 -> 2330
B91: Total do Efetivo | C91: homem | D91: 1.08 | E91: =F90 -> 2330 | F91: =D91*E91 -> 2516.4 | G91: =F91 -> 2516.4 | H91: =($E$95*52)-(F86*$D$96) ->  | I91: =H91*D91 -> 
B93: 1.9 Vale Transporte | I93: =SUM(I27,I37,I46,I55,I64,I73,I82,I91) -> 
B94: Discriminação | C94: Unidade | D94: Quantidade | E94: Preço unitário | F94: Subtotal
B95: FUNCIONÁRIOS | C95: vale | D95: =(D27+D37+D46+D55+D73+D82+D91+D64)*#REF! ->  | E95: =#REF! ->  | F95: =D95*E95 -> 
B96: Desconto 6% salario base | C96: % | D96: =#REF! ->  | E96: =F19*D27+F31*D37+F41*D46+F50*D55+F59*D64+ F68*D73+F77*D82+F86*D91 -> 21164.25333 | F96: =E96*D96 -> 
G97: =F95-F96 -> 
B99: 1.10 AUXILIO ALIMENTAÇÃO
B100: Discriminação | C100: Unidade | D100: Quantidade | E100: Preço unitário | F100: Subtotal
B101: FUNCIONÁRIOS (R$ 414,00) - 20% PAT - Conforme CCT | C101: vale | D101: =D27+D37+D46+D55+D73+D82+D91+D64 -> 12.99333333 | E101: 331.2 | F101: =D101*E101 -> 4303.392
B102: Seguro de vida/Fundo de formação profissional/Assist. Familiar | C102: R$ | D102: =D27+D37+D46+D55+D73+D82+D91+D64 -> 12.99333333 | E102: =62.5+20.5+20.5 -> 103.5 | F102: =E102*D102 -> 1344.81
G103: =F101+F102 -> 5648.202
B105: 1.8 EXAMES ADMISSIONAIS, PERIODICOS E DEMISSIONAIS
B106: ADMISSÃO E PERIÓDICO (06 MESES) | C106: Quant Ano | D106: Preço | E106: Total | F106: Quantidade | G106: Total
B107: AG. HBS | C107: 2 | D107: 18.06 | E107: =C107*D107 -> 36.12 | F107: =D73+D55+D46+D27+D37+D82+D91+D64 -> 12.99333333 | G107: =E107*$F$107 -> 469.3192
B108: ANTI HBS | C108: 2 | D108: 18.06 | E108: 36.12 | G108: 469.3192
B109: ANTI HCV | C109: 2 | D109: 22.8 | E109: 45.6 | G109: 592.496
B110: AUDIOMETRIA | C110: 2 | D110: 25 | E110: 50 | G110: 649.6666667
B111: ELETROCARDIOGRAMA | C111: 2 | D111: 35 | E111: 70 | G111: 909.5333333
B112: GAMA GT | C112: 2 | D112: 7.5 | E112: 15 | G112: 194.9
B113: GLICOSE | C113: 2 | D113: 3.5 | E113: 7 | G113: 90.95333333
B114: TESTE DE VISÃO | C114: 2 | D114: 8.5 | E114: 17 | G114: 220.8866667
B115: Total | E115: =SUM(E107:E114) -> 276.84 | G115: =SUM(G107:G114) -> 3597.0744
B116: DEMISSIONAL
B117: AG. HBS | C117: 1 | D117: =D107 -> 18.06 | E117: =C117*D117 -> 18.06 | G117: =E117*$F$107 -> 234.6596
B118: ANTI HBS | C118: 1 | D118: =D108 -> 18.06 | E118: =C118*D118 -> 18.06 | G118: =E118*$F$107 -> 234.6596
B119: ANTI HCV | C119: 1 | D119: =D109 -> 22.8 | E119: =C119*D119 -> 22.8 | G119: =E119*$F$107 -> 296.248
B120: AUDIOMETRIA | C120: 1 | D120: =D110 -> 25 | E120: =C120*D120 -> 25 | G120: =E120*$F$107 -> 324.8333333
B121: Total | E121: =SUM(E117:E120) -> 83.92 | G121: =SUM(G117:G120) -> 1090.400533
F122: Total Mensal | G122: =(G115+G121)/12 -> 390.6229111
B124: 2. UNIFORMES E EPI´S
B125: 2.1. UNIFORMES E EPÍ'S PARA VIGIAS
B126: Discriminação | C126: Unidade | D126: Durabilidade (meses) | E126: Preço unitário | F126: Subtotal
B127: Calça | C127: unidade | D127: 4 | E127: 55.9 | F127: =E127/D127 -> 13.975
B128: Camiseta manga longa | C128: unidade | D128: 4 | E128: 45.6 | F128: 11.4
B129: Boné c/ protetor de pescoço - sarja | C129: unidade | D129: 6 | E129: 35 | F129: 5.833333333
B130: Botina de segurança c/ palmilha aço | C130: par | D130: 6 | E130: 55.9 | F130: 9.316666667
B131: Capa de chuva amarela | C131: unidade | D131: 12 | E131: 40.5 | F131: 3.375
B132: Colete refletivo | C132: unidade | D132: 12 | E132: 25.45 | F132: 2.120833333
B133: Total do Efetivo | C133: homem | D133: =D27+D37 -> 4.333333333 | E133: =SUM(F127:F132) -> 46.02083333 | F133: =D133*E133 -> 199.4236111
G134: =F133 -> 199.4236111
B136: 2.2. UNIFORMES E EPÍ'S PARA OPERADOR/ AUXILIAR DE SERVIÇO GERAIS
B137: Discriminação | C137: Unidade | D137: Durabilidade (meses) | E137: Preço unitário | F137: Subtotal
B138: Calça | C138: unidade | D138: 4 | E138: =E127 -> 55.9 | F138: =E138/D138 -> 13.975
B139: Camiseta manga longa | C139: unidade | D139: 4 | E139: =E128 -> 45.6 | F139: 11.4
B140: Calçado de Segurança | C140: par | D140: 6 | E140: =E130 -> 55.9 | F140: 9.316666667
B141: Capa de chuva amarela | C141: unidade | D141: 12 | E141: =E131 -> 40.5 | F141: 3.375
B142: Colete refletivo | C142: unidade | D142: 12 | E142: =E132 -> 25.45 | F142: 2.120833333
B143: Protetor solar FPS 30 | C143: frasco 120g | D143: 1 | E143: 12.8 | F143: 12.8
B144: Total do Efetivo | C144: homem | D144: =D73+D64+D55 -> 5.416666667 | E144: =SUM(F138:F143) -> 52.9875 | F144: =D144*E144 -> 287.015625
G145: =F144 -> 287.015625
B147: 2.3. UNIFORMES E EPÍ'S PARA MOTORISTA
B148: Discriminação | C148: Unidade | D148: Durabilidade (meses) | E148: Preço unitário | F148: Subtotal
B149: Calça | C149: unidade | D149: 4 | E149: =E139 -> 45.6 | F149: =E149/D149 -> 11.4
B150: Camiseta manga longa | C150: unidade | D150: 4 | E150: =E140 -> 55.9 | F150: 13.975
B151: Calçado de Segurança | C151: par | D151: 6 | E151: =E142 -> 25.45 | F151: 4.241666667
B152: Capa de chuva amarela | C152: unidade | D152: 12 | E152: =E143 -> 12.8 | F152: 1.066666667
B153: Colete refletivo | C153: unidade | D153: 12 | E153: =E144 -> 52.9875 | F153: 4.415625
B154: Protetor solar FPS 30 | C154: frasco 120g | D154: 1 | E154: 12.8 | F154: 12.8
B155: Total do Efetivo | C155: homem | D155: =D82+D91 -> 2.16 | E155: =SUM(F149:F154) -> 47.89895833 | F155: =D155*E155 -> 103.46175
G156: =F155 -> 103.46175
B158: 2.4. UNIFORMES E EPÍ'S PARA CONTROLADOR DE ACESSO E TRÁFEGO E SUPERVISOR
B159: Discriminação | C159: Unidade | D159: Durabilidade (meses) | E159: Preço unitário | F159: Subtotal
B160: Calça | C160: unidade | D160: 4 | E160: 55.9 | F160: =E160/D160 -> 13.975
B161: Camiseta manga longa | C161: unidade | D161: 4 | E161: 45.6 | F161: 11.4
B162: Boné c/ protetor de pescoço - sarja | C162: unidade | D162: 6 | E162: 35 | F162: 5.833333333
B163: Botina de segurança c/ palmilha aço | C163: par | D163: 6 | E163: 55.9 | F163: 9.316666667
B164: Capa de chuva amarela | C164: unidade | D164: 12 | E164: 40.5 | F164: 3.375
B165: Colete refletivo | C165: unidade | D165: 12 | E165: 25.45 | F165: 2.120833333
B166: Total do Efetivo | C166: homem | D166: =D46 -> 1.083333333 | E166: =SUM(F160:F165) -> 46.02083333 | F166: =D166*E166 -> 49.85590278
G167: =F166 -> 49.85590278
B168: 3. EQUIPAMENTOS E DESPESAS GERAIS
B170: 3.1. EQUIPAMENTOS
B171: Discriminação | C171: Unidade | D171: Quantidade | E171: Preço unitário | F171: Subtotal
B172: trator esteira | C172: unidade | D172: 1 | E172: 472000 | F172: =D172*E172 -> 472000
B173: escavadeira hidráulica | C173: unidade | D173: 1 | E173: 380000 | F173: =D173*E173 -> 380000
B174: Caminhão basculante 6x4 | C174: unidade | D174: 1 | E174: 140000 | F174: =D174*E174 -> 140000
B175: Caminhão Basculante toco | C175: unidade | D175: 1 | E175: 120000 | F175: =D175*E175 -> 120000
B176: pá carregadeira | C176: Unidade | D176: 1 | E176: 265000 | F176: =D176*E176 -> 265000
B178: 3.2. DEPRECIAÇÃO EQUIPAMENTOS
B179: Discriminação | C179: Unidade | D179: Quantidade | E179: Preço unitário | F179: Subtotal
B180: =B172 -> trator esteira | C180: unidade | D180: =D172 -> 1 | E180: =E172 -> 472000 | F180: =D180*E180 -> 472000
B181: =B173 -> escavadeira hidráulica | C181: unidade | D181: =D173 -> 1 | E181: =E173 -> 380000 | F181: =D181*E181 -> 380000
B182: Caminhão basculante 6x4 | C182: unidade | D182: 1 | E182: =E174 -> 140000 | F182: =D182*E182 -> 140000
B183: Caminhão Basculante toco | C183: unidade | D183: 1 | E183: =E175 -> 120000 | F183: =D183*E183 -> 120000
B184: =B176 -> pá carregadeira | C184: unidade | D184: 1 | E184: =E176 -> 265000 | F184: =D184*E184 -> 265000
B186: Depreciação (60 meses) | C186: % | D186: =#REF! ->  | E186: =SUM(F180+F181+F184+E185+F183+F182) -> 1377000 | F186: =E186*D186 -> 
B187: Depreciação mensal | C187: mês | D187: =#REF! ->  | F187: =SUM(F186:F186) ->  | G187: =F187/D187 -> 
B189: 3.3 Remuneração do Capital Investido
B190: Discriminação | C190: Unidade | D190: Quantidade | E190: Preço unitário | F190: Subtotal
B191: trator esteira | C191: unidade | D191: 1 | E191: =E180 -> 472000 | F191: =D191*E191 -> 472000
B192: escavadeira hidráulica | C192: unidade | D192: =D183 -> 1 | E192: =E181 -> 380000 | F192: =D192*E192 -> 380000
B193: Caminhão basculante 6x4 | C193: unidade | D193: 1 | E193: =E182 -> 140000 | F193: =D193*E193 -> 140000
B194: Caminhão Basculante toco | C194: unidade | D194: 1 | E194: =E183 -> 120000 | F194: =D194*E194 -> 120000
B195: pá carregadeira | D195: 1 | E195: =E176 -> 265000 | F195: =D195*E195 -> 265000
B197: Remuneração mensal de capital | C197: % | D197: =#REF! ->  | E197: =SUM(F191:F196) -> 1377000 | F197: =D197*E197 ->  | G197: =F197 -> 
B199: 3.4 Impostos e Seguros
B200: Discriminação | C200: Unidade | D200: Quantidade | E200: Preço unitário | F200: Subtotal
B201: IPVA caminhões | C201: unidade | D201: 1 | E201: =(F174+F175)*0.01 -> 2600 | F201: =D201*E201 -> 2600
B202: Seguro obrigatório + licenciamento | C202: unidade | D202: 1 | E202: =SUM(F174,F175)*0.003 -> 780 | F202: =E202*D202 -> 780
B203: Impostos e Seguros Mensais | C203: mês | D203: 12 | E203: =F201+F202 -> 3380 | F203: =E203/D203 -> 281.6666667 | G203: =F203 -> 281.6666667
B205: 3.5 Consumos
B206: Discriminação | C206: Unidade | D206: Quantidade | E206: Preço unitário | F206: Subtotal
B207: Custo de óleo diesel | C207: litros | D207: 5600 | E207: 3.65 | F207: =E207*D207 -> 20440
G208: =F207 -> 20440
B210: 3.6 Demais Itens e insumos da composição do aterro
B211: Discriminação | C211: Unidade | D211: quantidade | E211: Preço unitário | F211: Subtotal
B212: Insumos operação (incluindo roçagem, manutenção do sistema de drenos de chorume e de águas pluviais) | C212: Unidade/mês | D212: 1 | E212: 4591.9 | F212: =D212*E212 -> 4591.9
B213: Manutenção e aferição da balança rodoviária | C213: Unidade/mês | D213: 1 | E213: 500 | F213: =D213*E213 -> 500
B214: Auto monitoramento | C214: Unidade/mês | D214: 1 | E214: 500 | F214: =D214*E214 -> 500
B215: Sistema de recirculação | C215: Unidade/mês | D215: 1 | E215: 1500 | F215: =D215*E215 -> 1500
B216: Custo mensal | C216: mês | F216: =SUM(F212:F215) -> 7091.9 | G216: =F216 -> 7091.9
B218: 3.7 Manutenção
B219: Discriminação | C219: Unidade | D219: Quantidade | E219: Preço unitário | F219: Subtotal
B220: Custo de aquisição equipamentos | C220: unidade | D220: 1 | E220: =SUM(F180:F185) -> 1377000 | F220: =E220*D220 -> 1377000
B221: Coeficiente de manutenção | C221: % | D221: =#REF! ->  | E221: =F220 -> 1377000 | F221: =E221*D221 -> 
B222: Custo mensal com manutenção | C222: mês | D222: 1 | F222: =SUM(F221:F221) ->  | G222: =F222 -> 
B224: 3.8 Pneus Caminhões e Pá carregadeira
B225: Discriminação | C225: Unidade | D225: Quantidade | E225: Preço unitário | F225: Subtotal
B226: Custo aquisição pneus Caminhões | C226: unidade | D226: 6 | E226: 1650 | F226: =D226*E226 -> 9900
B227: Custo recapagem (2 recapagens por pneu) | C227: unidade | D227: 12 | E227: 650 | F227: =D227*E227 -> 7800
B228: Vida útil do conjunto + 2 recapagens | C228: km | D228: 20000 | E228: Total kit (R$) | F228: =F226+F227 -> 17700
... 23 more rows
